{"text_format":"1","workbook":"xlsx","n_sheets":12,"sheets":["QMS OPRISK","PENYATAAN","PENILAIAN (Q2)","PENILAIAN (Q4)","DASHBOARD","DATALIST","DATA","GRAF","PIVOT","Sheet4","DROPLIST","MATRIK"],"not_rendered":{"charts":8,"images":14,"macros":1,"external_links":1,"defined_names":29,"comments":1,"pivot_tables":10},"unopened":[],"bounds":{"document_bytes":16777216,"sheet_cells":100000,"rows_first":2000,"rows_last":500,"rows_between":2000,"halvings":0,"cell_chars":16384,"cell_head_chars":4096},"cells_cut":0,"cells_raw":0,"read":"whole","date_system":"1900"}

{"sheet":"QMS OPRISK","index":0,"n_rows":15,"n_cols":13,"rows_kept":15,"cut":false,"hidden":false,"merged":[[6,5,6,12],[8,5,8,12],[10,5,10,12],[12,5,12,12]]}
[]
[]
[]
[]
[]
[]
[null,null,null,null,"Klasifikasi Pusat Tanggungjawab (PTJ) : *","Perkhidmatan"]
[]
[null,null,null,null,"Nama Pusat Tanggungjawab (PTJ) : *","Putra Science Park"]
[]
[null,null,null,null,"Nama Pegawai Bertanggungjawab : *","Shahriman bin Hashim"]
[]
[null,null,null,null,"Tahun Penilaian: *",2019]
[]
[null,null,null,null,null,null,null,null,null,null,null,null,"* Ruangan wajib isi"]

{"sheet":"PENYATAAN","index":1,"n_rows":38,"n_cols":17,"rows_kept":38,"cut":false,"hidden":false,"merged":[[4,13,4,14],[4,6,5,12],[33,12,37,12],[6,12,7,12],[5,13,7,13],[5,14,7,14],[5,5,7,5],[6,6,6,8],[6,9,6,11],[4,0,4,5],[5,0,7,0],[5,1,7,1],[5,2,7,2],[5,3,7,3],[5,4,7,4]]}
[]
[]
[]
[]
["Penyataan Isu & Risiko",null,null,null,null,null,"Penilaian Risiko",null,null,null,null,null,null,"Tindakan Risiko"]
["Bil.","Penyataan Isu","Dalaman/ Luaran\n[DROPLIST]","Kategori Isu\n[DROPLIST]","Penyataan Risiko ","Kawalan Sedia ada",null,null,null,null,null,null,null,"Nyatakan Strategi Tindakan \nUntuk Risiko (Kuning) dan Risiko (Merah) sahaja","Dokumen Sokongan \n(Bukti tindakan)"]
[null,null,null,null,null,null,"Keterukan \n[DROPLIST]",null,null,"Kemungkinan\n[DROPLIST]",null,null,"Total  Skor Isu"]
[null,null,null,null,null,null,"Tahap","Penerangan Tahap","Skor","Tahap","Penerangan Tahap","Skor"]
[1,"Pengurangan jumlah permohonan menyebabkan bilangan pemfailan  harta intelek  dalam dan luar negara  terjejas         ","Dalaman","Penyelidikan & Inovasi","i. Menjejaskan KPI Penyelidikan dan Inovasi (Pemfailan harta intelek)","Seminar dan Klinik IP  di PTJ / atas permintaan PTJ","Tidak Ketara",{"$f":"VLOOKUP(G9,DROPLIST!P:Q,2,FALSE)","v":"Impak yang boleh diabaikan"},{"$f":"VLOOKUP(G9,DROPLIST!P:R,3,FALSE)","v":1},"Tidak Dapat Dijangka",{"$f":"VLOOKUP(J9,DROPLIST!T:U,2,FALSE)","v":"Boleh dikatakan mustahil dan tidak pernah berlaku"},{"$f":"VLOOKUP(J9,DROPLIST!T:V,3,FALSE)","v":1},{"$f":"I9*L9","v":1},null,"Pemantauan secara berterusan","1. Penyataan"]
[2,"Kekangan peruntukan bagi perlindungan harta intelek menyebab universiti menanggung kos perlindungan harta intelek luar negara yang tinggi ","Dalaman","Penyelidikan & Inovasi","i. Menjejaskan KPI Penyelidikan dan Inovasi (Pemfailan harta intelek)","Menamatkan perlindungan paten luar negara melebihi 5 tahun yang tidak dikomersialkan  ","Kecil",{"$f":"VLOOKUP(G10,DROPLIST!P:Q,2,FALSE)","v":"Impak yang boleh dikendalikan di peringkat Bahagian/Jabatan/Unit di PTJ"},{"$f":"VLOOKUP(G10,DROPLIST!P:R,3,FALSE)","v":2},"Jarang Sekali",{"$f":"VLOOKUP(J10,DROPLIST!T:U,2,FALSE)","v":"Belum diketahui berlaku selepas beberapa tahun"},{"$f":"VLOOKUP(J10,DROPLIST!T:V,3,FALSE)","v":2},{"$f":"I10*L10","v":4},null,"1. Pemantauan secara berterusan.\n\n2. Pembangunan garis panduan penamatan harta intelek telah dibentangkan sebanyak 2 kali dalam mesyuarat JKPU pada tahun 2018. Garis panduan ini akan dibawa untuk kelulusan mesyuarat Jwatankuasa Pengurusan Universiti.","1. Penyataan","   "]
[3,"Pengiktirafan UPM sebagai organisasi pengurusan harta intelek terbaik negara meningkatkan peluang perniagaan baharu Putra Dynamic kerana menjadi pakar rujuk ","Dalaman","Penyelidikan & Inovasi","Meningkatkan bilangan peserta luar yang menyertai latihan ","Mengekalkan penyertaan Anugerah Harta Intelek Negara (AHIN)","Tidak Ketara",{"$f":"VLOOKUP(G11,DROPLIST!P:Q,2,FALSE)","v":"Impak yang boleh diabaikan"},{"$f":"VLOOKUP(G11,DROPLIST!P:R,3,FALSE)","v":1},"Tidak Dapat Dijangka",{"$f":"VLOOKUP(J11,DROPLIST!T:U,2,FALSE)","v":"Boleh dikatakan mustahil dan tidak pernah berlaku"},{"$f":"VLOOKUP(J11,DROPLIST!T:V,3,FALSE)","v":1},1,null,"Pemantauan secara berterusan","1. Penyataan"]
[4,"Pembayaran balik dana Mikrokredit tidak dilunaskan oleh peserta menyebabkan kurang dana untuk ditawarkan kepada peserta yang baharu","Dalaman","Penyelidikan & Inovasi","Usahawan pelajar baharu tidak dapat dilahirkan ","`-notis bayaran secara bertulis dan telefon/ whatsapp\n- transkrip dan sijil bergraduat UPM tidak akan diberikan kepada pelajar","Kecil",{"$f":"VLOOKUP(G12,DROPLIST!P:Q,2,FALSE)","v":"Impak yang boleh dikendalikan di peringkat Bahagian/Jabatan/Unit di PTJ"},{"$f":"VLOOKUP(G12,DROPLIST!P:R,3,FALSE)","v":2},"Tidak Dapat Dijangka",{"$f":"VLOOKUP(J12,DROPLIST!T:U,2,FALSE)","v":"Boleh dikatakan mustahil dan tidak pernah berlaku"},{"$f":"VLOOKUP(J12,DROPLIST!T:V,3,FALSE)","v":1},2,null,"Pemantauan secara berterusan","1. Penyataan"]
[5,"Kurang penyertaan permohonan dana program Mikrokredit menyebabkan dana tidak dapat dimanfaatkan","Dalaman","Penyelidikan & Inovasi","Usahawan pelajar baharu tidak dapat dilahirkan ","Sebarkan hebahan program melalui laman Web, CEM, Wazan dan Billboard UPM, facebook, Whatsapp Group","Kecil",{"$f":"VLOOKUP(G13,DROPLIST!P:Q,2,FALSE)","v":"Impak yang boleh dikendalikan di peringkat Bahagian/Jabatan/Unit di PTJ"},{"$f":"VLOOKUP(G13,DROPLIST!P:R,3,FALSE)","v":2},"Jarang Sekali",{"$f":"VLOOKUP(J13,DROPLIST!T:U,2,FALSE)","v":"Belum diketahui berlaku selepas beberapa tahun"},{"$f":"VLOOKUP(J13,DROPLIST!T:V,3,FALSE)","v":2},4,null,"Risiko telah dikawal","1. Penyataan"]
[6,"Peruntukan bagi aktiviti promosi dan pemasaran inovasi yang berkurangan setiap tahun -Pemotongan peruntukan daripada kerajaan  (-30% bagi tahun 2017) menyebabkan aktiviti promosi berkurangan bagi mendapatkan industri yang berpotensi menjalankan kerjasama dengan UPM ","Luaran","Penyelidikan & Inovasi","i. Menjejaskan KPI Promosi dan Pemasaran Inovasi PSP - Bilangan industri","Memohon peruntukan tambahan seperti Dana RU bagi menampung kos promosi (pameran) yang wajib disertai dan melibatkan kos tinggi","Kecil",{"$f":"VLOOKUP(G14,DROPLIST!P:Q,2,FALSE)","v":"Impak yang boleh dikendalikan di peringkat Bahagian/Jabatan/Unit di PTJ"},{"$f":"VLOOKUP(G14,DROPLIST!P:R,3,FALSE)","v":2},"Jarang Sekali",{"$f":"VLOOKUP(J14,DROPLIST!T:U,2,FALSE)","v":"Belum diketahui berlaku selepas beberapa tahun"},{"$f":"VLOOKUP(J14,DROPLIST!T:V,3,FALSE)","v":2},4,null,"Pemantauan secara berterusan","1. Penyataan"]
[7,"Kesukaran memasang bunting promosi dan staf berisiko mengalami kecederaan semasa memasang bunting aktiviti promosi pada tiang lampu setiap kali program dijalankan menyebabkan kecederaan kepada staf yang memasang bunting ","Dalaman","Penyelidikan & Inovasi","Menjejaskan keselamatan dan kebajikan pekerja","Membangunkan inovasi baharu bagi memudahkan kerja pemasangan bunting menggantikan penggunaan tangga di bawah program KIK PSP/TNCPI","Tidak Ketara",{"$f":"VLOOKUP(G15,DROPLIST!P:Q,2,FALSE)","v":"Impak yang boleh diabaikan"},{"$f":"VLOOKUP(G15,DROPLIST!P:R,3,FALSE)","v":1},"Tidak Dapat Dijangka",{"$f":"VLOOKUP(J15,DROPLIST!T:U,2,FALSE)","v":"Boleh dikatakan mustahil dan tidak pernah berlaku"},{"$f":"VLOOKUP(J15,DROPLIST!T:V,3,FALSE)","v":1},1,null,"Tempoh pelaksanaan : Jun 2018","1. Penyataan"]
[8,"Kesalahan penterjemahan kenyataan media bagi hebahan promosi hasil penyelidikan oleh wartawan\n - Wartawan salah faham/kurang faham penjelasan teknikal daripada penyelidik semasa sidang media ","Luaran","Penyelidikan & Inovasi","Menjejaskan reputasi dan memberi maklumat yang salah kepada orang awam /pembaca","1- Menyediakan kenyataan media dalam bentuk yang dapat difahami oleh orang biasa di dalam dwi bahasa.\n2- Maklumat penyelidikan disediakan di dalam bentuk soalan-jawapan\n3- Slide pembentangan teknologi turut diberi kepada wartawan selain kenyataan media dan soalan-jawapan.","Tinggi",{"$f":"VLOOKUP(G16,DROPLIST!P:Q,2,FALSE)","v":"Impak yang menyebabkan Petunjuk Prestasi Utama (KPI)  UPM terjejas  teruk"},{"$f":"VLOOKUP(G16,DROPLIST!P:R,3,FALSE)","v":4},"Tidak Dapat Dijangka",{"$f":"VLOOKUP(J16,DROPLIST!T:U,2,FALSE)","v":"Boleh dikatakan mustahil dan tidak pernah berlaku"},{"$f":"VLOOKUP(J16,DROPLIST!T:V,3,FALSE)","v":1},4,null,"Kawalan sedia ada adalah berkesan","1. Penyataan"]
[9,"Permohonan Suai Padan Teknologi (SPT) yang sukar mendapat maklumbalas PTJ/lain, tidak dibuat susulan selanjutnya selepas promosi tamat menyebabkan peluang kerjasama dengan industri tidak dapat diteruskan","Dalaman","Penyelidikan & Inovasi","Menjejaskan KPI Penyelidikan dan inovasi  (TKHL)","Pemantauan secara menggunakan database Industry Relation Management (IRM)","Kecil",{"$f":"VLOOKUP(G17,DROPLIST!P:Q,2,FALSE)","v":"Impak yang boleh dikendalikan di peringkat Bahagian/Jabatan/Unit di PTJ"},{"$f":"VLOOKUP(G17,DROPLIST!P:R,3,FALSE)","v":2},"Dapat Dijangka",{"$f":"VLOOKUP(J17,DROPLIST!T:U,2,FALSE)","v":"Mungkin berlaku pada masa akan datang"},{"$f":"VLOOKUP(J17,DROPLIST!T:V,3,FALSE)","v":3},6,"1- Pemantauan secara manual melalui Jadual Pemantauan Kerja SPT di papan putih Pejabat\n2- Memberi maklumbalas penerimaan permohonan industri selepas aktiviti promosi tamat sebelum dipantau melalui Jadual Pemantauan Kerja","Tempoh pelaksanaan : Mac 2019\n\nPemantauan menggunakan colour-coding database mengikut tempoh maklumbalas tertentu, bagi setiap industri yang akan ditetapkan semula - akan digunakan bagi menggantikan kaedah manual yang masih  belum berkesan.","1. Penyataan"]
[10,"Kurang penyertaan permohonan dana promosi produk daripada penyelidik  menyebabkan kurang bilangan projek diluluskan","Dalaman","Penyelidikan & Inovasi","Tidak mencapai sasaran KPI Dana Promosi yang ditetapkan","Membuat hebahan melalui buletin, laman web","Kecil",{"$f":"VLOOKUP(G18,DROPLIST!P:Q,2,FALSE)","v":"Impak yang boleh dikendalikan di peringkat Bahagian/Jabatan/Unit di PTJ"},{"$f":"VLOOKUP(G18,DROPLIST!P:R,3,FALSE)","v":2},"Jarang Sekali",{"$f":"VLOOKUP(J18,DROPLIST!T:U,2,FALSE)","v":"Belum diketahui berlaku selepas beberapa tahun"},{"$f":"VLOOKUP(J18,DROPLIST!T:V,3,FALSE)","v":2},4,null,"Tempoh pelaksanaan : Oktober 2018\n\nDana Promosi telah dihentikan penawaran dan perkhidmatannya kepada penyelidik UPM di sebabkan kekurangan Dana RU. ","1. Penyataan"]
[11,"Kekurangan Staf Edu-Park bagi mengendalikan aktiviti yang disertai pelawat diseluruh lokasi Edupark UPM menyebabkan kerja tidak dilaksanakan dengan lancar","Dalaman","Penyelidikan & Inovasi","Menjejaskan KPI penjanaan dana Edupark","menggunakan khidmat pelajar","Tidak Ketara",{"$f":"VLOOKUP(G19,DROPLIST!P:Q,2,FALSE)","v":"Impak yang boleh diabaikan"},{"$f":"VLOOKUP(G19,DROPLIST!P:R,3,FALSE)","v":1},"Jarang Sekali",{"$f":"VLOOKUP(J19,DROPLIST!T:U,2,FALSE)","v":"Belum diketahui berlaku selepas beberapa tahun"},{"$f":"VLOOKUP(J19,DROPLIST!T:V,3,FALSE)","v":2},2,null,"Pelaksanaan berterusan. Menggunakan khidmat pelajar Putra Bakti dan pelajar latihan industri untuk menampung tenaga sumber manusia. ","1. Penyataan"]
[12,"Kekurangan Peruntukan Kewangan bagi pengurusan Edu-Park menyebabkan penyelenggaraan /penggantian peralatan tidak dapat dijalankan dan pembelian bahan pameran dan modul tidak dapat dilakukan","Dalaman","Penyelidikan & Inovasi","Menjejaskan KPI penjanaan dana Edupark","1)lokasi lawatan ditutup buat sementara waktu 2)menyediakan modul gantian sekiranya modul tersebut tidak dapat dijalankan","Tidak Ketara",{"$f":"VLOOKUP(G20,DROPLIST!P:Q,2,FALSE)","v":"Impak yang boleh diabaikan"},{"$f":"VLOOKUP(G20,DROPLIST!P:R,3,FALSE)","v":1},"Jarang Sekali",{"$f":"VLOOKUP(J20,DROPLIST!T:U,2,FALSE)","v":"Belum diketahui berlaku selepas beberapa tahun"},{"$f":"VLOOKUP(J20,DROPLIST!T:V,3,FALSE)","v":2},2,null,"Naiktaraf /Selenggara menggunakan peruntukan sedia ada dan sederhana ","1. Penyataan"]
[13,"Tahap keselamatan pelawat Edu-Park berisiko mengalami kecederaan semasa lawatan pelawat Edupark ","Dalaman","Penyelidikan & Inovasi","Menjejaskan reputasi Universiti","1. Pekerja Edu Park sebagai pemantau dan pengiring keselamatan sepanjang lawatan\n2. Membawa peti kecemasan dan kenderaan jabatan sebagai persediaan","Tidak Ketara",{"$f":"VLOOKUP(G21,DROPLIST!P:Q,2,FALSE)","v":"Impak yang boleh diabaikan"},{"$f":"VLOOKUP(G21,DROPLIST!P:R,3,FALSE)","v":1},"Tidak Dapat Dijangka",{"$f":"VLOOKUP(J21,DROPLIST!T:U,2,FALSE)","v":"Boleh dikatakan mustahil dan tidak pernah berlaku"},{"$f":"VLOOKUP(J21,DROPLIST!T:V,3,FALSE)","v":1},1,null,"Pelaksanaan berterusan. Kenderaan rasmi jabatan juga digunakan sebagai kenderaan 'standby' jika berlaku kemalangan.","1. Penyataan"]
[14,"kehadiran pelawat tidak mengikut ketetapan waktu yang telah dibuat oleh Edu-Park","Luaran","Penyelidikan & Inovasi","Mengganggu perjalanan waktu lawatan ","memberi peringatan kepada pelawat 3 hari sebelum lawatan untuk tiba pada masa yang telah ditetapkan.","Tidak Ketara",{"$f":"VLOOKUP(G22,DROPLIST!P:Q,2,FALSE)","v":"Impak yang boleh diabaikan"},{"$f":"VLOOKUP(G22,DROPLIST!P:R,3,FALSE)","v":1},"Dapat Dijangka",{"$f":"VLOOKUP(J22,DROPLIST!T:U,2,FALSE)","v":"Mungkin berlaku pada masa akan datang"},{"$f":"VLOOKUP(J22,DROPLIST!T:V,3,FALSE)","v":3},3,null,"Pelaksanaan berterusan. Tiada masalah besar dalam menyusun atur semula masa lawatan","1. Penyataan"]
[15,"Sesi perundingan perniagaan (business negotiation) melibatkan pemindahan  teknologi yang dapat dilaksanakan dengan pihak industri adalah terhad kerana kekurangan perunding perniagaan(business negotiator) yang bertauliah dalam bidang pemindahan teknologi yang diiktiraf oleh universiti","Dalaman","Penyelidikan & Inovasi","i. Menjejaskan KPI Penyelidikan dan Inovasi (TKHL )","Perundingan perniagaan(business negotiation) hanya dilaksanakan  oleh Pengarah PSP sedia ada yang telah dilatih didalam bidang perundingan pernigaan yang melibatkan pemindahan teknologi daripada universiti kepada industri.","Sederhana",{"$f":"VLOOKUP(G23,DROPLIST!P:Q,2,FALSE)","v":"Impak yang boleh dikendalikan secara normal oleh Pengurusan PTJ"},{"$f":"VLOOKUP(G23,DROPLIST!P:R,3,FALSE)","v":3},"Paling Mungkin",{"$f":"VLOOKUP(J23,DROPLIST!T:U,2,FALSE)","v":"Hazard/insiden yang paling mungkin berlaku"},{"$f":"VLOOKUP(J23,DROPLIST!T:V,3,FALSE)","v":5},15,"1. Pembangunan kapasti(capacity building) kakitangan UPM yang terlibat dengan aktiviti pemindahan teknologi melalui  penyertaan program-program pentauliahan yang berkenaan dengan pemindahan teknologi seperti kursus Registered Technology Transfer Profesional(RTTP) dengan Association of University Technology Managers(AUTM) , Licensing Academy dengan U.C. Davis dan sebagainya.  \n\n2. Pengiktirafan oleh pihak Berkuasa Universiti kepada kakitangan UPM yang telah dilatih seperti di atas untuk kakitangan terbabit melaksanakan perundingan perniagaan (business negotiation) bagi pihak UPM bagi tujuan pemindahan teknologi. \n"," Strategi tidak dapat dilaksanakan kerana kekangan kewangan Universiti untuk menghantar kakitangan UPM menghadiri kursus-kursus bertauliah.Permohonan peruntukan akan dibuat bagi tahun 2019.","1. Penyataan"]
[16,"Kekurangan peruntukan kewangan pengurusan dan promosi Putra Dynamics menyebabkan Promosi Putra Dynamics tidak dapat dilakukan secara agresif  ","Dalaman","Penyelidikan & Inovasi","Menjejaskan KPI bilangan peserta yang menyertai latihan ","Menggunakan jaringan sedia ada","Sederhana",{"$f":"VLOOKUP(G24,DROPLIST!P:Q,2,FALSE)","v":"Impak yang boleh dikendalikan secara normal oleh Pengurusan PTJ"},{"$f":"VLOOKUP(G24,DROPLIST!P:R,3,FALSE)","v":3},"Tidak Dapat Dijangka",{"$f":"VLOOKUP(J24,DROPLIST!T:U,2,FALSE)","v":"Boleh dikatakan mustahil dan tidak pernah berlaku"},{"$f":"VLOOKUP(J24,DROPLIST!T:V,3,FALSE)","v":1},3,null,"Strategi sedia ada adalah berkesan","1. Penyataan"]
[17,"Kesukaran untuk mendapatkan pelanggan untuk menyertai latihan yang ditawarkan Putra Dynamics menyebabkan kurang penjanaan pendapatan","Dalaman","Penyelidikan & Inovasi","Menjejaskan KPI bilangan peserta yang menyertai latihan "," Menggunakan jaringan daripada pengurusan PSP untuk mendapatkan pelanggan yang sesuai","Sederhana",{"$f":"VLOOKUP(G25,DROPLIST!P:Q,2,FALSE)","v":"Impak yang boleh dikendalikan secara normal oleh Pengurusan PTJ"},{"$f":"VLOOKUP(G25,DROPLIST!P:R,3,FALSE)","v":3},"Tidak Dapat Dijangka",{"$f":"VLOOKUP(J25,DROPLIST!T:U,2,FALSE)","v":"Boleh dikatakan mustahil dan tidak pernah berlaku"},{"$f":"VLOOKUP(J25,DROPLIST!T:V,3,FALSE)","v":1},3,null,"Strategi sedia ada adalah berkesan","1. Penyataan"]
[18,"Nilai matawang negara (RM) berubah menyebabkan kos latihan  Putra Dynamic meningkatkan","Luaran","Penyelidikan & Inovasi","Menjejaskan KPI bilangan peserta yang menyertai latihan ","Meningkatkan kos kontigensi dalam implikasi kewangan latihan","Sederhana",{"$f":"VLOOKUP(G26,DROPLIST!P:Q,2,FALSE)","v":"Impak yang boleh dikendalikan secara normal oleh Pengurusan PTJ"},{"$f":"VLOOKUP(G26,DROPLIST!P:R,3,FALSE)","v":3},"Tidak Dapat Dijangka",{"$f":"VLOOKUP(J26,DROPLIST!T:U,2,FALSE)","v":"Boleh dikatakan mustahil dan tidak pernah berlaku"},{"$f":"VLOOKUP(J26,DROPLIST!T:V,3,FALSE)","v":1},3,null,"Kawalan sedia ada adalah berkesan","1. Penyataan"]
[19,"Peserta Program Innohub menarik diri setelah program berjalan menyebabkan perancangan jadual perbatuan projek tidak dapat dilaksanakan","Dalaman","Penyelidikan & Inovasi","Pelaksanaan projek tergendala dan teknologi tidak dapat dikomersilkan.","Pelan penggantian Peserta baharu / projek ditamatkan","Kecil",{"$f":"VLOOKUP(G27,DROPLIST!P:Q,2,FALSE)","v":"Impak yang boleh dikendalikan di peringkat Bahagian/Jabatan/Unit di PTJ"},{"$f":"VLOOKUP(G27,DROPLIST!P:R,3,FALSE)","v":2},"Jarang Sekali",{"$f":"VLOOKUP(J27,DROPLIST!T:U,2,FALSE)","v":"Belum diketahui berlaku selepas beberapa tahun"},{"$f":"VLOOKUP(J27,DROPLIST!T:V,3,FALSE)","v":2},4,null,"Pelan sedia ada adalah berkesan","1. Penyataan"]
[20,"Tiada tambahan peruntukkan Dana RU InnoHub yang disalurkan menyebabkan Perkhidmatan Dana Innohub bagi membantu penyelidik mengkomersilkan produk kepada industri tidak dapat ditawarkan lagi","Luaran","Penyelidikan & Inovasi","Program Innohub tidak dapat diteruskan","Memberi latihan pitching kepada peserta  InnoHub untuk mendapatkan geran luar","Sederhana",{"$f":"VLOOKUP(G28,DROPLIST!P:Q,2,FALSE)","v":"Impak yang boleh dikendalikan secara normal oleh Pengurusan PTJ"},{"$f":"VLOOKUP(G28,DROPLIST!P:R,3,FALSE)","v":3},"Tidak Dapat Dijangka",{"$f":"VLOOKUP(J28,DROPLIST!T:U,2,FALSE)","v":"Boleh dikatakan mustahil dan tidak pernah berlaku"},{"$f":"VLOOKUP(J28,DROPLIST!T:V,3,FALSE)","v":1},3,null,"Strategi sedia ada adalah berkesan","1. Penyataan"]
[21,"Kesukaran membuang dawai lama dan staf berisiko mengalami kecederaan semasa membuang dawai lama bagi memasang bunting aktiviti promosi pada tiang lampu setiap kali program dijalankan menyebabkan kecederaan kepada staf yang memasang bunting ","Dalaman","Penyelidikan & Inovasi","Menjejaskan keselamatan dan kebajikan pekerja","Melaksanakan projek dibawah pemantauan KIK dengan membangunkan inovasi baharu bagi memudahkan kerja pemasangan bunting menggantikan penggunaan tangga di bawah program KIK PSP/TNCPI","Sederhana",{"$f":"VLOOKUP(G29,DROPLIST!P:Q,2,FALSE)","v":"Impak yang boleh dikendalikan secara normal oleh Pengurusan PTJ"},{"$f":"VLOOKUP(G29,DROPLIST!P:R,3,FALSE)","v":3},"Dapat Dijangka",{"$f":"VLOOKUP(J29,DROPLIST!T:U,2,FALSE)","v":"Mungkin berlaku pada masa akan datang"},{"$f":"VLOOKUP(J29,DROPLIST!T:V,3,FALSE)","v":3},{"$f":"I29*L29","v":9},"Tempoh pelaksanaan : 5 September 2019\n\n1 - Menjalankan program dan kempen kesedaran bagi membuang dawai lama/serpihan banting pada tiang lampu di sekitar UPM dengan kerjasama COSCOMM\n2. Membuat kajian terhadap kaedah dan alatan sedia ada di PBT\n3-Membangunkan inovasi bagi membantu memudahkan kerja pembuangan dawai",null,"1. Penyataan"]
[22,null,"Pilihan Klasifikasi Isu","Pilihan Kategori Isu",null,null,"Pilihan Tahap Keterukan",{"$f":"VLOOKUP(G30,DROPLIST!P:Q,2,FALSE)","v":"-"},{"$f":"VLOOKUP(G30,DROPLIST!P:R,3,FALSE)","v":0},"Pilihan Tahap Kemungkinan",{"$f":"VLOOKUP(J30,DROPLIST!T:U,2,FALSE)","v":"-"},{"$f":"VLOOKUP(J30,DROPLIST!T:V,3,FALSE)","v":0},0,null,null,"1. Penyataan"]
[23,null,"Pilihan Klasifikasi Isu","Pilihan Kategori Isu",null,null,"Pilihan Tahap Keterukan",{"$f":"VLOOKUP(G31,DROPLIST!P:Q,2,FALSE)","v":"-"},{"$f":"VLOOKUP(G31,DROPLIST!P:R,3,FALSE)","v":0},"Pilihan Tahap Kemungkinan",{"$f":"VLOOKUP(J31,DROPLIST!T:U,2,FALSE)","v":"-"},{"$f":"VLOOKUP(J31,DROPLIST!T:V,3,FALSE)","v":0},0,null,null,"1. Penyataan"]
[24,null,"Pilihan Klasifikasi Isu","Pilihan Kategori Isu",null,null,"Pilihan Tahap Keterukan",{"$f":"VLOOKUP(G32,DROPLIST!P:Q,2,FALSE)","v":"-"},{"$f":"VLOOKUP(G32,DROPLIST!P:R,3,FALSE)","v":0},"Pilihan Tahap Kemungkinan",{"$f":"VLOOKUP(J32,DROPLIST!T:U,2,FALSE)","v":"-"},{"$f":"VLOOKUP(J32,DROPLIST!T:V,3,FALSE)","v":0},0,null,null,"1. Penyataan"]
[25,null,"Pilihan Klasifikasi Isu","Pilihan Kategori Isu",null,null,"Pilihan Tahap Keterukan",{"$f":"VLOOKUP(G33,DROPLIST!P:Q,2,FALSE)","v":"-"},{"$f":"VLOOKUP(G33,DROPLIST!P:R,3,FALSE)","v":0},"Pilihan Tahap Kemungkinan",{"$f":"VLOOKUP(J33,DROPLIST!T:U,2,FALSE)","v":"-"},{"$f":"VLOOKUP(J33,DROPLIST!T:V,3,FALSE)","v":0},0,null,null,"1. Penyataan"]
[null,null,null,null,null,null,null,"Jumlah Skor",{"$f":"SUM(I9:I33)","v":43},null,"Jumlah Skor",{"$f":"SUM(L9:L33)","v":38},{"$f":"I38*L38","v":4}]
[null,null,null,null,null,null,null,"Bil Penyataan Isu",{"$f":"COUNTIF(I9:I33,\">0\")","v":21},null,"Bil Penyataan Isu",{"$f":"COUNTIF(L9:L33,\">0\")","v":21}]
[null,null,null,null,null,null,null,"Max skor",{"$f":"I35*5","v":105},null,"Max skor",{"$f":"L35*5","v":105}]
[null,null,null,null,null,null,null,"Skor Risiko Keterukan",{"$f":"(I34/I36)*5","v":2.0476190476190474},null,"Skor Risiko  Kemungkinan ",{"$f":"(L34/L36)*5","v":1.8095238095238095}]
[null,null,null,null,null,null,null,"Rounding",{"$f":"ROUND(I37,0)","v":2},null,"Rounding",{"$f":"ROUND(L37,0)","v":2}]

{"sheet":"PENILAIAN (Q2)","index":2,"n_rows":38,"n_cols":25,"rows_kept":38,"cut":false,"hidden":false,"merged":[[33,18,37,18],[33,9,37,9],[4,0,4,3],[4,4,4,11],[6,5,6,6],[6,7,6,8],[5,0,7,0],[5,1,7,1],[5,2,7,2],[5,3,7,3],[5,4,7,4],[33,4,37,5],[5,10,7,10],[5,11,7,11],[5,12,5,18],[4,12,4,21],[5,19,5,21],[5,5,5,8],[5,9,7,9],[6,12,6,14],[6,15,6,17],[6,18,7,18],[6,19,7,19],[6,20,7,20],[6,21,7,21]]}
[]
[]
[]
[]
["Penyataan Isu",null,null,null,"Penyataan Risiko & Tindakan",null,null,null,null,null,null,null,"Keberkesanan Tindakan (Semakan Sukuan Kedua 2019 - Q2)"]
["Bil.","Penyataan Isu","Dalaman/ Luaran\n[DROPLIST]","Kategori Isu*\n[DROPLIST]","Penyataan Risiko ","Penyata Risiko Secara Mudah",null,null,null,"Skor Penyataan Risiko","Nyatakan Strategi Tindakan \nUntuk Risiko (Kuning) dan Risiko (Merah) sahaja","Dokumen Sokongan \n(Bukti tindakan)","Penilaian Risiko",null,null,null,null,null,null,"Keputusan / Kawalan Tindakan Risiko"]
[null,null,null,null,null,"Keterukan \n[DROPLIST]",null,"Kemungkinan\n[DROPLIST]",null,null,null,null,"Keterukan \n[DROPLIST]",null,null,"Kemungkinan\n[DROPLIST]",null,null,"Total Skor Isu","Tindakan Ke Atas Risiko","Penerangan Tindakan ","Catatan\n"]
[null,null,null,null,null,"Tahap","Skor","Tahap","Skor",null,null,null,"Tahap","Penerangan Tahap","Skor","Tahap","Penerangan Tahap","Skor"]
[{"$f":"PENYATAAN!A9","v":1},{"$f":"PENYATAAN!B9","v":"Pengurangan jumlah permohonan menyebabkan bilangan pemfailan  harta intelek  dalam dan luar negara  terjejas         "},{"$f":"PENYATAAN!C9","v":"Dalaman"},{"$f":"PENYATAAN!D9","v":"Penyelidikan & Inovasi"},{"$f":"PENYATAAN!E9","v":"i. Menjejaskan KPI Penyelidikan dan Inovasi (Pemfailan harta intelek)"},{"$f":"PENYATAAN!G9","v":"Tidak Ketara"},{"$f":"VLOOKUP(F9,DROPLIST!P:R,3,FALSE)","v":1},{"$f":"PENYATAAN!J9","v":"Tidak Dapat Dijangka"},{"$f":"VLOOKUP(H9,DROPLIST!T:V,3,FALSE)","v":1},{"$f":"G9*I9","v":1},{"$f":"PENYATAAN!N9","v":0},{"$f":"PENYATAAN!O9","v":"Pemantauan secara berterusan"},"Kecil",{"$f":"VLOOKUP(M9,DROPLIST!P:Q,2,FALSE)","v":"Impak yang boleh dikendalikan di peringkat Bahagian/Jabatan/Unit di PTJ"},{"$f":"VLOOKUP(M9,DROPLIST!P:R,3,FALSE)","v":2},"Jarang Sekali",{"$f":"VLOOKUP(P9,DROPLIST!T:U,2,FALSE)","v":"Belum diketahui berlaku selepas beberapa tahun"},{"$f":"VLOOKUP(P9,DROPLIST!T:V,3,FALSE)","v":2},{"$f":"O9*R9","v":4},"Tolak Ansur (Tolerate)",{"$f":"VLOOKUP(T9,DROPLIST!X:Y,2,FALSE)","v":"Risiko yang boleh diterima oleh Pusat Tanggungjawab (PTJ) tanpa sebarang kerugian. Risiko ini boleh dikawal secara efisien menggunakan sistem kawalan sedia ada"},"Pemantauan secara berterusan","2. Penilaian - Q2"]
[{"$f":"PENYATAAN!A10","v":2},{"$f":"PENYATAAN!B10","v":"Kekangan peruntukan bagi perlindungan harta intelek menyebab universiti menanggung kos perlindungan harta intelek luar negara yang tinggi "},{"$f":"PENYATAAN!C10","v":"Dalaman"},{"$f":"PENYATAAN!D10","v":"Penyelidikan & Inovasi"},{"$f":"PENYATAAN!E10","v":"i. Menjejaskan KPI Penyelidikan dan Inovasi (Pemfailan harta intelek)"},{"$f":"PENYATAAN!G10","v":"Kecil"},{"$f":"VLOOKUP(F10,DROPLIST!P:R,3,FALSE)","v":2},{"$f":"PENYATAAN!J10","v":"Jarang Sekali"},{"$f":"VLOOKUP(H10,DROPLIST!T:V,3,FALSE)","v":2},4,{"$f":"PENYATAAN!N10","v":0},{"$f":"PENYATAAN!O10","v":"1. Pemantauan secara berterusan.\n\n2. Pembangunan garis panduan penamatan harta intelek telah dibentangkan sebanyak 2 kali dalam mesyuarat JKPU pada tahun 2018. Garis panduan ini akan dibawa untuk kelulusan mesyuarat Jwatankuasa Pengurusan Universiti."},"Kecil",{"$f":"VLOOKUP(M10,DROPLIST!P:Q,2,FALSE)","v":"Impak yang boleh dikendalikan di peringkat Bahagian/Jabatan/Unit di PTJ"},{"$f":"VLOOKUP(M10,DROPLIST!P:R,3,FALSE)","v":2},"Jarang Sekali",{"$f":"VLOOKUP(P10,DROPLIST!T:U,2,FALSE)","v":"Belum diketahui berlaku selepas beberapa tahun"},{"$f":"VLOOKUP(P10,DROPLIST!T:V,3,FALSE)","v":2},{"$f":"O10*R10","v":4},"Tolak Ansur (Tolerate)",{"$f":"VLOOKUP(T10,DROPLIST!X:Y,2,FALSE)","v":"Risiko yang boleh diterima oleh Pusat Tanggungjawab (PTJ) tanpa sebarang kerugian. Risiko ini boleh dikawal secara efisien menggunakan sistem kawalan sedia ada"},"Pemantauan secara berterusan","2. Penilaian - Q2",null,"   "]
[{"$f":"PENYATAAN!A11","v":3},{"$f":"PENYATAAN!B11","v":"Pengiktirafan UPM sebagai organisasi pengurusan harta intelek terbaik negara meningkatkan peluang perniagaan baharu Putra Dynamic kerana menjadi pakar rujuk "},{"$f":"PENYATAAN!C11","v":"Dalaman"},{"$f":"PENYATAAN!D11","v":"Penyelidikan & Inovasi"},{"$f":"PENYATAAN!E11","v":"Meningkatkan bilangan peserta luar yang menyertai latihan "},{"$f":"PENYATAAN!G11","v":"Tidak Ketara"},{"$f":"VLOOKUP(F11,DROPLIST!P:R,3,FALSE)","v":1},{"$f":"PENYATAAN!J11","v":"Tidak Dapat Dijangka"},{"$f":"VLOOKUP(H11,DROPLIST!T:V,3,FALSE)","v":1},1,{"$f":"PENYATAAN!N11","v":0},{"$f":"PENYATAAN!O11","v":"Pemantauan secara berterusan"},"Kecil",{"$f":"VLOOKUP(M11,DROPLIST!P:Q,2,FALSE)","v":"Impak yang boleh dikendalikan di peringkat Bahagian/Jabatan/Unit di PTJ"},{"$f":"VLOOKUP(M11,DROPLIST!P:R,3,FALSE)","v":2},"Jarang Sekali",{"$f":"VLOOKUP(P11,DROPLIST!T:U,2,FALSE)","v":"Belum diketahui berlaku selepas beberapa tahun"},{"$f":"VLOOKUP(P11,DROPLIST!T:V,3,FALSE)","v":2},4,"Tolak Ansur (Tolerate)",{"$f":"VLOOKUP(T11,DROPLIST!X:Y,2,FALSE)","v":"Risiko yang boleh diterima oleh Pusat Tanggungjawab (PTJ) tanpa sebarang kerugian. Risiko ini boleh dikawal secara efisien menggunakan sistem kawalan sedia ada"},"Pemantauan secara berterusan","2. Penilaian - Q2"]
[{"$f":"PENYATAAN!A12","v":4},{"$f":"PENYATAAN!B12","v":"Pembayaran balik dana Mikrokredit tidak dilunaskan oleh peserta menyebabkan kurang dana untuk ditawarkan kepada peserta yang baharu"},{"$f":"PENYATAAN!C12","v":"Dalaman"},{"$f":"PENYATAAN!D12","v":"Penyelidikan & Inovasi"},{"$f":"PENYATAAN!E12","v":"Usahawan pelajar baharu tidak dapat dilahirkan "},{"$f":"PENYATAAN!G12","v":"Kecil"},{"$f":"VLOOKUP(F12,DROPLIST!P:R,3,FALSE)","v":2},{"$f":"PENYATAAN!J12","v":"Tidak Dapat Dijangka"},{"$f":"VLOOKUP(H12,DROPLIST!T:V,3,FALSE)","v":1},2,{"$f":"PENYATAAN!N12","v":0},{"$f":"PENYATAAN!O12","v":"Pemantauan secara berterusan"},"Kecil",{"$f":"VLOOKUP(M12,DROPLIST!P:Q,2,FALSE)","v":"Impak yang boleh dikendalikan di peringkat Bahagian/Jabatan/Unit di PTJ"},{"$f":"VLOOKUP(M12,DROPLIST!P:R,3,FALSE)","v":2},"Tidak Dapat Dijangka",{"$f":"VLOOKUP(P12,DROPLIST!T:U,2,FALSE)","v":"Boleh dikatakan mustahil dan tidak pernah berlaku"},{"$f":"VLOOKUP(P12,DROPLIST!T:V,3,FALSE)","v":1},2,"Tolak Ansur (Tolerate)",{"$f":"VLOOKUP(T12,DROPLIST!X:Y,2,FALSE)","v":"Risiko yang boleh diterima oleh Pusat Tanggungjawab (PTJ) tanpa sebarang kerugian. Risiko ini boleh dikawal secara efisien menggunakan sistem kawalan sedia ada"},"Pemantauan secara berterusan","2. Penilaian - Q2"]
[{"$f":"PENYATAAN!A13","v":5},{"$f":"PENYATAAN!B13","v":"Kurang penyertaan permohonan dana program Mikrokredit menyebabkan dana tidak dapat dimanfaatkan"},{"$f":"PENYATAAN!C13","v":"Dalaman"},{"$f":"PENYATAAN!D13","v":"Penyelidikan & Inovasi"},{"$f":"PENYATAAN!E13","v":"Usahawan pelajar baharu tidak dapat dilahirkan "},{"$f":"PENYATAAN!G13","v":"Kecil"},{"$f":"VLOOKUP(F13,DROPLIST!P:R,3,FALSE)","v":2},{"$f":"PENYATAAN!J13","v":"Jarang Sekali"},{"$f":"VLOOKUP(H13,DROPLIST!T:V,3,FALSE)","v":2},4,{"$f":"PENYATAAN!N13","v":0},{"$f":"PENYATAAN!O13","v":"Risiko telah dikawal"},"Tidak Ketara",{"$f":"VLOOKUP(M13,DROPLIST!P:Q,2,FALSE)","v":"Impak yang boleh diabaikan"},{"$f":"VLOOKUP(M13,DROPLIST!P:R,3,FALSE)","v":1},"Tidak Dapat Dijangka",{"$f":"VLOOKUP(P13,DROPLIST!T:U,2,FALSE)","v":"Boleh dikatakan mustahil dan tidak pernah berlaku"},{"$f":"VLOOKUP(P13,DROPLIST!T:V,3,FALSE)","v":1},1,"Tolak Ansur (Tolerate)",{"$f":"VLOOKUP(T13,DROPLIST!X:Y,2,FALSE)","v":"Risiko yang boleh diterima oleh Pusat Tanggungjawab (PTJ) tanpa sebarang kerugian. Risiko ini boleh dikawal secara efisien menggunakan sistem kawalan sedia ada"},"Risiko telah dikawal","2. Penilaian - Q2"]
[{"$f":"PENYATAAN!A14","v":6},{"$f":"PENYATAAN!B14","v":"Peruntukan bagi aktiviti promosi dan pemasaran inovasi yang berkurangan setiap tahun -Pemotongan peruntukan daripada kerajaan  (-30% bagi tahun 2017) menyebabkan aktiviti promosi berkurangan bagi mendapatkan industri yang berpotensi menjalankan kerjasama dengan UPM "},{"$f":"PENYATAAN!C14","v":"Luaran"},{"$f":"PENYATAAN!D14","v":"Penyelidikan & Inovasi"},{"$f":"PENYATAAN!E14","v":"i. Menjejaskan KPI Promosi dan Pemasaran Inovasi PSP - Bilangan industri"},{"$f":"PENYATAAN!G14","v":"Kecil"},{"$f":"VLOOKUP(F14,DROPLIST!P:R,3,FALSE)","v":2},{"$f":"PENYATAAN!J14","v":"Jarang Sekali"},{"$f":"VLOOKUP(H14,DROPLIST!T:V,3,FALSE)","v":2},4,{"$f":"PENYATAAN!N14","v":0},{"$f":"PENYATAAN!O14","v":"Pemantauan secara berterusan"},"Tidak Ketara",{"$f":"VLOOKUP(M14,DROPLIST!P:Q,2,FALSE)","v":"Impak yang boleh diabaikan"},{"$f":"VLOOKUP(M14,DROPLIST!P:R,3,FALSE)","v":1},"Tidak Dapat Dijangka",{"$f":"VLOOKUP(P14,DROPLIST!T:U,2,FALSE)","v":"Boleh dikatakan mustahil dan tidak pernah berlaku"},{"$f":"VLOOKUP(P14,DROPLIST!T:V,3,FALSE)","v":1},1,"Tolak Ansur (Tolerate)",{"$f":"VLOOKUP(T14,DROPLIST!X:Y,2,FALSE)","v":"Risiko yang boleh diterima oleh Pusat Tanggungjawab (PTJ) tanpa sebarang kerugian. Risiko ini boleh dikawal secara efisien menggunakan sistem kawalan sedia ada"},null,"2. Penilaian - Q2"]
[{"$f":"PENYATAAN!A15","v":7},{"$f":"PENYATAAN!B15","v":"Kesukaran memasang bunting promosi dan staf berisiko mengalami kecederaan semasa memasang bunting aktiviti promosi pada tiang lampu setiap kali program dijalankan menyebabkan kecederaan kepada staf yang memasang bunting "},{"$f":"PENYATAAN!C15","v":"Dalaman"},{"$f":"PENYATAAN!D15","v":"Penyelidikan & Inovasi"},{"$f":"PENYATAAN!E15","v":"Menjejaskan keselamatan dan kebajikan pekerja"},{"$f":"PENYATAAN!G15","v":"Tidak Ketara"},{"$f":"VLOOKUP(F15,DROPLIST!P:R,3,FALSE)","v":1},{"$f":"PENYATAAN!J15","v":"Tidak Dapat Dijangka"},{"$f":"VLOOKUP(H15,DROPLIST!T:V,3,FALSE)","v":1},1,{"$f":"PENYATAAN!N15","v":0},{"$f":"PENYATAAN!O15","v":"Tempoh pelaksanaan : Jun 2018"},"Tidak Ketara",{"$f":"VLOOKUP(M15,DROPLIST!P:Q,2,FALSE)","v":"Impak yang boleh diabaikan"},{"$f":"VLOOKUP(M15,DROPLIST!P:R,3,FALSE)","v":1},"Tidak Dapat Dijangka",{"$f":"VLOOKUP(P15,DROPLIST!T:U,2,FALSE)","v":"Boleh dikatakan mustahil dan tidak pernah berlaku"},{"$f":"VLOOKUP(P15,DROPLIST!T:V,3,FALSE)","v":1},1,"Tolak Ansur (Tolerate)",{"$f":"VLOOKUP(T15,DROPLIST!X:Y,2,FALSE)","v":"Risiko yang boleh diterima oleh Pusat Tanggungjawab (PTJ) tanpa sebarang kerugian. Risiko ini boleh dikawal secara efisien menggunakan sistem kawalan sedia ada"},"Risiko telah dikawal","2. Penilaian - Q2"]
[{"$f":"PENYATAAN!A16","v":8},{"$f":"PENYATAAN!B16","v":"Kesalahan penterjemahan kenyataan media bagi hebahan promosi hasil penyelidikan oleh wartawan\n - Wartawan salah faham/kurang faham penjelasan teknikal daripada penyelidik semasa sidang media "},{"$f":"PENYATAAN!C16","v":"Luaran"},{"$f":"PENYATAAN!D16","v":"Penyelidikan & Inovasi"},{"$f":"PENYATAAN!E16","v":"Menjejaskan reputasi dan memberi maklumat yang salah kepada orang awam /pembaca"},{"$f":"PENYATAAN!G16","v":"Tinggi"},{"$f":"VLOOKUP(F16,DROPLIST!P:R,3,FALSE)","v":4},{"$f":"PENYATAAN!J16","v":"Tidak Dapat Dijangka"},{"$f":"VLOOKUP(H16,DROPLIST!T:V,3,FALSE)","v":1},4,{"$f":"PENYATAAN!N16","v":0},{"$f":"PENYATAAN!O16","v":"Kawalan sedia ada adalah berkesan"},"Tidak Ketara",{"$f":"VLOOKUP(M16,DROPLIST!P:Q,2,FALSE)","v":"Impak yang boleh diabaikan"},{"$f":"VLOOKUP(M16,DROPLIST!P:R,3,FALSE)","v":1},"Tidak Dapat Dijangka",{"$f":"VLOOKUP(P16,DROPLIST!T:U,2,FALSE)","v":"Boleh dikatakan mustahil dan tidak pernah berlaku"},{"$f":"VLOOKUP(P16,DROPLIST!T:V,3,FALSE)","v":1},1,"Tolak Ansur (Tolerate)",{"$f":"VLOOKUP(T16,DROPLIST!X:Y,2,FALSE)","v":"Risiko yang boleh diterima oleh Pusat Tanggungjawab (PTJ) tanpa sebarang kerugian. Risiko ini boleh dikawal secara efisien menggunakan sistem kawalan sedia ada"},null,"2. Penilaian - Q2"]
[{"$f":"PENYATAAN!A17","v":9},{"$f":"PENYATAAN!B17","v":"Permohonan Suai Padan Teknologi (SPT) yang sukar mendapat maklumbalas PTJ/lain, tidak dibuat susulan selanjutnya selepas promosi tamat menyebabkan peluang kerjasama dengan industri tidak dapat diteruskan"},{"$f":"PENYATAAN!C17","v":"Dalaman"},{"$f":"PENYATAAN!D17","v":"Penyelidikan & Inovasi"},{"$f":"PENYATAAN!E17","v":"Menjejaskan KPI Penyelidikan dan inovasi  (TKHL)"},{"$f":"PENYATAAN!G17","v":"Kecil"},{"$f":"VLOOKUP(F17,DROPLIST!P:R,3,FALSE)","v":2},{"$f":"PENYATAAN!J17","v":"Dapat Dijangka"},{"$f":"VLOOKUP(H17,DROPLIST!T:V,3,FALSE)","v":3},6,{"$f":"PENYATAAN!N17","v":"1- Pemantauan secara manual melalui Jadual Pemantauan Kerja SPT di papan putih Pejabat\n2- Memberi maklumbalas penerimaan permohonan industri selepas aktiviti promosi tamat sebelum dipantau melalui Jadual Pemantauan Kerja"},{"$f":"PENYATAAN!O17","v":"Tempoh pelaksanaan : Mac 2019\n\nPemantauan menggunakan colour-coding database mengikut tempoh maklumbalas tertentu, bagi setiap industri yang akan ditetapkan semula - akan digunakan bagi menggantikan kaedah manual yang masih  belum berkesan."},"Kecil",{"$f":"VLOOKUP(M17,DROPLIST!P:Q,2,FALSE)","v":"Impak yang boleh dikendalikan di peringkat Bahagian/Jabatan/Unit di PTJ"},{"$f":"VLOOKUP(M17,DROPLIST!P:R,3,FALSE)","v":2},"Dapat Dijangka",{"$f":"VLOOKUP(P17,DROPLIST!T:U,2,FALSE)","v":"Mungkin berlaku pada masa akan datang"},{"$f":"VLOOKUP(P17,DROPLIST!T:V,3,FALSE)","v":3},6,"Tolak Ansur (Tolerate)",{"$f":"VLOOKUP(T17,DROPLIST!X:Y,2,FALSE)","v":"Risiko yang boleh diterima oleh Pusat Tanggungjawab (PTJ) tanpa sebarang kerugian. Risiko ini boleh dikawal secara efisien menggunakan sistem kawalan sedia ada"},"Tempoh pelaksanaan : 30 Julai 2019 \nMenambahbaik lagi database IRM di dalam file excell dengan menggunakan :\n1- setting dateline bagi setiap kes secara automatik","2. Penilaian - Q2"]
[{"$f":"PENYATAAN!A18","v":10},{"$f":"PENYATAAN!B18","v":"Kurang penyertaan permohonan dana promosi produk daripada penyelidik  menyebabkan kurang bilangan projek diluluskan"},{"$f":"PENYATAAN!C18","v":"Dalaman"},{"$f":"PENYATAAN!D18","v":"Penyelidikan & Inovasi"},{"$f":"PENYATAAN!E18","v":"Tidak mencapai sasaran KPI Dana Promosi yang ditetapkan"},{"$f":"PENYATAAN!G18","v":"Kecil"},{"$f":"VLOOKUP(F18,DROPLIST!P:R,3,FALSE)","v":2},{"$f":"PENYATAAN!J18","v":"Jarang Sekali"},{"$f":"VLOOKUP(H18,DROPLIST!T:V,3,FALSE)","v":2},4,{"$f":"PENYATAAN!N18","v":0},{"$f":"PENYATAAN!O18","v":"Tempoh pelaksanaan : Oktober 2018\n\nDana Promosi telah dihentikan penawaran dan perkhidmatannya kepada penyelidik UPM di sebabkan kekurangan Dana RU. "},"Tidak Ketara",{"$f":"VLOOKUP(M18,DROPLIST!P:Q,2,FALSE)","v":"Impak yang boleh diabaikan"},{"$f":"VLOOKUP(M18,DROPLIST!P:R,3,FALSE)","v":1},"Tidak Dapat Dijangka",{"$f":"VLOOKUP(P18,DROPLIST!T:U,2,FALSE)","v":"Boleh dikatakan mustahil dan tidak pernah berlaku"},{"$f":"VLOOKUP(P18,DROPLIST!T:V,3,FALSE)","v":1},1,"Tolak Ansur (Tolerate)",{"$f":"VLOOKUP(T18,DROPLIST!X:Y,2,FALSE)","v":"Risiko yang boleh diterima oleh Pusat Tanggungjawab (PTJ) tanpa sebarang kerugian. Risiko ini boleh dikawal secara efisien menggunakan sistem kawalan sedia ada"},"Dana Promosi telah dihentikan penawaran dan perkhidmatannya kepada penyelidik UPM di sebabkan kekurangan Dana RU. ","2. Penilaian - Q2"]
[{"$f":"PENYATAAN!A19","v":11},{"$f":"PENYATAAN!B19","v":"Kekurangan Staf Edu-Park bagi mengendalikan aktiviti yang disertai pelawat diseluruh lokasi Edupark UPM menyebabkan kerja tidak dilaksanakan dengan lancar"},{"$f":"PENYATAAN!C19","v":"Dalaman"},{"$f":"PENYATAAN!D19","v":"Penyelidikan & Inovasi"},{"$f":"PENYATAAN!E19","v":"Menjejaskan KPI penjanaan dana Edupark"},{"$f":"PENYATAAN!G19","v":"Tidak Ketara"},{"$f":"VLOOKUP(F19,DROPLIST!P:R,3,FALSE)","v":1},{"$f":"PENYATAAN!J19","v":"Jarang Sekali"},{"$f":"VLOOKUP(H19,DROPLIST!T:V,3,FALSE)","v":2},2,{"$f":"PENYATAAN!N19","v":0},{"$f":"PENYATAAN!O19","v":"Pelaksanaan berterusan. Menggunakan khidmat pelajar Putra Bakti dan pelajar latihan industri untuk menampung tenaga sumber manusia. "},"Tidak Ketara",{"$f":"VLOOKUP(M19,DROPLIST!P:Q,2,FALSE)","v":"Impak yang boleh diabaikan"},{"$f":"VLOOKUP(M19,DROPLIST!P:R,3,FALSE)","v":1},"Tidak Dapat Dijangka",{"$f":"VLOOKUP(P19,DROPLIST!T:U,2,FALSE)","v":"Boleh dikatakan mustahil dan tidak pernah berlaku"},{"$f":"VLOOKUP(P19,DROPLIST!T:V,3,FALSE)","v":1},1,"Tolak Ansur (Tolerate)",{"$f":"VLOOKUP(T19,DROPLIST!X:Y,2,FALSE)","v":"Risiko yang boleh diterima oleh Pusat Tanggungjawab (PTJ) tanpa sebarang kerugian. Risiko ini boleh dikawal secara efisien menggunakan sistem kawalan sedia ada"},"Risiko berjaya dikawal","2. Penilaian - Q2"]
[{"$f":"PENYATAAN!A20","v":12},{"$f":"PENYATAAN!B20","v":"Kekurangan Peruntukan Kewangan bagi pengurusan Edu-Park menyebabkan penyelenggaraan /penggantian peralatan tidak dapat dijalankan dan pembelian bahan pameran dan modul tidak dapat dilakukan"},{"$f":"PENYATAAN!C20","v":"Dalaman"},{"$f":"PENYATAAN!D20","v":"Penyelidikan & Inovasi"},{"$f":"PENYATAAN!E20","v":"Menjejaskan KPI penjanaan dana Edupark"},{"$f":"PENYATAAN!G20","v":"Tidak Ketara"},{"$f":"VLOOKUP(F20,DROPLIST!P:R,3,FALSE)","v":1},{"$f":"PENYATAAN!J20","v":"Jarang Sekali"},{"$f":"VLOOKUP(H20,DROPLIST!T:V,3,FALSE)","v":2},2,{"$f":"PENYATAAN!N20","v":0},{"$f":"PENYATAAN!O20","v":"Naiktaraf /Selenggara menggunakan peruntukan sedia ada dan sederhana "},"Tidak Ketara",{"$f":"VLOOKUP(M20,DROPLIST!P:Q,2,FALSE)","v":"Impak yang boleh diabaikan"},{"$f":"VLOOKUP(M20,DROPLIST!P:R,3,FALSE)","v":1},"Tidak Dapat Dijangka",{"$f":"VLOOKUP(P20,DROPLIST!T:U,2,FALSE)","v":"Boleh dikatakan mustahil dan tidak pernah berlaku"},{"$f":"VLOOKUP(P20,DROPLIST!T:V,3,FALSE)","v":1},1,"Tolak Ansur (Tolerate)",{"$f":"VLOOKUP(T20,DROPLIST!X:Y,2,FALSE)","v":"Risiko yang boleh diterima oleh Pusat Tanggungjawab (PTJ) tanpa sebarang kerugian. Risiko ini boleh dikawal secara efisien menggunakan sistem kawalan sedia ada"},"Risiko dikawal dengan pemantauan bajet","2. Penilaian - Q2"]
[{"$f":"PENYATAAN!A21","v":13},{"$f":"PENYATAAN!B21","v":"Tahap keselamatan pelawat Edu-Park berisiko mengalami kecederaan semasa lawatan pelawat Edupark "},{"$f":"PENYATAAN!C21","v":"Dalaman"},{"$f":"PENYATAAN!D21","v":"Penyelidikan & Inovasi"},{"$f":"PENYATAAN!E21","v":"Menjejaskan reputasi Universiti"},{"$f":"PENYATAAN!G21","v":"Tidak Ketara"},{"$f":"VLOOKUP(F21,DROPLIST!P:R,3,FALSE)","v":1},{"$f":"PENYATAAN!J21","v":"Tidak Dapat Dijangka"},{"$f":"VLOOKUP(H21,DROPLIST!T:V,3,FALSE)","v":1},1,{"$f":"PENYATAAN!N21","v":0},{"$f":"PENYATAAN!O21","v":"Pelaksanaan berterusan. Kenderaan rasmi jabatan juga digunakan sebagai kenderaan 'standby' jika berlaku kemalangan."},"Tidak Ketara",{"$f":"VLOOKUP(M21,DROPLIST!P:Q,2,FALSE)","v":"Impak yang boleh diabaikan"},{"$f":"VLOOKUP(M21,DROPLIST!P:R,3,FALSE)","v":1},"Tidak Dapat Dijangka",{"$f":"VLOOKUP(P21,DROPLIST!T:U,2,FALSE)","v":"Boleh dikatakan mustahil dan tidak pernah berlaku"},{"$f":"VLOOKUP(P21,DROPLIST!T:V,3,FALSE)","v":1},1,"Tolak Ansur (Tolerate)",{"$f":"VLOOKUP(T21,DROPLIST!X:Y,2,FALSE)","v":"Risiko yang boleh diterima oleh Pusat Tanggungjawab (PTJ) tanpa sebarang kerugian. Risiko ini boleh dikawal secara efisien menggunakan sistem kawalan sedia ada"},"Pengurusan risiko dijalankan setiap aktiviti","2. Penilaian - Q2"]
[{"$f":"PENYATAAN!A22","v":14},{"$f":"PENYATAAN!B22","v":"kehadiran pelawat tidak mengikut ketetapan waktu yang telah dibuat oleh Edu-Park"},{"$f":"PENYATAAN!C22","v":"Luaran"},{"$f":"PENYATAAN!D22","v":"Penyelidikan & Inovasi"},{"$f":"PENYATAAN!E22","v":"Mengganggu perjalanan waktu lawatan "},{"$f":"PENYATAAN!G22","v":"Tidak Ketara"},{"$f":"VLOOKUP(F22,DROPLIST!P:R,3,FALSE)","v":1},{"$f":"PENYATAAN!J22","v":"Dapat Dijangka"},{"$f":"VLOOKUP(H22,DROPLIST!T:V,3,FALSE)","v":3},3,{"$f":"PENYATAAN!N22","v":0},{"$f":"PENYATAAN!O22","v":"Pelaksanaan berterusan. Tiada masalah besar dalam menyusun atur semula masa lawatan"},"Tidak Ketara",{"$f":"VLOOKUP(M22,DROPLIST!P:Q,2,FALSE)","v":"Impak yang boleh diabaikan"},{"$f":"VLOOKUP(M22,DROPLIST!P:R,3,FALSE)","v":1},"Tidak Dapat Dijangka",{"$f":"VLOOKUP(P22,DROPLIST!T:U,2,FALSE)","v":"Boleh dikatakan mustahil dan tidak pernah berlaku"},{"$f":"VLOOKUP(P22,DROPLIST!T:V,3,FALSE)","v":1},1,"Tolak Ansur (Tolerate)",{"$f":"VLOOKUP(T22,DROPLIST!X:Y,2,FALSE)","v":"Risiko yang boleh diterima oleh Pusat Tanggungjawab (PTJ) tanpa sebarang kerugian. Risiko ini boleh dikawal secara efisien menggunakan sistem kawalan sedia ada"},"Pelaksanaan berterusan","2. Penilaian - Q2"]
[{"$f":"PENYATAAN!A23","v":15},{"$f":"PENYATAAN!B23","v":"Sesi perundingan perniagaan (business negotiation) melibatkan pemindahan  teknologi yang dapat dilaksanakan dengan pihak industri adalah terhad kerana kekurangan perunding perniagaan(business negotiator) yang bertauliah dalam bidang pemindahan teknologi yang diiktiraf oleh universiti"},{"$f":"PENYATAAN!C23","v":"Dalaman"},{"$f":"PENYATAAN!D23","v":"Penyelidikan & Inovasi"},{"$f":"PENYATAAN!E23","v":"i. Menjejaskan KPI Penyelidikan dan Inovasi (TKHL )"},{"$f":"PENYATAAN!G23","v":"Sederhana"},{"$f":"VLOOKUP(F23,DROPLIST!P:R,3,FALSE)","v":3},{"$f":"PENYATAAN!J23","v":"Paling Mungkin"},{"$f":"VLOOKUP(H23,DROPLIST!T:V,3,FALSE)","v":5},15,{"$f":"PENYATAAN!N23","v":"1. Pembangunan kapasti(capacity building) kakitangan UPM yang terlibat dengan aktiviti pemindahan teknologi melalui  penyertaan program-program pentauliahan yang berkenaan dengan pemindahan teknologi seperti kursus Registered Technology Transfer Profesional(RTTP) dengan Association of University Technology Managers(AUTM) , Licensing Academy dengan U.C. Davis dan sebagainya.  \n\n2. Pengiktirafan oleh pihak Berkuasa Universiti kepada kakitangan UPM yang telah dilatih seperti di atas untuk kakitangan terbabit melaksanakan perundingan perniagaan (business negotiation) bagi pihak UPM bagi tujuan pemindahan teknologi. \n"},{"$f":"PENYATAAN!O23","v":" Strategi tidak dapat dilaksanakan kerana kekangan kewangan Universiti untuk menghantar kakitangan UPM menghadiri kursus-kursus bertauliah.Permohonan peruntukan akan dibuat bagi tahun 2019."},"Kecil",{"$f":"VLOOKUP(M23,DROPLIST!P:Q,2,FALSE)","v":"Impak yang boleh dikendalikan di peringkat Bahagian/Jabatan/Unit di PTJ"},{"$f":"VLOOKUP(M23,DROPLIST!P:R,3,FALSE)","v":2},"Dapat Dijangka",{"$f":"VLOOKUP(P23,DROPLIST!T:U,2,FALSE)","v":"Mungkin berlaku pada masa akan datang"},{"$f":"VLOOKUP(P23,DROPLIST!T:V,3,FALSE)","v":3},6,"Rawat \n(Treat)",{"$f":"VLOOKUP(T23,DROPLIST!X:Y,2,FALSE)","v":"Risiko yang boleh dirawat oleh PTJ dengan menggunakan sumber sedia ada. Kombinasi hierarki kawalan adalah sesuai diamalkan bagi memastikan kadar risiko adalah sentiasa terkawal"},"Isu:\nTiada mandat sebagai perunding perniagaan (business negotiator) kepada kakitangan UPM yang telah mengikuti program-program pentauliahan yang berkenaan dengan pemindahan teknologi seperti kursus Registered Technology Transfer Profesional(RTTP) dengan Association of University Technology Managers(AUTM) , Licensing Academy dengan U.C. Davis dan sebagainya.\n\nStrategi Tindakan:\nLantikan oleh pihak Berkuasa Universiti kepada kakitangan UPM yang telah dilatih seperti di atas untuk kakitangan terbabit melaksanakan perundingan perniagaan(business negotiation) bagi pihak UPM bagi tujuan pemindahan teknologi. ","2. Penilaian - Q2"]
[{"$f":"PENYATAAN!A24","v":16},{"$f":"PENYATAAN!B24","v":"Kekurangan peruntukan kewangan pengurusan dan promosi Putra Dynamics menyebabkan Promosi Putra Dynamics tidak dapat dilakukan secara agresif  "},{"$f":"PENYATAAN!C24","v":"Dalaman"},{"$f":"PENYATAAN!D24","v":"Penyelidikan & Inovasi"},{"$f":"PENYATAAN!E24","v":"Menjejaskan KPI bilangan peserta yang menyertai latihan "},{"$f":"PENYATAAN!G24","v":"Sederhana"},{"$f":"VLOOKUP(F24,DROPLIST!P:R,3,FALSE)","v":3},{"$f":"PENYATAAN!J24","v":"Tidak Dapat Dijangka"},{"$f":"VLOOKUP(H24,DROPLIST!T:V,3,FALSE)","v":1},3,{"$f":"PENYATAAN!N24","v":0},{"$f":"PENYATAAN!O24","v":"Strategi sedia ada adalah berkesan"},"Sederhana",{"$f":"VLOOKUP(M24,DROPLIST!P:Q,2,FALSE)","v":"Impak yang boleh dikendalikan secara normal oleh Pengurusan PTJ"},{"$f":"VLOOKUP(M24,DROPLIST!P:R,3,FALSE)","v":3},"Tidak Dapat Dijangka",{"$f":"VLOOKUP(P24,DROPLIST!T:U,2,FALSE)","v":"Boleh dikatakan mustahil dan tidak pernah berlaku"},{"$f":"VLOOKUP(P24,DROPLIST!T:V,3,FALSE)","v":1},3,"Rawat \n(Treat)",{"$f":"VLOOKUP(T24,DROPLIST!X:Y,2,FALSE)","v":"Risiko yang boleh dirawat oleh PTJ dengan menggunakan sumber sedia ada. Kombinasi hierarki kawalan adalah sesuai diamalkan bagi memastikan kadar risiko adalah sentiasa terkawal"},"Menjalinkan jaringan bersama pelawat-pelawat yang datang ke PSP  ","2. Penilaian - Q2"]
[{"$f":"PENYATAAN!A25","v":17},{"$f":"PENYATAAN!B25","v":"Kesukaran untuk mendapatkan pelanggan untuk menyertai latihan yang ditawarkan Putra Dynamics menyebabkan kurang penjanaan pendapatan"},{"$f":"PENYATAAN!C25","v":"Dalaman"},{"$f":"PENYATAAN!D25","v":"Penyelidikan & Inovasi"},{"$f":"PENYATAAN!E25","v":"Menjejaskan KPI bilangan peserta yang menyertai latihan "},{"$f":"PENYATAAN!G25","v":"Sederhana"},{"$f":"VLOOKUP(F25,DROPLIST!P:R,3,FALSE)","v":3},{"$f":"PENYATAAN!J25","v":"Tidak Dapat Dijangka"},{"$f":"VLOOKUP(H25,DROPLIST!T:V,3,FALSE)","v":1},3,{"$f":"PENYATAAN!N25","v":0},{"$f":"PENYATAAN!O25","v":"Strategi sedia ada adalah berkesan"},"Sederhana",{"$f":"VLOOKUP(M25,DROPLIST!P:Q,2,FALSE)","v":"Impak yang boleh dikendalikan secara normal oleh Pengurusan PTJ"},{"$f":"VLOOKUP(M25,DROPLIST!P:R,3,FALSE)","v":3},"Tidak Dapat Dijangka",{"$f":"VLOOKUP(P25,DROPLIST!T:U,2,FALSE)","v":"Boleh dikatakan mustahil dan tidak pernah berlaku"},{"$f":"VLOOKUP(P25,DROPLIST!T:V,3,FALSE)","v":1},3,"Rawat \n(Treat)",{"$f":"VLOOKUP(T25,DROPLIST!X:Y,2,FALSE)","v":"Risiko yang boleh dirawat oleh PTJ dengan menggunakan sumber sedia ada. Kombinasi hierarki kawalan adalah sesuai diamalkan bagi memastikan kadar risiko adalah sentiasa terkawal"},"Promosi melalui roadshow telah diadakan dibeberapa buah universiti dan agensi. Menghadiri program / sesi jaringan ","2. Penilaian - Q2"]
[{"$f":"PENYATAAN!A26","v":18},{"$f":"PENYATAAN!B26","v":"Nilai matawang negara (RM) berubah menyebabkan kos latihan  Putra Dynamic meningkatkan"},{"$f":"PENYATAAN!C26","v":"Luaran"},{"$f":"PENYATAAN!D26","v":"Penyelidikan & Inovasi"},{"$f":"PENYATAAN!E26","v":"Menjejaskan KPI bilangan peserta yang menyertai latihan "},{"$f":"PENYATAAN!G26","v":"Sederhana"},{"$f":"VLOOKUP(F26,DROPLIST!P:R,3,FALSE)","v":3},{"$f":"PENYATAAN!J26","v":"Tidak Dapat Dijangka"},{"$f":"VLOOKUP(H26,DROPLIST!T:V,3,FALSE)","v":1},3,{"$f":"PENYATAAN!N26","v":0},{"$f":"PENYATAAN!O26","v":"Kawalan sedia ada adalah berkesan"},"Sederhana",{"$f":"VLOOKUP(M26,DROPLIST!P:Q,2,FALSE)","v":"Impak yang boleh dikendalikan secara normal oleh Pengurusan PTJ"},{"$f":"VLOOKUP(M26,DROPLIST!P:R,3,FALSE)","v":3},"Tidak Dapat Dijangka",{"$f":"VLOOKUP(P26,DROPLIST!T:U,2,FALSE)","v":"Boleh dikatakan mustahil dan tidak pernah berlaku"},{"$f":"VLOOKUP(P26,DROPLIST!T:V,3,FALSE)","v":1},3,"Rawat \n(Treat)",{"$f":"VLOOKUP(T26,DROPLIST!X:Y,2,FALSE)","v":"Risiko yang boleh dirawat oleh PTJ dengan menggunakan sumber sedia ada. Kombinasi hierarki kawalan adalah sesuai diamalkan bagi memastikan kadar risiko adalah sentiasa terkawal"},"Meningkatkan kos perbelanjaan di dalam bajet pakej latihan inovasi ","2. Penilaian - Q2"]
[{"$f":"PENYATAAN!A27","v":19},{"$f":"PENYATAAN!B27","v":"Peserta Program Innohub menarik diri setelah program berjalan menyebabkan perancangan jadual perbatuan projek tidak dapat dilaksanakan"},{"$f":"PENYATAAN!C27","v":"Dalaman"},{"$f":"PENYATAAN!D27","v":"Penyelidikan & Inovasi"},{"$f":"PENYATAAN!E27","v":"Pelaksanaan projek tergendala dan teknologi tidak dapat dikomersilkan."},{"$f":"PENYATAAN!G27","v":"Kecil"},{"$f":"VLOOKUP(F27,DROPLIST!P:R,3,FALSE)","v":2},{"$f":"PENYATAAN!J27","v":"Jarang Sekali"},{"$f":"VLOOKUP(H27,DROPLIST!T:V,3,FALSE)","v":2},4,{"$f":"PENYATAAN!N27","v":0},{"$f":"PENYATAAN!O27","v":"Pelan sedia ada adalah berkesan"},"Kecil",{"$f":"VLOOKUP(M27,DROPLIST!P:Q,2,FALSE)","v":"Impak yang boleh dikendalikan di peringkat Bahagian/Jabatan/Unit di PTJ"},{"$f":"VLOOKUP(M27,DROPLIST!P:R,3,FALSE)","v":2},"Jarang Sekali",{"$f":"VLOOKUP(P27,DROPLIST!T:U,2,FALSE)","v":"Belum diketahui berlaku selepas beberapa tahun"},{"$f":"VLOOKUP(P27,DROPLIST!T:V,3,FALSE)","v":2},4,"Tolak Ansur (Tolerate)",{"$f":"VLOOKUP(T27,DROPLIST!X:Y,2,FALSE)","v":"Risiko yang boleh diterima oleh Pusat Tanggungjawab (PTJ) tanpa sebarang kerugian. Risiko ini boleh dikawal secara efisien menggunakan sistem kawalan sedia ada"},"Pelan penggantian Peserta baharu / projek ditamatkan","2. Penilaian - Q2"]
[{"$f":"PENYATAAN!A28","v":20},{"$f":"PENYATAAN!B28","v":"Tiada tambahan peruntukkan Dana RU InnoHub yang disalurkan menyebabkan Perkhidmatan Dana Innohub bagi membantu penyelidik mengkomersilkan produk kepada industri tidak dapat ditawarkan lagi"},{"$f":"PENYATAAN!C28","v":"Luaran"},{"$f":"PENYATAAN!D28","v":"Penyelidikan & Inovasi"},{"$f":"PENYATAAN!E28","v":"Program Innohub tidak dapat diteruskan"},{"$f":"PENYATAAN!G28","v":"Sederhana"},{"$f":"VLOOKUP(F28,DROPLIST!P:R,3,FALSE)","v":3},{"$f":"PENYATAAN!J28","v":"Tidak Dapat Dijangka"},{"$f":"VLOOKUP(H28,DROPLIST!T:V,3,FALSE)","v":1},{"$f":"G28*I28","v":3},{"$f":"PENYATAAN!N28","v":0},{"$f":"PENYATAAN!O28","v":"Strategi sedia ada adalah berkesan"},"Kecil",{"$f":"VLOOKUP(M28,DROPLIST!P:Q,2,FALSE)","v":"Impak yang boleh dikendalikan di peringkat Bahagian/Jabatan/Unit di PTJ"},{"$f":"VLOOKUP(M28,DROPLIST!P:R,3,FALSE)","v":2},"Tidak Dapat Dijangka",{"$f":"VLOOKUP(P28,DROPLIST!T:U,2,FALSE)","v":"Boleh dikatakan mustahil dan tidak pernah berlaku"},{"$f":"VLOOKUP(P28,DROPLIST!T:V,3,FALSE)","v":1},{"$f":"O28*R28","v":2},"Tolak Ansur (Tolerate)",{"$f":"VLOOKUP(T28,DROPLIST!X:Y,2,FALSE)","v":"Risiko yang boleh diterima oleh Pusat Tanggungjawab (PTJ) tanpa sebarang kerugian. Risiko ini boleh dikawal secara efisien menggunakan sistem kawalan sedia ada"},"Memberi latihan pitching kepada peserta  InnoHub untuk mendapatkan geran luar","2. Penilaian - Q2"]
[{"$f":"PENYATAAN!A29","v":21},{"$f":"PENYATAAN!B29","v":"Kesukaran membuang dawai lama dan staf berisiko mengalami kecederaan semasa membuang dawai lama bagi memasang bunting aktiviti promosi pada tiang lampu setiap kali program dijalankan menyebabkan kecederaan kepada staf yang memasang bunting "},{"$f":"PENYATAAN!C29","v":"Dalaman"},{"$f":"PENYATAAN!D29","v":"Penyelidikan & Inovasi"},{"$f":"PENYATAAN!E29","v":"Menjejaskan keselamatan dan kebajikan pekerja"},{"$f":"PENYATAAN!G29","v":"Sederhana"},{"$f":"VLOOKUP(F29,DROPLIST!P:R,3,FALSE)","v":3},{"$f":"PENYATAAN!J29","v":"Dapat Dijangka"},{"$f":"VLOOKUP(H29,DROPLIST!T:V,3,FALSE)","v":3},9,{"$f":"PENYATAAN!N29","v":"Tempoh pelaksanaan : 5 September 2019\n\n1 - Menjalankan program dan kempen kesedaran bagi membuang dawai lama/serpihan banting pada tiang lampu di sekitar UPM dengan kerjasama COSCOMM\n2. Membuat kajian terhadap kaedah dan alatan sedia ada di PBT\n3-Membangunkan inovasi bagi membantu memudahkan kerja pembuangan dawai"},{"$f":"PENYATAAN!O29","v":0},"Sederhana",{"$f":"VLOOKUP(M29,DROPLIST!P:Q,2,FALSE)","v":"Impak yang boleh dikendalikan secara normal oleh Pengurusan PTJ"},{"$f":"VLOOKUP(M29,DROPLIST!P:R,3,FALSE)","v":3},"Dapat Dijangka",{"$f":"VLOOKUP(P29,DROPLIST!T:U,2,FALSE)","v":"Mungkin berlaku pada masa akan datang"},{"$f":"VLOOKUP(P29,DROPLIST!T:V,3,FALSE)","v":3},{"$f":"O29*R29","v":9},"Tolak Ansur (Tolerate)",{"$f":"VLOOKUP(T29,DROPLIST!X:Y,2,FALSE)","v":"Risiko yang boleh diterima oleh Pusat Tanggungjawab (PTJ) tanpa sebarang kerugian. Risiko ini boleh dikawal secara efisien menggunakan sistem kawalan sedia ada"},"Tempoh pelaksanaan : 5 September 2019","2. Penilaian - Q2"]
[{"$f":"PENYATAAN!A30","v":22},{"$f":"PENYATAAN!B30","v":0},{"$f":"PENYATAAN!C30","v":"Pilihan Klasifikasi Isu"},{"$f":"PENYATAAN!D30","v":"Pilihan Kategori Isu"},{"$f":"PENYATAAN!E30","v":0},{"$f":"PENYATAAN!G30","v":"Pilihan Tahap Keterukan"},{"$f":"VLOOKUP(F30,DROPLIST!P:R,3,FALSE)","v":0},{"$f":"PENYATAAN!J30","v":"Pilihan Tahap Kemungkinan"},{"$f":"VLOOKUP(H30,DROPLIST!T:V,3,FALSE)","v":0},0,{"$f":"PENYATAAN!N30","v":0},{"$f":"PENYATAAN!O30","v":0},"Pilihan Tahap Keterukan",{"$f":"VLOOKUP(M30,DROPLIST!P:Q,2,FALSE)","v":"-"},{"$f":"VLOOKUP(M30,DROPLIST!P:R,3,FALSE)","v":0},"Pilihan Tahap Kemungkinan",{"$f":"VLOOKUP(P30,DROPLIST!T:U,2,FALSE)","v":"-"},{"$f":"VLOOKUP(P30,DROPLIST!T:V,3,FALSE)","v":0},0,"Pilihan Kawalan",{"$f":"VLOOKUP(T30,DROPLIST!X:Y,2,FALSE)","v":"-"},null,"2. Penilaian - Q2"]
[{"$f":"PENYATAAN!A31","v":23},{"$f":"PENYATAAN!B31","v":0},{"$f":"PENYATAAN!C31","v":"Pilihan Klasifikasi Isu"},{"$f":"PENYATAAN!D31","v":"Pilihan Kategori Isu"},{"$f":"PENYATAAN!E31","v":0},{"$f":"PENYATAAN!G31","v":"Pilihan Tahap Keterukan"},{"$f":"VLOOKUP(F31,DROPLIST!P:R,3,FALSE)","v":0},{"$f":"PENYATAAN!J31","v":"Pilihan Tahap Kemungkinan"},{"$f":"VLOOKUP(H31,DROPLIST!T:V,3,FALSE)","v":0},0,{"$f":"PENYATAAN!N31","v":0},{"$f":"PENYATAAN!O31","v":0},"Pilihan Tahap Keterukan",{"$f":"VLOOKUP(M31,DROPLIST!P:Q,2,FALSE)","v":"-"},{"$f":"VLOOKUP(M31,DROPLIST!P:R,3,FALSE)","v":0},"Pilihan Tahap Kemungkinan",{"$f":"VLOOKUP(P31,DROPLIST!T:U,2,FALSE)","v":"-"},{"$f":"VLOOKUP(P31,DROPLIST!T:V,3,FALSE)","v":0},0,"Pilihan Kawalan",{"$f":"VLOOKUP(T31,DROPLIST!X:Y,2,FALSE)","v":"-"},null,"2. Penilaian - Q2"]
[{"$f":"PENYATAAN!A32","v":24},{"$f":"PENYATAAN!B32","v":0},{"$f":"PENYATAAN!C32","v":"Pilihan Klasifikasi Isu"},{"$f":"PENYATAAN!D32","v":"Pilihan Kategori Isu"},{"$f":"PENYATAAN!E32","v":0},{"$f":"PENYATAAN!G32","v":"Pilihan Tahap Keterukan"},{"$f":"VLOOKUP(F32,DROPLIST!P:R,3,FALSE)","v":0},{"$f":"PENYATAAN!J32","v":"Pilihan Tahap Kemungkinan"},{"$f":"VLOOKUP(H32,DROPLIST!T:V,3,FALSE)","v":0},0,{"$f":"PENYATAAN!N32","v":0},{"$f":"PENYATAAN!O32","v":0},"Pilihan Tahap Keterukan",{"$f":"VLOOKUP(M32,DROPLIST!P:Q,2,FALSE)","v":"-"},{"$f":"VLOOKUP(M32,DROPLIST!P:R,3,FALSE)","v":0},"Pilihan Tahap Kemungkinan",{"$f":"VLOOKUP(P32,DROPLIST!T:U,2,FALSE)","v":"-"},{"$f":"VLOOKUP(P32,DROPLIST!T:V,3,FALSE)","v":0},0,"Pilihan Kawalan",{"$f":"VLOOKUP(T32,DROPLIST!X:Y,2,FALSE)","v":"-"},null,"2. Penilaian - Q2"]
[{"$f":"PENYATAAN!A33","v":25},{"$f":"PENYATAAN!B33","v":0},{"$f":"PENYATAAN!C33","v":"Pilihan Klasifikasi Isu"},{"$f":"PENYATAAN!D33","v":"Pilihan Kategori Isu"},{"$f":"PENYATAAN!E33","v":0},{"$f":"PENYATAAN!G33","v":"Pilihan Tahap Keterukan"},{"$f":"VLOOKUP(F33,DROPLIST!P:R,3,FALSE)","v":0},{"$f":"PENYATAAN!J33","v":"Pilihan Tahap Kemungkinan"},{"$f":"VLOOKUP(H33,DROPLIST!T:V,3,FALSE)","v":0},0,{"$f":"PENYATAAN!N33","v":0},{"$f":"PENYATAAN!O33","v":0},"Pilihan Tahap Keterukan",{"$f":"VLOOKUP(M33,DROPLIST!P:Q,2,FALSE)","v":"-"},{"$f":"VLOOKUP(M33,DROPLIST!P:R,3,FALSE)","v":0},"Pilihan Tahap Kemungkinan",{"$f":"VLOOKUP(P33,DROPLIST!T:U,2,FALSE)","v":"-"},{"$f":"VLOOKUP(P33,DROPLIST!T:V,3,FALSE)","v":0},0,"Pilihan Kawalan",{"$f":"VLOOKUP(T33,DROPLIST!X:Y,2,FALSE)","v":"-"},null,"2. Penilaian - Q2"]
[null,null,null,null,"Skor Penyataan Risiko Keseluruhan",null,null,null,null,{"$f":"PENYATAAN!M34","v":4},null,null,null,"Jumlah Skor",{"$f":"SUM(O9:O33)","v":37},null,"Jumlah Skor",{"$f":"SUM(R9:R33)","v":31},{"$f":"O38*R38","v":2}]
[null,null,null,null,null,null,null,null,null,null,null,null,null,"Bil Penyataan Isu",{"$f":"COUNTIF(O9:O33,\">0\")","v":21},null,"Bil Penyataan Isu",{"$f":"COUNTIF(R9:R33,\">0\")","v":21}]
[null,null,null,null,null,null,null,null,null,null,null,null,null,"Max skor",{"$f":"O35*5","v":105},null,"Max skor",{"$f":"R35*5","v":105}]
[null,null,null,null,null,null,null,null,null,null,null,null,null,"Skor Risiko  Keseluruhan ",{"$f":"(O34/O36)*5","v":1.7619047619047621},null,"Skor Risiko  Keseluruhan ",{"$f":"(R34/R36)*5","v":1.4761904761904763}]
[null,null,null,null,null,null,null,null,null,null,null,null,null,"Rounding",{"$f":"ROUND(O37,0)","v":2},null,"Rounding",{"$f":"ROUND(R37,0)","v":1}]

{"sheet":"PENILAIAN (Q4)","index":3,"n_rows":38,"n_cols":18,"rows_kept":38,"cut":false,"hidden":true,"merged":[[33,13,37,13],[6,15,7,15],[5,5,7,5],[4,7,4,16],[5,7,5,13],[5,14,5,16],[6,7,6,9],[6,10,6,12],[6,13,7,13],[6,14,7,14],[6,16,7,16],[5,0,7,0],[4,5,4,6],[33,4,37,4],[4,0,4,3],[4,4,7,4],[5,1,7,1],[5,2,7,2],[5,3,7,3],[33,5,37,5],[33,6,37,6],[5,6,7,6]]}
[]
[]
[]
[]
["Penyataan Isu",null,null,null,"Penyataan Risiko ","Skor Risiko",null,"Keberkesanan Tindakan (Semakan Sukuan Ketiga / Keempat - Q3 / Q4)"]
["Bil.","Penyataan Isu","Dalaman/ Luaran\n[DROPLIST]","Kategori Isu\n[DROPLIST]",null,"Penyataan Risiko","Penilaian Risiko Q2","Penilaian Risiko",null,null,null,null,null,null,"Keputusan / Kawalan Tindakan Risiko"]
[null,null,null,null,null,null,null,"Keterukan \n[DROPLIST]",null,null,"Kemungkinan\n[DROPLIST]",null,null,"Total Skor Isu","Tindakan Ke Atas Risiko","Penerangan Tindakan","Catatan"]
[null,null,null,null,null,null,null,"Tahap","Penerangan Tahap","Skor","Tahap","Penerangan Tahap","Skor"]
[{"$f":"PENYATAAN!A9","v":1},{"$f":"PENYATAAN!B9","v":"Pengurangan jumlah permohonan menyebabkan bilangan pemfailan  harta intelek  dalam dan luar negara  terjejas         "},{"$f":"PENYATAAN!C9","v":"Dalaman"},{"$f":"PENYATAAN!D9","v":"Penyelidikan & Inovasi"},{"$f":"PENYATAAN!E9","v":"i. Menjejaskan KPI Penyelidikan dan Inovasi (Pemfailan harta intelek)"},{"$f":"PENYATAAN!M9","v":1},{"$f":"'PENILAIAN (Q2)'!S9","v":4},"Pilihan Tahap Keterukan",{"$f":"VLOOKUP(H9,DROPLIST!P:Q,2,FALSE)","v":"-"},{"$f":"VLOOKUP(H9,DROPLIST!P:R,3,FALSE)","v":0},"Pilihan Tahap Kemungkinan",{"$f":"VLOOKUP(K9,DROPLIST!T:U,2,FALSE)","v":"-"},{"$f":"VLOOKUP(K9,DROPLIST!T:V,3,FALSE)","v":0},{"$f":"J9*M9","v":0},"Pilihan Kawalan",{"$f":"VLOOKUP(O9,DROPLIST!X:Y,2,FALSE)","v":"-"},null,"3. Penilaian - Q4"]
[{"$f":"PENYATAAN!A10","v":2},{"$f":"PENYATAAN!B10","v":"Kekangan peruntukan bagi perlindungan harta intelek menyebab universiti menanggung kos perlindungan harta intelek luar negara yang tinggi "},{"$f":"PENYATAAN!C10","v":"Dalaman"},{"$f":"PENYATAAN!D10","v":"Penyelidikan & Inovasi"},{"$f":"PENYATAAN!E10","v":"i. Menjejaskan KPI Penyelidikan dan Inovasi (Pemfailan harta intelek)"},{"$f":"PENYATAAN!M10","v":4},{"$f":"'PENILAIAN (Q2)'!S10","v":4},"Pilihan Tahap Keterukan",{"$f":"VLOOKUP(H10,DROPLIST!P:Q,2,FALSE)","v":"-"},{"$f":"VLOOKUP(H10,DROPLIST!P:R,3,FALSE)","v":0},"Pilihan Tahap Kemungkinan",{"$f":"VLOOKUP(K10,DROPLIST!T:U,2,FALSE)","v":"-"},{"$f":"VLOOKUP(K10,DROPLIST!T:V,3,FALSE)","v":0},{"$f":"J10*M10","v":0},"Pilihan Kawalan",{"$f":"VLOOKUP(O10,DROPLIST!X:Y,2,FALSE)","v":"-"},null,"3. Penilaian - Q4"]
[{"$f":"PENYATAAN!A11","v":3},{"$f":"PENYATAAN!B11","v":"Pengiktirafan UPM sebagai organisasi pengurusan harta intelek terbaik negara meningkatkan peluang perniagaan baharu Putra Dynamic kerana menjadi pakar rujuk "},{"$f":"PENYATAAN!C11","v":"Dalaman"},{"$f":"PENYATAAN!D11","v":"Penyelidikan & Inovasi"},{"$f":"PENYATAAN!E11","v":"Meningkatkan bilangan peserta luar yang menyertai latihan "},{"$f":"PENYATAAN!M11","v":1},{"$f":"'PENILAIAN (Q2)'!S11","v":4},"Pilihan Tahap Keterukan",{"$f":"VLOOKUP(H11,DROPLIST!P:Q,2,FALSE)","v":"-"},{"$f":"VLOOKUP(H11,DROPLIST!P:R,3,FALSE)","v":0},"Pilihan Tahap Kemungkinan",{"$f":"VLOOKUP(K11,DROPLIST!T:U,2,FALSE)","v":"-"},{"$f":"VLOOKUP(K11,DROPLIST!T:V,3,FALSE)","v":0},0,"Pilihan Kawalan",{"$f":"VLOOKUP(O11,DROPLIST!X:Y,2,FALSE)","v":"-"},null,"3. Penilaian - Q4"]
[{"$f":"PENYATAAN!A12","v":4},{"$f":"PENYATAAN!B12","v":"Pembayaran balik dana Mikrokredit tidak dilunaskan oleh peserta menyebabkan kurang dana untuk ditawarkan kepada peserta yang baharu"},{"$f":"PENYATAAN!C12","v":"Dalaman"},{"$f":"PENYATAAN!D12","v":"Penyelidikan & Inovasi"},{"$f":"PENYATAAN!E12","v":"Usahawan pelajar baharu tidak dapat dilahirkan "},{"$f":"PENYATAAN!M12","v":2},{"$f":"'PENILAIAN (Q2)'!S12","v":2},"Pilihan Tahap Keterukan",{"$f":"VLOOKUP(H12,DROPLIST!P:Q,2,FALSE)","v":"-"},{"$f":"VLOOKUP(H12,DROPLIST!P:R,3,FALSE)","v":0},"Pilihan Tahap Kemungkinan",{"$f":"VLOOKUP(K12,DROPLIST!T:U,2,FALSE)","v":"-"},{"$f":"VLOOKUP(K12,DROPLIST!T:V,3,FALSE)","v":0},0,"Pilihan Kawalan",{"$f":"VLOOKUP(O12,DROPLIST!X:Y,2,FALSE)","v":"-"},null,"3. Penilaian - Q4"]
[{"$f":"PENYATAAN!A13","v":5},{"$f":"PENYATAAN!B13","v":"Kurang penyertaan permohonan dana program Mikrokredit menyebabkan dana tidak dapat dimanfaatkan"},{"$f":"PENYATAAN!C13","v":"Dalaman"},{"$f":"PENYATAAN!D13","v":"Penyelidikan & Inovasi"},{"$f":"PENYATAAN!E13","v":"Usahawan pelajar baharu tidak dapat dilahirkan "},{"$f":"PENYATAAN!M13","v":4},{"$f":"'PENILAIAN (Q2)'!S13","v":1},"Pilihan Tahap Keterukan",{"$f":"VLOOKUP(H13,DROPLIST!P:Q,2,FALSE)","v":"-"},{"$f":"VLOOKUP(H13,DROPLIST!P:R,3,FALSE)","v":0},"Pilihan Tahap Kemungkinan",{"$f":"VLOOKUP(K13,DROPLIST!T:U,2,FALSE)","v":"-"},{"$f":"VLOOKUP(K13,DROPLIST!T:V,3,FALSE)","v":0},0,"Pilihan Kawalan",{"$f":"VLOOKUP(O13,DROPLIST!X:Y,2,FALSE)","v":"-"},null,"3. Penilaian - Q4"]
[{"$f":"PENYATAAN!A14","v":6},{"$f":"PENYATAAN!B14","v":"Peruntukan bagi aktiviti promosi dan pemasaran inovasi yang berkurangan setiap tahun -Pemotongan peruntukan daripada kerajaan  (-30% bagi tahun 2017) menyebabkan aktiviti promosi berkurangan bagi mendapatkan industri yang berpotensi menjalankan kerjasama dengan UPM "},{"$f":"PENYATAAN!C14","v":"Luaran"},{"$f":"PENYATAAN!D14","v":"Penyelidikan & Inovasi"},{"$f":"PENYATAAN!E14","v":"i. Menjejaskan KPI Promosi dan Pemasaran Inovasi PSP - Bilangan industri"},{"$f":"PENYATAAN!M14","v":4},{"$f":"'PENILAIAN (Q2)'!S14","v":1},"Pilihan Tahap Keterukan",{"$f":"VLOOKUP(H14,DROPLIST!P:Q,2,FALSE)","v":"-"},{"$f":"VLOOKUP(H14,DROPLIST!P:R,3,FALSE)","v":0},"Pilihan Tahap Kemungkinan",{"$f":"VLOOKUP(K14,DROPLIST!T:U,2,FALSE)","v":"-"},{"$f":"VLOOKUP(K14,DROPLIST!T:V,3,FALSE)","v":0},0,"Pilihan Kawalan",{"$f":"VLOOKUP(O14,DROPLIST!X:Y,2,FALSE)","v":"-"},null,"3. Penilaian - Q4"]
[{"$f":"PENYATAAN!A15","v":7},{"$f":"PENYATAAN!B15","v":"Kesukaran memasang bunting promosi dan staf berisiko mengalami kecederaan semasa memasang bunting aktiviti promosi pada tiang lampu setiap kali program dijalankan menyebabkan kecederaan kepada staf yang memasang bunting "},{"$f":"PENYATAAN!C15","v":"Dalaman"},{"$f":"PENYATAAN!D15","v":"Penyelidikan & Inovasi"},{"$f":"PENYATAAN!E15","v":"Menjejaskan keselamatan dan kebajikan pekerja"},{"$f":"PENYATAAN!M15","v":1},{"$f":"'PENILAIAN (Q2)'!S15","v":1},"Pilihan Tahap Keterukan",{"$f":"VLOOKUP(H15,DROPLIST!P:Q,2,FALSE)","v":"-"},{"$f":"VLOOKUP(H15,DROPLIST!P:R,3,FALSE)","v":0},"Pilihan Tahap Kemungkinan",{"$f":"VLOOKUP(K15,DROPLIST!T:U,2,FALSE)","v":"-"},{"$f":"VLOOKUP(K15,DROPLIST!T:V,3,FALSE)","v":0},0,"Pilihan Kawalan",{"$f":"VLOOKUP(O15,DROPLIST!X:Y,2,FALSE)","v":"-"},null,"3. Penilaian - Q4"]
[{"$f":"PENYATAAN!A16","v":8},{"$f":"PENYATAAN!B16","v":"Kesalahan penterjemahan kenyataan media bagi hebahan promosi hasil penyelidikan oleh wartawan\n - Wartawan salah faham/kurang faham penjelasan teknikal daripada penyelidik semasa sidang media "},{"$f":"PENYATAAN!C16","v":"Luaran"},{"$f":"PENYATAAN!D16","v":"Penyelidikan & Inovasi"},{"$f":"PENYATAAN!E16","v":"Menjejaskan reputasi dan memberi maklumat yang salah kepada orang awam /pembaca"},{"$f":"PENYATAAN!M16","v":4},{"$f":"'PENILAIAN (Q2)'!S16","v":1},"Pilihan Tahap Keterukan",{"$f":"VLOOKUP(H16,DROPLIST!P:Q,2,FALSE)","v":"-"},{"$f":"VLOOKUP(H16,DROPLIST!P:R,3,FALSE)","v":0},"Pilihan Tahap Kemungkinan",{"$f":"VLOOKUP(K16,DROPLIST!T:U,2,FALSE)","v":"-"},{"$f":"VLOOKUP(K16,DROPLIST!T:V,3,FALSE)","v":0},0,"Pilihan Kawalan",{"$f":"VLOOKUP(O16,DROPLIST!X:Y,2,FALSE)","v":"-"},null,"3. Penilaian - Q4"]
[{"$f":"PENYATAAN!A17","v":9},{"$f":"PENYATAAN!B17","v":"Permohonan Suai Padan Teknologi (SPT) yang sukar mendapat maklumbalas PTJ/lain, tidak dibuat susulan selanjutnya selepas promosi tamat menyebabkan peluang kerjasama dengan industri tidak dapat diteruskan"},{"$f":"PENYATAAN!C17","v":"Dalaman"},{"$f":"PENYATAAN!D17","v":"Penyelidikan & Inovasi"},{"$f":"PENYATAAN!E17","v":"Menjejaskan KPI Penyelidikan dan inovasi  (TKHL)"},{"$f":"PENYATAAN!M17","v":6},{"$f":"'PENILAIAN (Q2)'!S17","v":6},"Pilihan Tahap Keterukan",{"$f":"VLOOKUP(H17,DROPLIST!P:Q,2,FALSE)","v":"-"},{"$f":"VLOOKUP(H17,DROPLIST!P:R,3,FALSE)","v":0},"Pilihan Tahap Kemungkinan",{"$f":"VLOOKUP(K17,DROPLIST!T:U,2,FALSE)","v":"-"},{"$f":"VLOOKUP(K17,DROPLIST!T:V,3,FALSE)","v":0},0,"Pilihan Kawalan",{"$f":"VLOOKUP(O17,DROPLIST!X:Y,2,FALSE)","v":"-"},null,"3. Penilaian - Q4"]
[{"$f":"PENYATAAN!A18","v":10},{"$f":"PENYATAAN!B18","v":"Kurang penyertaan permohonan dana promosi produk daripada penyelidik  menyebabkan kurang bilangan projek diluluskan"},{"$f":"PENYATAAN!C18","v":"Dalaman"},{"$f":"PENYATAAN!D18","v":"Penyelidikan & Inovasi"},{"$f":"PENYATAAN!E18","v":"Tidak mencapai sasaran KPI Dana Promosi yang ditetapkan"},{"$f":"PENYATAAN!M18","v":4},{"$f":"'PENILAIAN (Q2)'!S18","v":1},"Pilihan Tahap Keterukan",{"$f":"VLOOKUP(H18,DROPLIST!P:Q,2,FALSE)","v":"-"},{"$f":"VLOOKUP(H18,DROPLIST!P:R,3,FALSE)","v":0},"Pilihan Tahap Kemungkinan",{"$f":"VLOOKUP(K18,DROPLIST!T:U,2,FALSE)","v":"-"},{"$f":"VLOOKUP(K18,DROPLIST!T:V,3,FALSE)","v":0},0,"Pilihan Kawalan",{"$f":"VLOOKUP(O18,DROPLIST!X:Y,2,FALSE)","v":"-"},null,"3. Penilaian - Q4"]
[{"$f":"PENYATAAN!A19","v":11},{"$f":"PENYATAAN!B19","v":"Kekurangan Staf Edu-Park bagi mengendalikan aktiviti yang disertai pelawat diseluruh lokasi Edupark UPM menyebabkan kerja tidak dilaksanakan dengan lancar"},{"$f":"PENYATAAN!C19","v":"Dalaman"},{"$f":"PENYATAAN!D19","v":"Penyelidikan & Inovasi"},{"$f":"PENYATAAN!E19","v":"Menjejaskan KPI penjanaan dana Edupark"},{"$f":"PENYATAAN!M19","v":2},{"$f":"'PENILAIAN (Q2)'!S19","v":1},"Pilihan Tahap Keterukan",{"$f":"VLOOKUP(H19,DROPLIST!P:Q,2,FALSE)","v":"-"},{"$f":"VLOOKUP(H19,DROPLIST!P:R,3,FALSE)","v":0},"Pilihan Tahap Kemungkinan",{"$f":"VLOOKUP(K19,DROPLIST!T:U,2,FALSE)","v":"-"},{"$f":"VLOOKUP(K19,DROPLIST!T:V,3,FALSE)","v":0},0,"Pilihan Kawalan",{"$f":"VLOOKUP(O19,DROPLIST!X:Y,2,FALSE)","v":"-"},null,"3. Penilaian - Q4"]
[{"$f":"PENYATAAN!A20","v":12},{"$f":"PENYATAAN!B20","v":"Kekurangan Peruntukan Kewangan bagi pengurusan Edu-Park menyebabkan penyelenggaraan /penggantian peralatan tidak dapat dijalankan dan pembelian bahan pameran dan modul tidak dapat dilakukan"},{"$f":"PENYATAAN!C20","v":"Dalaman"},{"$f":"PENYATAAN!D20","v":"Penyelidikan & Inovasi"},{"$f":"PENYATAAN!E20","v":"Menjejaskan KPI penjanaan dana Edupark"},{"$f":"PENYATAAN!M20","v":2},{"$f":"'PENILAIAN (Q2)'!S20","v":1},"Pilihan Tahap Keterukan",{"$f":"VLOOKUP(H20,DROPLIST!P:Q,2,FALSE)","v":"-"},{"$f":"VLOOKUP(H20,DROPLIST!P:R,3,FALSE)","v":0},"Pilihan Tahap Kemungkinan",{"$f":"VLOOKUP(K20,DROPLIST!T:U,2,FALSE)","v":"-"},{"$f":"VLOOKUP(K20,DROPLIST!T:V,3,FALSE)","v":0},0,"Pilihan Kawalan",{"$f":"VLOOKUP(O20,DROPLIST!X:Y,2,FALSE)","v":"-"},null,"3. Penilaian - Q4"]
[{"$f":"PENYATAAN!A21","v":13},{"$f":"PENYATAAN!B21","v":"Tahap keselamatan pelawat Edu-Park berisiko mengalami kecederaan semasa lawatan pelawat Edupark "},{"$f":"PENYATAAN!C21","v":"Dalaman"},{"$f":"PENYATAAN!D21","v":"Penyelidikan & Inovasi"},{"$f":"PENYATAAN!E21","v":"Menjejaskan reputasi Universiti"},{"$f":"PENYATAAN!M21","v":1},{"$f":"'PENILAIAN (Q2)'!S21","v":1},"Pilihan Tahap Keterukan",{"$f":"VLOOKUP(H21,DROPLIST!P:Q,2,FALSE)","v":"-"},{"$f":"VLOOKUP(H21,DROPLIST!P:R,3,FALSE)","v":0},"Pilihan Tahap Kemungkinan",{"$f":"VLOOKUP(K21,DROPLIST!T:U,2,FALSE)","v":"-"},{"$f":"VLOOKUP(K21,DROPLIST!T:V,3,FALSE)","v":0},0,"Pilihan Kawalan",{"$f":"VLOOKUP(O21,DROPLIST!X:Y,2,FALSE)","v":"-"},null,"3. Penilaian - Q4"]
[{"$f":"PENYATAAN!A22","v":14},{"$f":"PENYATAAN!B22","v":"kehadiran pelawat tidak mengikut ketetapan waktu yang telah dibuat oleh Edu-Park"},{"$f":"PENYATAAN!C22","v":"Luaran"},{"$f":"PENYATAAN!D22","v":"Penyelidikan & Inovasi"},{"$f":"PENYATAAN!E22","v":"Mengganggu perjalanan waktu lawatan "},{"$f":"PENYATAAN!M22","v":3},{"$f":"'PENILAIAN (Q2)'!S22","v":1},"Pilihan Tahap Keterukan",{"$f":"VLOOKUP(H22,DROPLIST!P:Q,2,FALSE)","v":"-"},{"$f":"VLOOKUP(H22,DROPLIST!P:R,3,FALSE)","v":0},"Pilihan Tahap Kemungkinan",{"$f":"VLOOKUP(K22,DROPLIST!T:U,2,FALSE)","v":"-"},{"$f":"VLOOKUP(K22,DROPLIST!T:V,3,FALSE)","v":0},0,"Pilihan Kawalan",{"$f":"VLOOKUP(O22,DROPLIST!X:Y,2,FALSE)","v":"-"},null,"3. Penilaian - Q4"]
[{"$f":"PENYATAAN!A23","v":15},{"$f":"PENYATAAN!B23","v":"Sesi perundingan perniagaan (business negotiation) melibatkan pemindahan  teknologi yang dapat dilaksanakan dengan pihak industri adalah terhad kerana kekurangan perunding perniagaan(business negotiator) yang bertauliah dalam bidang pemindahan teknologi yang diiktiraf oleh universiti"},{"$f":"PENYATAAN!C23","v":"Dalaman"},{"$f":"PENYATAAN!D23","v":"Penyelidikan & Inovasi"},{"$f":"PENYATAAN!E23","v":"i. Menjejaskan KPI Penyelidikan dan Inovasi (TKHL )"},{"$f":"PENYATAAN!M23","v":15},{"$f":"'PENILAIAN (Q2)'!S23","v":6},"Pilihan Tahap Keterukan",{"$f":"VLOOKUP(H23,DROPLIST!P:Q,2,FALSE)","v":"-"},{"$f":"VLOOKUP(H23,DROPLIST!P:R,3,FALSE)","v":0},"Pilihan Tahap Kemungkinan",{"$f":"VLOOKUP(K23,DROPLIST!T:U,2,FALSE)","v":"-"},{"$f":"VLOOKUP(K23,DROPLIST!T:V,3,FALSE)","v":0},0,"Pilihan Kawalan",{"$f":"VLOOKUP(O23,DROPLIST!X:Y,2,FALSE)","v":"-"},null,"3. Penilaian - Q4"]
[{"$f":"PENYATAAN!A24","v":16},{"$f":"PENYATAAN!B24","v":"Kekurangan peruntukan kewangan pengurusan dan promosi Putra Dynamics menyebabkan Promosi Putra Dynamics tidak dapat dilakukan secara agresif  "},{"$f":"PENYATAAN!C24","v":"Dalaman"},{"$f":"PENYATAAN!D24","v":"Penyelidikan & Inovasi"},{"$f":"PENYATAAN!E24","v":"Menjejaskan KPI bilangan peserta yang menyertai latihan "},{"$f":"PENYATAAN!M24","v":3},{"$f":"'PENILAIAN (Q2)'!S24","v":3},"Pilihan Tahap Keterukan",{"$f":"VLOOKUP(H24,DROPLIST!P:Q,2,FALSE)","v":"-"},{"$f":"VLOOKUP(H24,DROPLIST!P:R,3,FALSE)","v":0},"Pilihan Tahap Kemungkinan",{"$f":"VLOOKUP(K24,DROPLIST!T:U,2,FALSE)","v":"-"},{"$f":"VLOOKUP(K24,DROPLIST!T:V,3,FALSE)","v":0},0,"Pilihan Kawalan",{"$f":"VLOOKUP(O24,DROPLIST!X:Y,2,FALSE)","v":"-"},null,"3. Penilaian - Q4"]
[{"$f":"PENYATAAN!A25","v":17},{"$f":"PENYATAAN!B25","v":"Kesukaran untuk mendapatkan pelanggan untuk menyertai latihan yang ditawarkan Putra Dynamics menyebabkan kurang penjanaan pendapatan"},{"$f":"PENYATAAN!C25","v":"Dalaman"},{"$f":"PENYATAAN!D25","v":"Penyelidikan & Inovasi"},{"$f":"PENYATAAN!E25","v":"Menjejaskan KPI bilangan peserta yang menyertai latihan "},{"$f":"PENYATAAN!M25","v":3},{"$f":"'PENILAIAN (Q2)'!S25","v":3},"Pilihan Tahap Keterukan",{"$f":"VLOOKUP(H25,DROPLIST!P:Q,2,FALSE)","v":"-"},{"$f":"VLOOKUP(H25,DROPLIST!P:R,3,FALSE)","v":0},"Pilihan Tahap Kemungkinan",{"$f":"VLOOKUP(K25,DROPLIST!T:U,2,FALSE)","v":"-"},{"$f":"VLOOKUP(K25,DROPLIST!T:V,3,FALSE)","v":0},0,"Pilihan Kawalan",{"$f":"VLOOKUP(O25,DROPLIST!X:Y,2,FALSE)","v":"-"},null,"3. Penilaian - Q4"]
[{"$f":"PENYATAAN!A26","v":18},{"$f":"PENYATAAN!B26","v":"Nilai matawang negara (RM) berubah menyebabkan kos latihan  Putra Dynamic meningkatkan"},{"$f":"PENYATAAN!C26","v":"Luaran"},{"$f":"PENYATAAN!D26","v":"Penyelidikan & Inovasi"},{"$f":"PENYATAAN!E26","v":"Menjejaskan KPI bilangan peserta yang menyertai latihan "},{"$f":"PENYATAAN!M26","v":3},{"$f":"'PENILAIAN (Q2)'!S26","v":3},"Pilihan Tahap Keterukan",{"$f":"VLOOKUP(H26,DROPLIST!P:Q,2,FALSE)","v":"-"},{"$f":"VLOOKUP(H26,DROPLIST!P:R,3,FALSE)","v":0},"Pilihan Tahap Kemungkinan",{"$f":"VLOOKUP(K26,DROPLIST!T:U,2,FALSE)","v":"-"},{"$f":"VLOOKUP(K26,DROPLIST!T:V,3,FALSE)","v":0},0,"Pilihan Kawalan",{"$f":"VLOOKUP(O26,DROPLIST!X:Y,2,FALSE)","v":"-"},null,"3. Penilaian - Q4"]
[{"$f":"PENYATAAN!A27","v":19},{"$f":"PENYATAAN!B27","v":"Peserta Program Innohub menarik diri setelah program berjalan menyebabkan perancangan jadual perbatuan projek tidak dapat dilaksanakan"},{"$f":"PENYATAAN!C27","v":"Dalaman"},{"$f":"PENYATAAN!D27","v":"Penyelidikan & Inovasi"},{"$f":"PENYATAAN!E27","v":"Pelaksanaan projek tergendala dan teknologi tidak dapat dikomersilkan."},{"$f":"PENYATAAN!M27","v":4},{"$f":"'PENILAIAN (Q2)'!S27","v":4},"Pilihan Tahap Keterukan",{"$f":"VLOOKUP(H27,DROPLIST!P:Q,2,FALSE)","v":"-"},{"$f":"VLOOKUP(H27,DROPLIST!P:R,3,FALSE)","v":0},"Pilihan Tahap Kemungkinan",{"$f":"VLOOKUP(K27,DROPLIST!T:U,2,FALSE)","v":"-"},{"$f":"VLOOKUP(K27,DROPLIST!T:V,3,FALSE)","v":0},0,"Pilihan Kawalan",{"$f":"VLOOKUP(O27,DROPLIST!X:Y,2,FALSE)","v":"-"},null,"3. Penilaian - Q4"]
[{"$f":"PENYATAAN!A28","v":20},{"$f":"PENYATAAN!B28","v":"Tiada tambahan peruntukkan Dana RU InnoHub yang disalurkan menyebabkan Perkhidmatan Dana Innohub bagi membantu penyelidik mengkomersilkan produk kepada industri tidak dapat ditawarkan lagi"},{"$f":"PENYATAAN!C28","v":"Luaran"},{"$f":"PENYATAAN!D28","v":"Penyelidikan & Inovasi"},{"$f":"PENYATAAN!E28","v":"Program Innohub tidak dapat diteruskan"},{"$f":"PENYATAAN!M28","v":3},{"$f":"'PENILAIAN (Q2)'!S28","v":2},"Pilihan Tahap Keterukan",{"$f":"VLOOKUP(H28,DROPLIST!P:Q,2,FALSE)","v":"-"},{"$f":"VLOOKUP(H28,DROPLIST!P:R,3,FALSE)","v":0},"Pilihan Tahap Kemungkinan",{"$f":"VLOOKUP(K28,DROPLIST!T:U,2,FALSE)","v":"-"},{"$f":"VLOOKUP(K28,DROPLIST!T:V,3,FALSE)","v":0},{"$f":"J28*M28","v":0},"Pilihan Kawalan",{"$f":"VLOOKUP(O28,DROPLIST!X:Y,2,FALSE)","v":"-"},null,"3. Penilaian - Q4"]
[{"$f":"PENYATAAN!A29","v":21},{"$f":"PENYATAAN!B29","v":"Kesukaran membuang dawai lama dan staf berisiko mengalami kecederaan semasa membuang dawai lama bagi memasang bunting aktiviti promosi pada tiang lampu setiap kali program dijalankan menyebabkan kecederaan kepada staf yang memasang bunting "},{"$f":"PENYATAAN!C29","v":"Dalaman"},{"$f":"PENYATAAN!D29","v":"Penyelidikan & Inovasi"},{"$f":"PENYATAAN!E29","v":"Menjejaskan keselamatan dan kebajikan pekerja"},{"$f":"PENYATAAN!M29","v":9},{"$f":"'PENILAIAN (Q2)'!S29","v":9},"Pilihan Tahap Keterukan",{"$f":"VLOOKUP(H29,DROPLIST!P:Q,2,FALSE)","v":"-"},{"$f":"VLOOKUP(H29,DROPLIST!P:R,3,FALSE)","v":0},"Pilihan Tahap Kemungkinan",{"$f":"VLOOKUP(K29,DROPLIST!T:U,2,FALSE)","v":"-"},{"$f":"VLOOKUP(K29,DROPLIST!T:V,3,FALSE)","v":0},0,"Pilihan Kawalan",{"$f":"VLOOKUP(O29,DROPLIST!X:Y,2,FALSE)","v":"-"},null,"3. Penilaian - Q4"]
[{"$f":"PENYATAAN!A30","v":22},{"$f":"PENYATAAN!B30","v":0},{"$f":"PENYATAAN!C30","v":"Pilihan Klasifikasi Isu"},{"$f":"PENYATAAN!D30","v":"Pilihan Kategori Isu"},{"$f":"PENYATAAN!E30","v":0},{"$f":"PENYATAAN!M30","v":0},{"$f":"'PENILAIAN (Q2)'!S30","v":0},"Pilihan Tahap Keterukan",{"$f":"VLOOKUP(H30,DROPLIST!P:Q,2,FALSE)","v":"-"},{"$f":"VLOOKUP(H30,DROPLIST!P:R,3,FALSE)","v":0},"Pilihan Tahap Kemungkinan",{"$f":"VLOOKUP(K30,DROPLIST!T:U,2,FALSE)","v":"-"},{"$f":"VLOOKUP(K30,DROPLIST!T:V,3,FALSE)","v":0},0,"Pilihan Kawalan",{"$f":"VLOOKUP(O30,DROPLIST!X:Y,2,FALSE)","v":"-"},null,"3. Penilaian - Q4"]
[{"$f":"PENYATAAN!A31","v":23},{"$f":"PENYATAAN!B31","v":0},{"$f":"PENYATAAN!C31","v":"Pilihan Klasifikasi Isu"},{"$f":"PENYATAAN!D31","v":"Pilihan Kategori Isu"},{"$f":"PENYATAAN!E31","v":0},{"$f":"PENYATAAN!M31","v":0},{"$f":"'PENILAIAN (Q2)'!S31","v":0},"Pilihan Tahap Keterukan",{"$f":"VLOOKUP(H31,DROPLIST!P:Q,2,FALSE)","v":"-"},{"$f":"VLOOKUP(H31,DROPLIST!P:R,3,FALSE)","v":0},"Pilihan Tahap Kemungkinan",{"$f":"VLOOKUP(K31,DROPLIST!T:U,2,FALSE)","v":"-"},{"$f":"VLOOKUP(K31,DROPLIST!T:V,3,FALSE)","v":0},0,"Pilihan Kawalan",{"$f":"VLOOKUP(O31,DROPLIST!X:Y,2,FALSE)","v":"-"},null,"3. Penilaian - Q4"]
[{"$f":"PENYATAAN!A32","v":24},{"$f":"PENYATAAN!B32","v":0},{"$f":"PENYATAAN!C32","v":"Pilihan Klasifikasi Isu"},{"$f":"PENYATAAN!D32","v":"Pilihan Kategori Isu"},{"$f":"PENYATAAN!E32","v":0},{"$f":"PENYATAAN!M32","v":0},{"$f":"'PENILAIAN (Q2)'!S32","v":0},"Pilihan Tahap Keterukan",{"$f":"VLOOKUP(H32,DROPLIST!P:Q,2,FALSE)","v":"-"},{"$f":"VLOOKUP(H32,DROPLIST!P:R,3,FALSE)","v":0},"Pilihan Tahap Kemungkinan",{"$f":"VLOOKUP(K32,DROPLIST!T:U,2,FALSE)","v":"-"},{"$f":"VLOOKUP(K32,DROPLIST!T:V,3,FALSE)","v":0},{"$f":"J32*M32","v":0},"Pilihan Kawalan",{"$f":"VLOOKUP(O32,DROPLIST!X:Y,2,FALSE)","v":"-"},null,"3. Penilaian - Q4"]
[{"$f":"PENYATAAN!A33","v":25},{"$f":"PENYATAAN!B33","v":0},{"$f":"PENYATAAN!C33","v":"Pilihan Klasifikasi Isu"},{"$f":"PENYATAAN!D33","v":"Pilihan Kategori Isu"},{"$f":"PENYATAAN!E33","v":0},{"$f":"PENYATAAN!M33","v":0},{"$f":"'PENILAIAN (Q2)'!S33","v":0},"Pilihan Tahap Keterukan",{"$f":"VLOOKUP(H33,DROPLIST!P:Q,2,FALSE)","v":"-"},{"$f":"VLOOKUP(H33,DROPLIST!P:R,3,FALSE)","v":0},"Pilihan Tahap Kemungkinan",{"$f":"VLOOKUP(K33,DROPLIST!T:U,2,FALSE)","v":"-"},{"$f":"VLOOKUP(K33,DROPLIST!T:V,3,FALSE)","v":0},0,"Pilihan Kawalan",{"$f":"VLOOKUP(O33,DROPLIST!X:Y,2,FALSE)","v":"-"},null,"3. Penilaian - Q4"]
[null,null,null,null,"Skor Risiko Keseluruhan",{"$f":"'PENILAIAN (Q2)'!J34","v":4},{"$f":"'PENILAIAN (Q2)'!S34","v":2},null,"Jumlah Skor",{"$f":"SUM(J9:J33)","v":0},null,"Jumlah Skor",{"$f":"SUM(M9:M33)","v":0},{"$f":"J38*M38","v":{"$error":"#DIV/0!"}}]
[null,null,null,null,null,null,null,null,"Bil Penyataan Isu",{"$f":"COUNTIF(J9:J33,\">0\")","v":0},null,"Bil Penyataan Isu",{"$f":"COUNTIF(M9:M33,\">0\")","v":0}]
[null,null,null,null,null,null,null,null,"Max skor",{"$f":"J35*5","v":0},null,"Max skor",{"$f":"M35*5","v":0}]
[null,null,null,null,null,null,null,null,"Skor Risiko  Keseluruhan ",{"$f":"(J34/J36)*5","v":{"$error":"#DIV/0!"}},null,"Skor Risiko  Keseluruhan ",{"$f":"(M34/M36)*5","v":{"$error":"#DIV/0!"}}]
[null,null,null,null,null,null,null,null,"Rounding",{"$f":"ROUND(J37,0)","v":{"$error":"#DIV/0!"}},null,"Rounding",{"$f":"ROUND(M37,0)","v":{"$error":"#DIV/0!"}}]

{"sheet":"DASHBOARD","index":4,"n_rows":0,"n_cols":0,"rows_kept":0,"cut":false,"hidden":false,"merged":[]}

{"sheet":"DATALIST","index":5,"n_rows":21,"n_cols":19,"rows_kept":21,"cut":false,"hidden":true,"merged":[]}
["BIL","Klasifikasi PTJ","Nama PTJ","Nama PYB","Tahun","Penyataan Isu","Klasifikasi Isu","Kategori Isu","Penyataan Risiko","Kawalan Sedia Ada","Klasifikasi","XT","XS","YT","YS","XSYS","Tahap Risiko","Strategi","Dokumen"]
[{"$f":"PENYATAAN!A9","v":1},{"$f":"'QMS OPRISK'!F7","v":"Perkhidmatan"},{"$f":"'QMS OPRISK'!F9","v":"Putra Science Park"},{"$f":"'QMS OPRISK'!F11","v":"Shahriman bin Hashim"},{"$f":"'QMS OPRISK'!F13","v":2019},{"$f":"PENYATAAN!B9","v":"Pengurangan jumlah permohonan menyebabkan bilangan pemfailan  harta intelek  dalam dan luar negara  terjejas         "},{"$f":"PENYATAAN!C9","v":"Dalaman"},{"$f":"PENYATAAN!D9","v":"Penyelidikan & Inovasi"},{"$f":"PENYATAAN!E9","v":"i. Menjejaskan KPI Penyelidikan dan Inovasi (Pemfailan harta intelek)"},{"$f":"PENYATAAN!F9","v":"Seminar dan Klinik IP  di PTJ / atas permintaan PTJ"},{"$f":"PENYATAAN!P9","v":"1. Penyataan"},{"$f":"PENYATAAN!G9","v":"Tidak Ketara"},{"$f":"PENYATAAN!I9","v":1},{"$f":"PENYATAAN!J9","v":"Tidak Dapat Dijangka"},{"$f":"PENYATAAN!L9","v":1},{"$f":"M2*O2","v":1},{"$f":"IF(P2<=4,\"Rendah\",IF(P2<=12,\"Sederhana\",IF(P2<=25,\"Tinggi\")))","v":"Rendah"},{"$f":"PENYATAAN!N9","v":0},{"$f":"PENYATAAN!O9","v":"Pemantauan secara berterusan"}]
[{"$f":"PENYATAAN!A10","v":2},{"$f":"'QMS OPRISK'!F7","v":"Perkhidmatan"},{"$f":"C2","v":"Putra Science Park"},{"$f":"D2","v":"Shahriman bin Hashim"},{"$f":"E2","v":2019},{"$f":"PENYATAAN!B10","v":"Kekangan peruntukan bagi perlindungan harta intelek menyebab universiti menanggung kos perlindungan harta intelek luar negara yang tinggi "},{"$f":"PENYATAAN!C10","v":"Dalaman"},{"$f":"PENYATAAN!D10","v":"Penyelidikan & Inovasi"},{"$f":"PENYATAAN!E10","v":"i. Menjejaskan KPI Penyelidikan dan Inovasi (Pemfailan harta intelek)"},{"$f":"PENYATAAN!F10","v":"Menamatkan perlindungan paten luar negara melebihi 5 tahun yang tidak dikomersialkan  "},{"$f":"PENYATAAN!P10","v":"1. Penyataan"},{"$f":"PENYATAAN!G10","v":"Kecil"},{"$f":"PENYATAAN!I10","v":2},{"$f":"PENYATAAN!J10","v":"Jarang Sekali"},{"$f":"PENYATAAN!L10","v":2},{"$f":"M3*O3","v":4},{"$f":"IF(P3<=4,\"Rendah\",IF(P3<=12,\"Sederhana\",IF(P3<=25,\"Tinggi\")))","v":"Rendah"},{"$f":"PENYATAAN!N10","v":0},{"$f":"PENYATAAN!O10","v":"1. Pemantauan secara berterusan.\n\n2. Pembangunan garis panduan penamatan harta intelek telah dibentangkan sebanyak 2 kali dalam mesyuarat JKPU pada tahun 2018. Garis panduan ini akan dibawa untuk kelulusan mesyuarat Jwatankuasa Pengurusan Universiti."}]
[{"$f":"PENYATAAN!A11","v":3},{"$f":"'QMS OPRISK'!F7","v":"Perkhidmatan"},{"$f":"C3","v":"Putra Science Park"},{"$f":"D3","v":"Shahriman bin Hashim"},{"$f":"E3","v":2019},{"$f":"PENYATAAN!B11","v":"Pengiktirafan UPM sebagai organisasi pengurusan harta intelek terbaik negara meningkatkan peluang perniagaan baharu Putra Dynamic kerana menjadi pakar rujuk "},{"$f":"PENYATAAN!C11","v":"Dalaman"},{"$f":"PENYATAAN!D11","v":"Penyelidikan & Inovasi"},{"$f":"PENYATAAN!E11","v":"Meningkatkan bilangan peserta luar yang menyertai latihan "},{"$f":"PENYATAAN!F11","v":"Mengekalkan penyertaan Anugerah Harta Intelek Negara (AHIN)"},{"$f":"PENYATAAN!P11","v":"1. Penyataan"},{"$f":"PENYATAAN!G11","v":"Tidak Ketara"},{"$f":"PENYATAAN!I11","v":1},{"$f":"PENYATAAN!J11","v":"Tidak Dapat Dijangka"},{"$f":"PENYATAAN!L11","v":1},1,"Rendah",{"$f":"PENYATAAN!N11","v":0},{"$f":"PENYATAAN!O11","v":"Pemantauan secara berterusan"}]
[{"$f":"PENYATAAN!A12","v":4},{"$f":"'QMS OPRISK'!F7","v":"Perkhidmatan"},"Putra Science Park","Shahriman bin Hashim",2019,{"$f":"PENYATAAN!B12","v":"Pembayaran balik dana Mikrokredit tidak dilunaskan oleh peserta menyebabkan kurang dana untuk ditawarkan kepada peserta yang baharu"},{"$f":"PENYATAAN!C12","v":"Dalaman"},{"$f":"PENYATAAN!D12","v":"Penyelidikan & Inovasi"},{"$f":"PENYATAAN!E12","v":"Usahawan pelajar baharu tidak dapat dilahirkan "},{"$f":"PENYATAAN!F12","v":"`-notis bayaran secara bertulis dan telefon/ whatsapp\n- transkrip dan sijil bergraduat UPM tidak akan diberikan kepada pelajar"},{"$f":"PENYATAAN!P12","v":"1. Penyataan"},{"$f":"PENYATAAN!G12","v":"Kecil"},{"$f":"PENYATAAN!I12","v":2},{"$f":"PENYATAAN!J12","v":"Tidak Dapat Dijangka"},{"$f":"PENYATAAN!L12","v":1},2,"Rendah",{"$f":"PENYATAAN!N12","v":0},{"$f":"PENYATAAN!O12","v":"Pemantauan secara berterusan"}]
[{"$f":"PENYATAAN!A13","v":5},{"$f":"'QMS OPRISK'!F7","v":"Perkhidmatan"},"Putra Science Park","Shahriman bin Hashim",2019,{"$f":"PENYATAAN!B13","v":"Kurang penyertaan permohonan dana program Mikrokredit menyebabkan dana tidak dapat dimanfaatkan"},{"$f":"PENYATAAN!C13","v":"Dalaman"},{"$f":"PENYATAAN!D13","v":"Penyelidikan & Inovasi"},{"$f":"PENYATAAN!E13","v":"Usahawan pelajar baharu tidak dapat dilahirkan "},{"$f":"PENYATAAN!F13","v":"Sebarkan hebahan program melalui laman Web, CEM, Wazan dan Billboard UPM, facebook, Whatsapp Group"},{"$f":"PENYATAAN!P13","v":"1. Penyataan"},{"$f":"PENYATAAN!G13","v":"Kecil"},{"$f":"PENYATAAN!I13","v":2},{"$f":"PENYATAAN!J13","v":"Jarang Sekali"},{"$f":"PENYATAAN!L13","v":2},4,"Rendah",{"$f":"PENYATAAN!N13","v":0},{"$f":"PENYATAAN!O13","v":"Risiko telah dikawal"}]
[{"$f":"PENYATAAN!A14","v":6},{"$f":"'QMS OPRISK'!F7","v":"Perkhidmatan"},"Putra Science Park","Shahriman bin Hashim",2019,{"$f":"PENYATAAN!B14","v":"Peruntukan bagi aktiviti promosi dan pemasaran inovasi yang berkurangan setiap tahun -Pemotongan peruntukan daripada kerajaan  (-30% bagi tahun 2017) menyebabkan aktiviti promosi berkurangan bagi mendapatkan industri yang berpotensi menjalankan kerjasama dengan UPM "},{"$f":"PENYATAAN!C14","v":"Luaran"},{"$f":"PENYATAAN!D14","v":"Penyelidikan & Inovasi"},{"$f":"PENYATAAN!E14","v":"i. Menjejaskan KPI Promosi dan Pemasaran Inovasi PSP - Bilangan industri"},{"$f":"PENYATAAN!F14","v":"Memohon peruntukan tambahan seperti Dana RU bagi menampung kos promosi (pameran) yang wajib disertai dan melibatkan kos tinggi"},{"$f":"PENYATAAN!P14","v":"1. Penyataan"},{"$f":"PENYATAAN!G14","v":"Kecil"},{"$f":"PENYATAAN!I14","v":2},{"$f":"PENYATAAN!J14","v":"Jarang Sekali"},{"$f":"PENYATAAN!L14","v":2},4,"Rendah",{"$f":"PENYATAAN!N14","v":0},{"$f":"PENYATAAN!O14","v":"Pemantauan secara berterusan"}]
[{"$f":"PENYATAAN!A15","v":7},{"$f":"'QMS OPRISK'!F7","v":"Perkhidmatan"},"Putra Science Park","Shahriman bin Hashim",2019,{"$f":"PENYATAAN!B15","v":"Kesukaran memasang bunting promosi dan staf berisiko mengalami kecederaan semasa memasang bunting aktiviti promosi pada tiang lampu setiap kali program dijalankan menyebabkan kecederaan kepada staf yang memasang bunting "},{"$f":"PENYATAAN!C15","v":"Dalaman"},{"$f":"PENYATAAN!D15","v":"Penyelidikan & Inovasi"},{"$f":"PENYATAAN!E15","v":"Menjejaskan keselamatan dan kebajikan pekerja"},{"$f":"PENYATAAN!F15","v":"Membangunkan inovasi baharu bagi memudahkan kerja pemasangan bunting menggantikan penggunaan tangga di bawah program KIK PSP/TNCPI"},{"$f":"PENYATAAN!P15","v":"1. Penyataan"},{"$f":"PENYATAAN!G15","v":"Tidak Ketara"},{"$f":"PENYATAAN!I15","v":1},{"$f":"PENYATAAN!J15","v":"Tidak Dapat Dijangka"},{"$f":"PENYATAAN!L15","v":1},1,"Rendah",{"$f":"PENYATAAN!N15","v":0},{"$f":"PENYATAAN!O15","v":"Tempoh pelaksanaan : Jun 2018"}]
[{"$f":"PENYATAAN!A16","v":8},{"$f":"'QMS OPRISK'!F7","v":"Perkhidmatan"},"Putra Science Park","Shahriman bin Hashim",2019,{"$f":"PENYATAAN!B16","v":"Kesalahan penterjemahan kenyataan media bagi hebahan promosi hasil penyelidikan oleh wartawan\n - Wartawan salah faham/kurang faham penjelasan teknikal daripada penyelidik semasa sidang media "},{"$f":"PENYATAAN!C16","v":"Luaran"},{"$f":"PENYATAAN!D16","v":"Penyelidikan & Inovasi"},{"$f":"PENYATAAN!E16","v":"Menjejaskan reputasi dan memberi maklumat yang salah kepada orang awam /pembaca"},{"$f":"PENYATAAN!F16","v":"1- Menyediakan kenyataan media dalam bentuk yang dapat difahami oleh orang biasa di dalam dwi bahasa.\n2- Maklumat penyelidikan disediakan di dalam bentuk soalan-jawapan\n3- Slide pembentangan teknologi turut diberi kepada wartawan selain kenyataan media dan soalan-jawapan."},{"$f":"PENYATAAN!P16","v":"1. Penyataan"},{"$f":"PENYATAAN!G16","v":"Tinggi"},{"$f":"PENYATAAN!I16","v":4},{"$f":"PENYATAAN!J16","v":"Tidak Dapat Dijangka"},{"$f":"PENYATAAN!L16","v":1},4,"Rendah",{"$f":"PENYATAAN!N16","v":0},{"$f":"PENYATAAN!O16","v":"Kawalan sedia ada adalah berkesan"}]
[{"$f":"PENYATAAN!A17","v":9},{"$f":"'QMS OPRISK'!F7","v":"Perkhidmatan"},"Putra Science Park","Shahriman bin Hashim",2019,{"$f":"PENYATAAN!B17","v":"Permohonan Suai Padan Teknologi (SPT) yang sukar mendapat maklumbalas PTJ/lain, tidak dibuat susulan selanjutnya selepas promosi tamat menyebabkan peluang kerjasama dengan industri tidak dapat diteruskan"},{"$f":"PENYATAAN!C17","v":"Dalaman"},{"$f":"PENYATAAN!D17","v":"Penyelidikan & Inovasi"},{"$f":"PENYATAAN!E17","v":"Menjejaskan KPI Penyelidikan dan inovasi  (TKHL)"},{"$f":"PENYATAAN!F17","v":"Pemantauan secara menggunakan database Industry Relation Management (IRM)"},{"$f":"PENYATAAN!P17","v":"1. Penyataan"},{"$f":"PENYATAAN!G17","v":"Kecil"},{"$f":"PENYATAAN!I17","v":2},{"$f":"PENYATAAN!J17","v":"Dapat Dijangka"},{"$f":"PENYATAAN!L17","v":3},6,"Sederhana",{"$f":"PENYATAAN!N17","v":"1- Pemantauan secara manual melalui Jadual Pemantauan Kerja SPT di papan putih Pejabat\n2- Memberi maklumbalas penerimaan permohonan industri selepas aktiviti promosi tamat sebelum dipantau melalui Jadual Pemantauan Kerja"},{"$f":"PENYATAAN!O17","v":"Tempoh pelaksanaan : Mac 2019\n\nPemantauan menggunakan colour-coding database mengikut tempoh maklumbalas tertentu, bagi setiap industri yang akan ditetapkan semula - akan digunakan bagi menggantikan kaedah manual yang masih  belum berkesan."}]
[{"$f":"PENYATAAN!A18","v":10},{"$f":"'QMS OPRISK'!F7","v":"Perkhidmatan"},"Putra Science Park","Shahriman bin Hashim",2019,{"$f":"PENYATAAN!B18","v":"Kurang penyertaan permohonan dana promosi produk daripada penyelidik  menyebabkan kurang bilangan projek diluluskan"},{"$f":"PENYATAAN!C18","v":"Dalaman"},{"$f":"PENYATAAN!D18","v":"Penyelidikan & Inovasi"},{"$f":"PENYATAAN!E18","v":"Tidak mencapai sasaran KPI Dana Promosi yang ditetapkan"},{"$f":"PENYATAAN!F18","v":"Membuat hebahan melalui buletin, laman web"},{"$f":"PENYATAAN!P18","v":"1. Penyataan"},{"$f":"PENYATAAN!G18","v":"Kecil"},{"$f":"PENYATAAN!I18","v":2},{"$f":"PENYATAAN!J18","v":"Jarang Sekali"},{"$f":"PENYATAAN!L18","v":2},4,"Rendah",{"$f":"PENYATAAN!N18","v":0},{"$f":"PENYATAAN!O18","v":"Tempoh pelaksanaan : Oktober 2018\n\nDana Promosi telah dihentikan penawaran dan perkhidmatannya kepada penyelidik UPM di sebabkan kekurangan Dana RU. "}]
[{"$f":"PENYATAAN!A19","v":11},{"$f":"'QMS OPRISK'!F7","v":"Perkhidmatan"},"Putra Science Park","Shahriman bin Hashim",2019,{"$f":"PENYATAAN!B19","v":"Kekurangan Staf Edu-Park bagi mengendalikan aktiviti yang disertai pelawat diseluruh lokasi Edupark UPM menyebabkan kerja tidak dilaksanakan dengan lancar"},{"$f":"PENYATAAN!C19","v":"Dalaman"},{"$f":"PENYATAAN!D19","v":"Penyelidikan & Inovasi"},{"$f":"PENYATAAN!E19","v":"Menjejaskan KPI penjanaan dana Edupark"},{"$f":"PENYATAAN!F19","v":"menggunakan khidmat pelajar"},{"$f":"PENYATAAN!P19","v":"1. Penyataan"},{"$f":"PENYATAAN!G19","v":"Tidak Ketara"},{"$f":"PENYATAAN!I19","v":1},{"$f":"PENYATAAN!J19","v":"Jarang Sekali"},{"$f":"PENYATAAN!L19","v":2},2,"Rendah",{"$f":"PENYATAAN!N19","v":0},{"$f":"PENYATAAN!O19","v":"Pelaksanaan berterusan. Menggunakan khidmat pelajar Putra Bakti dan pelajar latihan industri untuk menampung tenaga sumber manusia. "}]
[{"$f":"PENYATAAN!A20","v":12},{"$f":"'QMS OPRISK'!F7","v":"Perkhidmatan"},"Putra Science Park","Shahriman bin Hashim",2019,{"$f":"PENYATAAN!B20","v":"Kekurangan Peruntukan Kewangan bagi pengurusan Edu-Park menyebabkan penyelenggaraan /penggantian peralatan tidak dapat dijalankan dan pembelian bahan pameran dan modul tidak dapat dilakukan"},{"$f":"PENYATAAN!C20","v":"Dalaman"},{"$f":"PENYATAAN!D20","v":"Penyelidikan & Inovasi"},{"$f":"PENYATAAN!E20","v":"Menjejaskan KPI penjanaan dana Edupark"},{"$f":"PENYATAAN!F20","v":"1)lokasi lawatan ditutup buat sementara waktu 2)menyediakan modul gantian sekiranya modul tersebut tidak dapat dijalankan"},{"$f":"PENYATAAN!P20","v":"1. Penyataan"},{"$f":"PENYATAAN!G20","v":"Tidak Ketara"},{"$f":"PENYATAAN!I20","v":1},{"$f":"PENYATAAN!J20","v":"Jarang Sekali"},{"$f":"PENYATAAN!L20","v":2},2,"Rendah",{"$f":"PENYATAAN!N20","v":0},{"$f":"PENYATAAN!O20","v":"Naiktaraf /Selenggara menggunakan peruntukan sedia ada dan sederhana "}]
[{"$f":"PENYATAAN!A21","v":13},{"$f":"'QMS OPRISK'!F7","v":"Perkhidmatan"},"Putra Science Park","Shahriman bin Hashim",2019,{"$f":"PENYATAAN!B21","v":"Tahap keselamatan pelawat Edu-Park berisiko mengalami kecederaan semasa lawatan pelawat Edupark "},{"$f":"PENYATAAN!C21","v":"Dalaman"},{"$f":"PENYATAAN!D21","v":"Penyelidikan & Inovasi"},{"$f":"PENYATAAN!E21","v":"Menjejaskan reputasi Universiti"},{"$f":"PENYATAAN!F21","v":"1. Pekerja Edu Park sebagai pemantau dan pengiring keselamatan sepanjang lawatan\n2. Membawa peti kecemasan dan kenderaan jabatan sebagai persediaan"},{"$f":"PENYATAAN!P21","v":"1. Penyataan"},{"$f":"PENYATAAN!G21","v":"Tidak Ketara"},{"$f":"PENYATAAN!I21","v":1},{"$f":"PENYATAAN!J21","v":"Tidak Dapat Dijangka"},{"$f":"PENYATAAN!L21","v":1},1,"Rendah",{"$f":"PENYATAAN!N21","v":0},{"$f":"PENYATAAN!O21","v":"Pelaksanaan berterusan. Kenderaan rasmi jabatan juga digunakan sebagai kenderaan 'standby' jika berlaku kemalangan."}]
[{"$f":"PENYATAAN!A22","v":14},{"$f":"'QMS OPRISK'!F7","v":"Perkhidmatan"},"Putra Science Park","Shahriman bin Hashim",2019,{"$f":"PENYATAAN!B22","v":"kehadiran pelawat tidak mengikut ketetapan waktu yang telah dibuat oleh Edu-Park"},{"$f":"PENYATAAN!C22","v":"Luaran"},{"$f":"PENYATAAN!D22","v":"Penyelidikan & Inovasi"},{"$f":"PENYATAAN!E22","v":"Mengganggu perjalanan waktu lawatan "},{"$f":"PENYATAAN!F22","v":"memberi peringatan kepada pelawat 3 hari sebelum lawatan untuk tiba pada masa yang telah ditetapkan."},{"$f":"PENYATAAN!P22","v":"1. Penyataan"},{"$f":"PENYATAAN!G22","v":"Tidak Ketara"},{"$f":"PENYATAAN!I22","v":1},{"$f":"PENYATAAN!J22","v":"Dapat Dijangka"},{"$f":"PENYATAAN!L22","v":3},3,"Rendah",{"$f":"PENYATAAN!N22","v":0},{"$f":"PENYATAAN!O22","v":"Pelaksanaan berterusan. Tiada masalah besar dalam menyusun atur semula masa lawatan"}]
[{"$f":"PENYATAAN!A23","v":15},{"$f":"'QMS OPRISK'!F7","v":"Perkhidmatan"},"Putra Science Park","Shahriman bin Hashim",2019,{"$f":"PENYATAAN!B23","v":"Sesi perundingan perniagaan (business negotiation) melibatkan pemindahan  teknologi yang dapat dilaksanakan dengan pihak industri adalah terhad kerana kekurangan perunding perniagaan(business negotiator) yang bertauliah dalam bidang pemindahan teknologi yang diiktiraf oleh universiti"},{"$f":"PENYATAAN!C23","v":"Dalaman"},{"$f":"PENYATAAN!D23","v":"Penyelidikan & Inovasi"},{"$f":"PENYATAAN!E23","v":"i. Menjejaskan KPI Penyelidikan dan Inovasi (TKHL )"},{"$f":"PENYATAAN!F23","v":"Perundingan perniagaan(business negotiation) hanya dilaksanakan  oleh Pengarah PSP sedia ada yang telah dilatih didalam bidang perundingan pernigaan yang melibatkan pemindahan teknologi daripada universiti kepada industri."},{"$f":"PENYATAAN!P23","v":"1. Penyataan"},{"$f":"PENYATAAN!G23","v":"Sederhana"},{"$f":"PENYATAAN!I23","v":3},{"$f":"PENYATAAN!J23","v":"Paling Mungkin"},{"$f":"PENYATAAN!L23","v":5},15,"Tinggi",{"$f":"PENYATAAN!N23","v":"1. Pembangunan kapasti(capacity building) kakitangan UPM yang terlibat dengan aktiviti pemindahan teknologi melalui  penyertaan program-program pentauliahan yang berkenaan dengan pemindahan teknologi seperti kursus Registered Technology Transfer Profesional(RTTP) dengan Association of University Technology Managers(AUTM) , Licensing Academy dengan U.C. Davis dan sebagainya.  \n\n2. Pengiktirafan oleh pihak Berkuasa Universiti kepada kakitangan UPM yang telah dilatih seperti di atas untuk kakitangan terbabit melaksanakan perundingan perniagaan (business negotiation) bagi pihak UPM bagi tujuan pemindahan teknologi. \n"},{"$f":"PENYATAAN!O23","v":" Strategi tidak dapat dilaksanakan kerana kekangan kewangan Universiti untuk menghantar kakitangan UPM menghadiri kursus-kursus bertauliah.Permohonan peruntukan akan dibuat bagi tahun 2019."}]
[{"$f":"PENYATAAN!A24","v":16},{"$f":"'QMS OPRISK'!F7","v":"Perkhidmatan"},"Putra Science Park","Shahriman bin Hashim",2019,{"$f":"PENYATAAN!B24","v":"Kekurangan peruntukan kewangan pengurusan dan promosi Putra Dynamics menyebabkan Promosi Putra Dynamics tidak dapat dilakukan secara agresif  "},{"$f":"PENYATAAN!C24","v":"Dalaman"},{"$f":"PENYATAAN!D24","v":"Penyelidikan & Inovasi"},{"$f":"PENYATAAN!E24","v":"Menjejaskan KPI bilangan peserta yang menyertai latihan "},{"$f":"PENYATAAN!F24","v":"Menggunakan jaringan sedia ada"},{"$f":"PENYATAAN!P24","v":"1. Penyataan"},{"$f":"PENYATAAN!G24","v":"Sederhana"},{"$f":"PENYATAAN!I24","v":3},{"$f":"PENYATAAN!J24","v":"Tidak Dapat Dijangka"},{"$f":"PENYATAAN!L24","v":1},3,"Rendah",{"$f":"PENYATAAN!N24","v":0},{"$f":"PENYATAAN!O24","v":"Strategi sedia ada adalah berkesan"}]
[{"$f":"PENYATAAN!A25","v":17},{"$f":"'QMS OPRISK'!F7","v":"Perkhidmatan"},"Putra Science Park","Shahriman bin Hashim",2019,{"$f":"PENYATAAN!B25","v":"Kesukaran untuk mendapatkan pelanggan untuk menyertai latihan yang ditawarkan Putra Dynamics menyebabkan kurang penjanaan pendapatan"},{"$f":"PENYATAAN!C25","v":"Dalaman"},{"$f":"PENYATAAN!D25","v":"Penyelidikan & Inovasi"},{"$f":"PENYATAAN!E25","v":"Menjejaskan KPI bilangan peserta yang menyertai latihan "},{"$f":"PENYATAAN!F25","v":" Menggunakan jaringan daripada pengurusan PSP untuk mendapatkan pelanggan yang sesuai"},{"$f":"PENYATAAN!P25","v":"1. Penyataan"},{"$f":"PENYATAAN!G25","v":"Sederhana"},{"$f":"PENYATAAN!I25","v":3},{"$f":"PENYATAAN!J25","v":"Tidak Dapat Dijangka"},{"$f":"PENYATAAN!L25","v":1},3,"Rendah",{"$f":"PENYATAAN!N25","v":0},{"$f":"PENYATAAN!O25","v":"Strategi sedia ada adalah berkesan"}]
[{"$f":"PENYATAAN!A26","v":18},{"$f":"'QMS OPRISK'!F7","v":"Perkhidmatan"},"Putra Science Park","Shahriman bin Hashim",2019,{"$f":"PENYATAAN!B26","v":"Nilai matawang negara (RM) berubah menyebabkan kos latihan  Putra Dynamic meningkatkan"},{"$f":"PENYATAAN!C26","v":"Luaran"},{"$f":"PENYATAAN!D26","v":"Penyelidikan & Inovasi"},{"$f":"PENYATAAN!E26","v":"Menjejaskan KPI bilangan peserta yang menyertai latihan "},{"$f":"PENYATAAN!F26","v":"Meningkatkan kos kontigensi dalam implikasi kewangan latihan"},{"$f":"PENYATAAN!P26","v":"1. Penyataan"},{"$f":"PENYATAAN!G26","v":"Sederhana"},{"$f":"PENYATAAN!I26","v":3},{"$f":"PENYATAAN!J26","v":"Tidak Dapat Dijangka"},{"$f":"PENYATAAN!L26","v":1},3,"Rendah",{"$f":"PENYATAAN!N26","v":0},{"$f":"PENYATAAN!O26","v":"Kawalan sedia ada adalah berkesan"}]
[{"$f":"PENYATAAN!A27","v":19},{"$f":"'QMS OPRISK'!F7","v":"Perkhidmatan"},"Putra Science Park","Shahriman bin Hashim",2019,{"$f":"PENYATAAN!B27","v":"Peserta Program Innohub menarik diri setelah program berjalan menyebabkan perancangan jadual perbatuan projek tidak dapat dilaksanakan"},{"$f":"PENYATAAN!C27","v":"Dalaman"},{"$f":"PENYATAAN!D27","v":"Penyelidikan & Inovasi"},{"$f":"PENYATAAN!E27","v":"Pelaksanaan projek tergendala dan teknologi tidak dapat dikomersilkan."},{"$f":"PENYATAAN!F27","v":"Pelan penggantian Peserta baharu / projek ditamatkan"},{"$f":"PENYATAAN!P27","v":"1. Penyataan"},{"$f":"PENYATAAN!G27","v":"Kecil"},{"$f":"PENYATAAN!I27","v":2},{"$f":"PENYATAAN!J27","v":"Jarang Sekali"},{"$f":"PENYATAAN!L27","v":2},4,"Rendah",{"$f":"PENYATAAN!N27","v":0},{"$f":"PENYATAAN!O27","v":"Pelan sedia ada adalah berkesan"}]
[{"$f":"PENYATAAN!A33","v":25},{"$f":"'QMS OPRISK'!F7","v":"Perkhidmatan"},"Putra Science Park","Shahriman bin Hashim",2019,{"$f":"PENYATAAN!B33","v":0},{"$f":"PENYATAAN!C33","v":"Pilihan Klasifikasi Isu"},{"$f":"PENYATAAN!D33","v":"Pilihan Kategori Isu"},{"$f":"PENYATAAN!E33","v":0},{"$f":"PENYATAAN!F33","v":0},{"$f":"PENYATAAN!P33","v":"1. Penyataan"},{"$f":"PENYATAAN!G33","v":"Pilihan Tahap Keterukan"},{"$f":"PENYATAAN!I33","v":0},{"$f":"PENYATAAN!J33","v":"Pilihan Tahap Kemungkinan"},{"$f":"PENYATAAN!L33","v":0},0,"Rendah",{"$f":"PENYATAAN!N33","v":0},{"$f":"PENYATAAN!O33","v":0}]

{"sheet":"DATA","index":6,"n_rows":76,"n_cols":21,"rows_kept":76,"cut":false,"hidden":false,"merged":[]}
["BIL","Klasifikasi PTJ","Nama PTJ","Nama PYB","Tahun","Penyataan Isu","Klasifikasi Isu","Kategori Isu","Penyataan Risiko","Kawalan Sedia Ada","Penilaian Risiko Berkala","XT","XS","YT","YS","XSYS","Tahap Risiko","Strategi Tindakan","Tindakan Atas Risiko","Dokumen","Catatan"]
[{"$f":"PENYATAAN!A9","v":1},{"$f":"'QMS OPRISK'!F7","v":"Perkhidmatan"},{"$f":"'QMS OPRISK'!F9","v":"Putra Science Park"},{"$f":"'QMS OPRISK'!$F$11","v":"Shahriman bin Hashim"},{"$f":"'QMS OPRISK'!F13","v":2019},{"$f":"PENYATAAN!B9","v":"Pengurangan jumlah permohonan menyebabkan bilangan pemfailan  harta intelek  dalam dan luar negara  terjejas         "},{"$f":"PENYATAAN!C9","v":"Dalaman"},{"$f":"PENYATAAN!D9","v":"Penyelidikan & Inovasi"},{"$f":"PENYATAAN!E9","v":"i. Menjejaskan KPI Penyelidikan dan Inovasi (Pemfailan harta intelek)"},{"$f":"PENYATAAN!F9","v":"Seminar dan Klinik IP  di PTJ / atas permintaan PTJ"},{"$f":"PENYATAAN!P9","v":"1. Penyataan"},{"$f":"PENYATAAN!J9","v":"Tidak Dapat Dijangka"},{"$f":"PENYATAAN!L9","v":1},{"$f":"PENYATAAN!G9","v":"Tidak Ketara"},{"$f":"PENYATAAN!I9","v":1},{"$f":"M2*O2","v":1},{"$f":"VLOOKUP(P2,DROPLIST!AB:AC,2,FALSE)","v":"Rendah"},{"$f":"PENYATAAN!N9","v":0},"-",{"$f":"PENYATAAN!O9","v":"Pemantauan secara berterusan"},"-"]
[{"$f":"PENYATAAN!A10","v":2},{"$f":"'QMS OPRISK'!F7","v":"Perkhidmatan"},{"$f":"'QMS OPRISK'!F9","v":"Putra Science Park"},{"$f":"'QMS OPRISK'!$F$11","v":"Shahriman bin Hashim"},{"$f":"'QMS OPRISK'!F13","v":2019},{"$f":"PENYATAAN!B10","v":"Kekangan peruntukan bagi perlindungan harta intelek menyebab universiti menanggung kos perlindungan harta intelek luar negara yang tinggi "},{"$f":"PENYATAAN!C10","v":"Dalaman"},{"$f":"PENYATAAN!D10","v":"Penyelidikan & Inovasi"},{"$f":"PENYATAAN!E10","v":"i. Menjejaskan KPI Penyelidikan dan Inovasi (Pemfailan harta intelek)"},{"$f":"PENYATAAN!F10","v":"Menamatkan perlindungan paten luar negara melebihi 5 tahun yang tidak dikomersialkan  "},{"$f":"PENYATAAN!P10","v":"1. Penyataan"},{"$f":"PENYATAAN!J10","v":"Jarang Sekali"},{"$f":"PENYATAAN!L10","v":2},{"$f":"PENYATAAN!G10","v":"Kecil"},{"$f":"PENYATAAN!I10","v":2},{"$f":"M3*O3","v":4},{"$f":"VLOOKUP(P3,DROPLIST!AB:AC,2,FALSE)","v":"Rendah"},{"$f":"PENYATAAN!N10","v":0},"-",{"$f":"PENYATAAN!O10","v":"1. Pemantauan secara berterusan.\n\n2. Pembangunan garis panduan penamatan harta intelek telah dibentangkan sebanyak 2 kali dalam mesyuarat JKPU pada tahun 2018. Garis panduan ini akan dibawa untuk kelulusan mesyuarat Jwatankuasa Pengurusan Universiti."},"-"]
[{"$f":"PENYATAAN!A11","v":3},{"$f":"'QMS OPRISK'!F7","v":"Perkhidmatan"},{"$f":"'QMS OPRISK'!F9","v":"Putra Science Park"},{"$f":"'QMS OPRISK'!$F$11","v":"Shahriman bin Hashim"},{"$f":"'QMS OPRISK'!F13","v":2019},{"$f":"PENYATAAN!B11","v":"Pengiktirafan UPM sebagai organisasi pengurusan harta intelek terbaik negara meningkatkan peluang perniagaan baharu Putra Dynamic kerana menjadi pakar rujuk "},{"$f":"PENYATAAN!C11","v":"Dalaman"},{"$f":"PENYATAAN!D11","v":"Penyelidikan & Inovasi"},{"$f":"PENYATAAN!E11","v":"Meningkatkan bilangan peserta luar yang menyertai latihan "},{"$f":"PENYATAAN!F11","v":"Mengekalkan penyertaan Anugerah Harta Intelek Negara (AHIN)"},{"$f":"PENYATAAN!P11","v":"1. Penyataan"},{"$f":"PENYATAAN!J11","v":"Tidak Dapat Dijangka"},{"$f":"PENYATAAN!L11","v":1},{"$f":"PENYATAAN!G11","v":"Tidak Ketara"},{"$f":"PENYATAAN!I11","v":1},1,{"$f":"VLOOKUP(P4,DROPLIST!AB:AC,2,FALSE)","v":"Rendah"},{"$f":"PENYATAAN!N11","v":0},"-",{"$f":"PENYATAAN!O11","v":"Pemantauan secara berterusan"},"-"]
[{"$f":"PENYATAAN!A12","v":4},{"$f":"'QMS OPRISK'!F7","v":"Perkhidmatan"},{"$f":"'QMS OPRISK'!F9","v":"Putra Science Park"},{"$f":"'QMS OPRISK'!$F$11","v":"Shahriman bin Hashim"},{"$f":"'QMS OPRISK'!F13","v":2019},{"$f":"PENYATAAN!B12","v":"Pembayaran balik dana Mikrokredit tidak dilunaskan oleh peserta menyebabkan kurang dana untuk ditawarkan kepada peserta yang baharu"},{"$f":"PENYATAAN!C12","v":"Dalaman"},{"$f":"PENYATAAN!D12","v":"Penyelidikan & Inovasi"},{"$f":"PENYATAAN!E12","v":"Usahawan pelajar baharu tidak dapat dilahirkan "},{"$f":"PENYATAAN!F12","v":"`-notis bayaran secara bertulis dan telefon/ whatsapp\n- transkrip dan sijil bergraduat UPM tidak akan diberikan kepada pelajar"},{"$f":"PENYATAAN!P12","v":"1. Penyataan"},{"$f":"PENYATAAN!J12","v":"Tidak Dapat Dijangka"},{"$f":"PENYATAAN!L12","v":1},{"$f":"PENYATAAN!G12","v":"Kecil"},{"$f":"PENYATAAN!I12","v":2},2,{"$f":"VLOOKUP(P5,DROPLIST!AB:AC,2,FALSE)","v":"Rendah"},{"$f":"PENYATAAN!N12","v":0},"-",{"$f":"PENYATAAN!O12","v":"Pemantauan secara berterusan"},"-"]
[{"$f":"PENYATAAN!A13","v":5},{"$f":"'QMS OPRISK'!F7","v":"Perkhidmatan"},{"$f":"'QMS OPRISK'!F9","v":"Putra Science Park"},{"$f":"'QMS OPRISK'!$F$11","v":"Shahriman bin Hashim"},{"$f":"'QMS OPRISK'!F13","v":2019},{"$f":"PENYATAAN!B13","v":"Kurang penyertaan permohonan dana program Mikrokredit menyebabkan dana tidak dapat dimanfaatkan"},{"$f":"PENYATAAN!C13","v":"Dalaman"},{"$f":"PENYATAAN!D13","v":"Penyelidikan & Inovasi"},{"$f":"PENYATAAN!E13","v":"Usahawan pelajar baharu tidak dapat dilahirkan "},{"$f":"PENYATAAN!F13","v":"Sebarkan hebahan program melalui laman Web, CEM, Wazan dan Billboard UPM, facebook, Whatsapp Group"},{"$f":"PENYATAAN!P13","v":"1. Penyataan"},{"$f":"PENYATAAN!J13","v":"Jarang Sekali"},{"$f":"PENYATAAN!L13","v":2},{"$f":"PENYATAAN!G13","v":"Kecil"},{"$f":"PENYATAAN!I13","v":2},4,{"$f":"VLOOKUP(P6,DROPLIST!AB:AC,2,FALSE)","v":"Rendah"},{"$f":"PENYATAAN!N13","v":0},"-",{"$f":"PENYATAAN!O13","v":"Risiko telah dikawal"},"-"]
[{"$f":"PENYATAAN!A14","v":6},{"$f":"'QMS OPRISK'!F7","v":"Perkhidmatan"},{"$f":"'QMS OPRISK'!F9","v":"Putra Science Park"},{"$f":"'QMS OPRISK'!$F$11","v":"Shahriman bin Hashim"},{"$f":"'QMS OPRISK'!F13","v":2019},{"$f":"PENYATAAN!B14","v":"Peruntukan bagi aktiviti promosi dan pemasaran inovasi yang berkurangan setiap tahun -Pemotongan peruntukan daripada kerajaan  (-30% bagi tahun 2017) menyebabkan aktiviti promosi berkurangan bagi mendapatkan industri yang berpotensi menjalankan kerjasama dengan UPM "},{"$f":"PENYATAAN!C14","v":"Luaran"},{"$f":"PENYATAAN!D14","v":"Penyelidikan & Inovasi"},{"$f":"PENYATAAN!E14","v":"i. Menjejaskan KPI Promosi dan Pemasaran Inovasi PSP - Bilangan industri"},{"$f":"PENYATAAN!F14","v":"Memohon peruntukan tambahan seperti Dana RU bagi menampung kos promosi (pameran) yang wajib disertai dan melibatkan kos tinggi"},{"$f":"PENYATAAN!P14","v":"1. Penyataan"},{"$f":"PENYATAAN!J14","v":"Jarang Sekali"},{"$f":"PENYATAAN!L14","v":2},{"$f":"PENYATAAN!G14","v":"Kecil"},{"$f":"PENYATAAN!I14","v":2},4,{"$f":"VLOOKUP(P7,DROPLIST!AB:AC,2,FALSE)","v":"Rendah"},{"$f":"PENYATAAN!N14","v":0},"-",{"$f":"PENYATAAN!O14","v":"Pemantauan secara berterusan"},"-"]
[{"$f":"PENYATAAN!A15","v":7},{"$f":"'QMS OPRISK'!F7","v":"Perkhidmatan"},{"$f":"'QMS OPRISK'!F9","v":"Putra Science Park"},{"$f":"'QMS OPRISK'!$F$11","v":"Shahriman bin Hashim"},{"$f":"'QMS OPRISK'!F13","v":2019},{"$f":"PENYATAAN!B15","v":"Kesukaran memasang bunting promosi dan staf berisiko mengalami kecederaan semasa memasang bunting aktiviti promosi pada tiang lampu setiap kali program dijalankan menyebabkan kecederaan kepada staf yang memasang bunting "},{"$f":"PENYATAAN!C15","v":"Dalaman"},{"$f":"PENYATAAN!D15","v":"Penyelidikan & Inovasi"},{"$f":"PENYATAAN!E15","v":"Menjejaskan keselamatan dan kebajikan pekerja"},{"$f":"PENYATAAN!F15","v":"Membangunkan inovasi baharu bagi memudahkan kerja pemasangan bunting menggantikan penggunaan tangga di bawah program KIK PSP/TNCPI"},{"$f":"PENYATAAN!P15","v":"1. Penyataan"},{"$f":"PENYATAAN!J15","v":"Tidak Dapat Dijangka"},{"$f":"PENYATAAN!L15","v":1},{"$f":"PENYATAAN!G15","v":"Tidak Ketara"},{"$f":"PENYATAAN!I15","v":1},1,{"$f":"VLOOKUP(P8,DROPLIST!AB:AC,2,FALSE)","v":"Rendah"},{"$f":"PENYATAAN!N15","v":0},"-",{"$f":"PENYATAAN!O15","v":"Tempoh pelaksanaan : Jun 2018"},"-"]
[{"$f":"PENYATAAN!A16","v":8},{"$f":"'QMS OPRISK'!F7","v":"Perkhidmatan"},{"$f":"'QMS OPRISK'!F9","v":"Putra Science Park"},{"$f":"'QMS OPRISK'!$F$11","v":"Shahriman bin Hashim"},{"$f":"'QMS OPRISK'!F13","v":2019},{"$f":"PENYATAAN!B16","v":"Kesalahan penterjemahan kenyataan media bagi hebahan promosi hasil penyelidikan oleh wartawan\n - Wartawan salah faham/kurang faham penjelasan teknikal daripada penyelidik semasa sidang media "},{"$f":"PENYATAAN!C16","v":"Luaran"},{"$f":"PENYATAAN!D16","v":"Penyelidikan & Inovasi"},{"$f":"PENYATAAN!E16","v":"Menjejaskan reputasi dan memberi maklumat yang salah kepada orang awam /pembaca"},{"$f":"PENYATAAN!F16","v":"1- Menyediakan kenyataan media dalam bentuk yang dapat difahami oleh orang biasa di dalam dwi bahasa.\n2- Maklumat penyelidikan disediakan di dalam bentuk soalan-jawapan\n3- Slide pembentangan teknologi turut diberi kepada wartawan selain kenyataan media dan soalan-jawapan."},{"$f":"PENYATAAN!P16","v":"1. Penyataan"},{"$f":"PENYATAAN!J16","v":"Tidak Dapat Dijangka"},{"$f":"PENYATAAN!L16","v":1},{"$f":"PENYATAAN!G16","v":"Tinggi"},{"$f":"PENYATAAN!I16","v":4},4,{"$f":"VLOOKUP(P9,DROPLIST!AB:AC,2,FALSE)","v":"Rendah"},{"$f":"PENYATAAN!N16","v":0},"-",{"$f":"PENYATAAN!O16","v":"Kawalan sedia ada adalah berkesan"},"-"]
[{"$f":"PENYATAAN!A17","v":9},{"$f":"'QMS OPRISK'!F7","v":"Perkhidmatan"},{"$f":"'QMS OPRISK'!F9","v":"Putra Science Park"},{"$f":"'QMS OPRISK'!$F$11","v":"Shahriman bin Hashim"},{"$f":"'QMS OPRISK'!F13","v":2019},{"$f":"PENYATAAN!B17","v":"Permohonan Suai Padan Teknologi (SPT) yang sukar mendapat maklumbalas PTJ/lain, tidak dibuat susulan selanjutnya selepas promosi tamat menyebabkan peluang kerjasama dengan industri tidak dapat diteruskan"},{"$f":"PENYATAAN!C17","v":"Dalaman"},{"$f":"PENYATAAN!D17","v":"Penyelidikan & Inovasi"},{"$f":"PENYATAAN!E17","v":"Menjejaskan KPI Penyelidikan dan inovasi  (TKHL)"},{"$f":"PENYATAAN!F17","v":"Pemantauan secara menggunakan database Industry Relation Management (IRM)"},{"$f":"PENYATAAN!P17","v":"1. Penyataan"},{"$f":"PENYATAAN!J17","v":"Dapat Dijangka"},{"$f":"PENYATAAN!L17","v":3},{"$f":"PENYATAAN!G17","v":"Kecil"},{"$f":"PENYATAAN!I17","v":2},6,{"$f":"VLOOKUP(P10,DROPLIST!AB:AC,2,FALSE)","v":"Sederhana"},{"$f":"PENYATAAN!N17","v":"1- Pemantauan secara manual melalui Jadual Pemantauan Kerja SPT di papan putih Pejabat\n2- Memberi maklumbalas penerimaan permohonan industri selepas aktiviti promosi tamat sebelum dipantau melalui Jadual Pemantauan Kerja"},"-",{"$f":"PENYATAAN!O17","v":"Tempoh pelaksanaan : Mac 2019\n\nPemantauan menggunakan colour-coding database mengikut tempoh maklumbalas tertentu, bagi setiap industri yang akan ditetapkan semula - akan digunakan bagi menggantikan kaedah manual yang masih  belum berkesan."},"-"]
[{"$f":"PENYATAAN!A18","v":10},{"$f":"'QMS OPRISK'!F7","v":"Perkhidmatan"},{"$f":"'QMS OPRISK'!F9","v":"Putra Science Park"},{"$f":"'QMS OPRISK'!$F$11","v":"Shahriman bin Hashim"},{"$f":"'QMS OPRISK'!F13","v":2019},{"$f":"PENYATAAN!B18","v":"Kurang penyertaan permohonan dana promosi produk daripada penyelidik  menyebabkan kurang bilangan projek diluluskan"},{"$f":"PENYATAAN!C18","v":"Dalaman"},{"$f":"PENYATAAN!D18","v":"Penyelidikan & Inovasi"},{"$f":"PENYATAAN!E18","v":"Tidak mencapai sasaran KPI Dana Promosi yang ditetapkan"},{"$f":"PENYATAAN!F18","v":"Membuat hebahan melalui buletin, laman web"},{"$f":"PENYATAAN!P18","v":"1. Penyataan"},{"$f":"PENYATAAN!J18","v":"Jarang Sekali"},{"$f":"PENYATAAN!L18","v":2},{"$f":"PENYATAAN!G18","v":"Kecil"},{"$f":"PENYATAAN!I18","v":2},4,{"$f":"VLOOKUP(P11,DROPLIST!AB:AC,2,FALSE)","v":"Rendah"},{"$f":"PENYATAAN!N18","v":0},"-",{"$f":"PENYATAAN!O18","v":"Tempoh pelaksanaan : Oktober 2018\n\nDana Promosi telah dihentikan penawaran dan perkhidmatannya kepada penyelidik UPM di sebabkan kekurangan Dana RU. "},"-"]
[{"$f":"PENYATAAN!A19","v":11},{"$f":"'QMS OPRISK'!F7","v":"Perkhidmatan"},{"$f":"'QMS OPRISK'!F9","v":"Putra Science Park"},{"$f":"'QMS OPRISK'!$F$11","v":"Shahriman bin Hashim"},{"$f":"'QMS OPRISK'!F13","v":2019},{"$f":"PENYATAAN!B19","v":"Kekurangan Staf Edu-Park bagi mengendalikan aktiviti yang disertai pelawat diseluruh lokasi Edupark UPM menyebabkan kerja tidak dilaksanakan dengan lancar"},{"$f":"PENYATAAN!C19","v":"Dalaman"},{"$f":"PENYATAAN!D19","v":"Penyelidikan & Inovasi"},{"$f":"PENYATAAN!E19","v":"Menjejaskan KPI penjanaan dana Edupark"},{"$f":"PENYATAAN!F19","v":"menggunakan khidmat pelajar"},{"$f":"PENYATAAN!P19","v":"1. Penyataan"},{"$f":"PENYATAAN!J19","v":"Jarang Sekali"},{"$f":"PENYATAAN!L19","v":2},{"$f":"PENYATAAN!G19","v":"Tidak Ketara"},{"$f":"PENYATAAN!I19","v":1},2,{"$f":"VLOOKUP(P12,DROPLIST!AB:AC,2,FALSE)","v":"Rendah"},{"$f":"PENYATAAN!N19","v":0},"-",{"$f":"PENYATAAN!O19","v":"Pelaksanaan berterusan. Menggunakan khidmat pelajar Putra Bakti dan pelajar latihan industri untuk menampung tenaga sumber manusia. "},"-"]
[{"$f":"PENYATAAN!A20","v":12},{"$f":"'QMS OPRISK'!F7","v":"Perkhidmatan"},{"$f":"'QMS OPRISK'!F9","v":"Putra Science Park"},{"$f":"'QMS OPRISK'!$F$11","v":"Shahriman bin Hashim"},{"$f":"'QMS OPRISK'!F13","v":2019},{"$f":"PENYATAAN!B20","v":"Kekurangan Peruntukan Kewangan bagi pengurusan Edu-Park menyebabkan penyelenggaraan /penggantian peralatan tidak dapat dijalankan dan pembelian bahan pameran dan modul tidak dapat dilakukan"},{"$f":"PENYATAAN!C20","v":"Dalaman"},{"$f":"PENYATAAN!D20","v":"Penyelidikan & Inovasi"},{"$f":"PENYATAAN!E20","v":"Menjejaskan KPI penjanaan dana Edupark"},{"$f":"PENYATAAN!F20","v":"1)lokasi lawatan ditutup buat sementara waktu 2)menyediakan modul gantian sekiranya modul tersebut tidak dapat dijalankan"},{"$f":"PENYATAAN!P20","v":"1. Penyataan"},{"$f":"PENYATAAN!J20","v":"Jarang Sekali"},{"$f":"PENYATAAN!L20","v":2},{"$f":"PENYATAAN!G20","v":"Tidak Ketara"},{"$f":"PENYATAAN!I20","v":1},2,{"$f":"VLOOKUP(P13,DROPLIST!AB:AC,2,FALSE)","v":"Rendah"},{"$f":"PENYATAAN!N20","v":0},"-",{"$f":"PENYATAAN!O20","v":"Naiktaraf /Selenggara menggunakan peruntukan sedia ada dan sederhana "},"-"]
[{"$f":"PENYATAAN!A21","v":13},{"$f":"'QMS OPRISK'!F7","v":"Perkhidmatan"},{"$f":"'QMS OPRISK'!F9","v":"Putra Science Park"},{"$f":"'QMS OPRISK'!$F$11","v":"Shahriman bin Hashim"},{"$f":"'QMS OPRISK'!F13","v":2019},{"$f":"PENYATAAN!B21","v":"Tahap keselamatan pelawat Edu-Park berisiko mengalami kecederaan semasa lawatan pelawat Edupark "},{"$f":"PENYATAAN!C21","v":"Dalaman"},{"$f":"PENYATAAN!D21","v":"Penyelidikan & Inovasi"},{"$f":"PENYATAAN!E21","v":"Menjejaskan reputasi Universiti"},{"$f":"PENYATAAN!F21","v":"1. Pekerja Edu Park sebagai pemantau dan pengiring keselamatan sepanjang lawatan\n2. Membawa peti kecemasan dan kenderaan jabatan sebagai persediaan"},{"$f":"PENYATAAN!P21","v":"1. Penyataan"},{"$f":"PENYATAAN!J21","v":"Tidak Dapat Dijangka"},{"$f":"PENYATAAN!L21","v":1},{"$f":"PENYATAAN!G21","v":"Tidak Ketara"},{"$f":"PENYATAAN!I21","v":1},1,{"$f":"VLOOKUP(P14,DROPLIST!AB:AC,2,FALSE)","v":"Rendah"},{"$f":"PENYATAAN!N21","v":0},"-",{"$f":"PENYATAAN!O21","v":"Pelaksanaan berterusan. Kenderaan rasmi jabatan juga digunakan sebagai kenderaan 'standby' jika berlaku kemalangan."},"-"]
[{"$f":"PENYATAAN!A22","v":14},{"$f":"'QMS OPRISK'!F7","v":"Perkhidmatan"},{"$f":"'QMS OPRISK'!F9","v":"Putra Science Park"},{"$f":"'QMS OPRISK'!$F$11","v":"Shahriman bin Hashim"},{"$f":"'QMS OPRISK'!F13","v":2019},{"$f":"PENYATAAN!B22","v":"kehadiran pelawat tidak mengikut ketetapan waktu yang telah dibuat oleh Edu-Park"},{"$f":"PENYATAAN!C22","v":"Luaran"},{"$f":"PENYATAAN!D22","v":"Penyelidikan & Inovasi"},{"$f":"PENYATAAN!E22","v":"Mengganggu perjalanan waktu lawatan "},{"$f":"PENYATAAN!F22","v":"memberi peringatan kepada pelawat 3 hari sebelum lawatan untuk tiba pada masa yang telah ditetapkan."},{"$f":"PENYATAAN!P22","v":"1. Penyataan"},{"$f":"PENYATAAN!J22","v":"Dapat Dijangka"},{"$f":"PENYATAAN!L22","v":3},{"$f":"PENYATAAN!G22","v":"Tidak Ketara"},{"$f":"PENYATAAN!I22","v":1},3,{"$f":"VLOOKUP(P15,DROPLIST!AB:AC,2,FALSE)","v":"Rendah"},{"$f":"PENYATAAN!N22","v":0},"-",{"$f":"PENYATAAN!O22","v":"Pelaksanaan berterusan. Tiada masalah besar dalam menyusun atur semula masa lawatan"},"-"]
[{"$f":"PENYATAAN!A23","v":15},{"$f":"'QMS OPRISK'!F7","v":"Perkhidmatan"},{"$f":"'QMS OPRISK'!F9","v":"Putra Science Park"},{"$f":"'QMS OPRISK'!$F$11","v":"Shahriman bin Hashim"},{"$f":"'QMS OPRISK'!F13","v":2019},{"$f":"PENYATAAN!B23","v":"Sesi perundingan perniagaan (business negotiation) melibatkan pemindahan  teknologi yang dapat dilaksanakan dengan pihak industri adalah terhad kerana kekurangan perunding perniagaan(business negotiator) yang bertauliah dalam bidang pemindahan teknologi yang diiktiraf oleh universiti"},{"$f":"PENYATAAN!C23","v":"Dalaman"},{"$f":"PENYATAAN!D23","v":"Penyelidikan & Inovasi"},{"$f":"PENYATAAN!E23","v":"i. Menjejaskan KPI Penyelidikan dan Inovasi (TKHL )"},{"$f":"PENYATAAN!F23","v":"Perundingan perniagaan(business negotiation) hanya dilaksanakan  oleh Pengarah PSP sedia ada yang telah dilatih didalam bidang perundingan pernigaan yang melibatkan pemindahan teknologi daripada universiti kepada industri."},{"$f":"PENYATAAN!P23","v":"1. Penyataan"},{"$f":"PENYATAAN!J23","v":"Paling Mungkin"},{"$f":"PENYATAAN!L23","v":5},{"$f":"PENYATAAN!G23","v":"Sederhana"},{"$f":"PENYATAAN!I23","v":3},15,{"$f":"VLOOKUP(P16,DROPLIST!AB:AC,2,FALSE)","v":"Tinggi"},{"$f":"PENYATAAN!N23","v":"1. Pembangunan kapasti(capacity building) kakitangan UPM yang terlibat dengan aktiviti pemindahan teknologi melalui  penyertaan program-program pentauliahan yang berkenaan dengan pemindahan teknologi seperti kursus Registered Technology Transfer Profesional(RTTP) dengan Association of University Technology Managers(AUTM) , Licensing Academy dengan U.C. Davis dan sebagainya.  \n\n2. Pengiktirafan oleh pihak Berkuasa Universiti kepada kakitangan UPM yang telah dilatih seperti di atas untuk kakitangan terbabit melaksanakan perundingan perniagaan (business negotiation) bagi pihak UPM bagi tujuan pemindahan teknologi. \n"},"-",{"$f":"PENYATAAN!O23","v":" Strategi tidak dapat dilaksanakan kerana kekangan kewangan Universiti untuk menghantar kakitangan UPM menghadiri kursus-kursus bertauliah.Permohonan peruntukan akan dibuat bagi tahun 2019."},"-"]
[{"$f":"PENYATAAN!A24","v":16},{"$f":"'QMS OPRISK'!F7","v":"Perkhidmatan"},{"$f":"'QMS OPRISK'!F9","v":"Putra Science Park"},{"$f":"'QMS OPRISK'!$F$11","v":"Shahriman bin Hashim"},{"$f":"'QMS OPRISK'!F13","v":2019},{"$f":"PENYATAAN!B24","v":"Kekurangan peruntukan kewangan pengurusan dan promosi Putra Dynamics menyebabkan Promosi Putra Dynamics tidak dapat dilakukan secara agresif  "},{"$f":"PENYATAAN!C24","v":"Dalaman"},{"$f":"PENYATAAN!D24","v":"Penyelidikan & Inovasi"},{"$f":"PENYATAAN!E24","v":"Menjejaskan KPI bilangan peserta yang menyertai latihan "},{"$f":"PENYATAAN!F24","v":"Menggunakan jaringan sedia ada"},{"$f":"PENYATAAN!P24","v":"1. Penyataan"},{"$f":"PENYATAAN!J24","v":"Tidak Dapat Dijangka"},{"$f":"PENYATAAN!L24","v":1},{"$f":"PENYATAAN!G24","v":"Sederhana"},{"$f":"PENYATAAN!I24","v":3},3,{"$f":"VLOOKUP(P17,DROPLIST!AB:AC,2,FALSE)","v":"Rendah"},{"$f":"PENYATAAN!N24","v":0},"-",{"$f":"PENYATAAN!O24","v":"Strategi sedia ada adalah berkesan"},"-"]
[{"$f":"PENYATAAN!A25","v":17},{"$f":"'QMS OPRISK'!F7","v":"Perkhidmatan"},{"$f":"'QMS OPRISK'!F9","v":"Putra Science Park"},{"$f":"'QMS OPRISK'!$F$11","v":"Shahriman bin Hashim"},{"$f":"'QMS OPRISK'!F13","v":2019},{"$f":"PENYATAAN!B25","v":"Kesukaran untuk mendapatkan pelanggan untuk menyertai latihan yang ditawarkan Putra Dynamics menyebabkan kurang penjanaan pendapatan"},{"$f":"PENYATAAN!C25","v":"Dalaman"},{"$f":"PENYATAAN!D25","v":"Penyelidikan & Inovasi"},{"$f":"PENYATAAN!E25","v":"Menjejaskan KPI bilangan peserta yang menyertai latihan "},{"$f":"PENYATAAN!F25","v":" Menggunakan jaringan daripada pengurusan PSP untuk mendapatkan pelanggan yang sesuai"},{"$f":"PENYATAAN!P25","v":"1. Penyataan"},{"$f":"PENYATAAN!J25","v":"Tidak Dapat Dijangka"},{"$f":"PENYATAAN!L25","v":1},{"$f":"PENYATAAN!G25","v":"Sederhana"},{"$f":"PENYATAAN!I25","v":3},3,{"$f":"VLOOKUP(P18,DROPLIST!AB:AC,2,FALSE)","v":"Rendah"},{"$f":"PENYATAAN!N25","v":0},"-",{"$f":"PENYATAAN!O25","v":"Strategi sedia ada adalah berkesan"},"-"]
[{"$f":"PENYATAAN!A26","v":18},{"$f":"'QMS OPRISK'!F7","v":"Perkhidmatan"},{"$f":"'QMS OPRISK'!F9","v":"Putra Science Park"},{"$f":"'QMS OPRISK'!$F$11","v":"Shahriman bin Hashim"},{"$f":"'QMS OPRISK'!F13","v":2019},{"$f":"PENYATAAN!B26","v":"Nilai matawang negara (RM) berubah menyebabkan kos latihan  Putra Dynamic meningkatkan"},{"$f":"PENYATAAN!C26","v":"Luaran"},{"$f":"PENYATAAN!D26","v":"Penyelidikan & Inovasi"},{"$f":"PENYATAAN!E26","v":"Menjejaskan KPI bilangan peserta yang menyertai latihan "},{"$f":"PENYATAAN!F26","v":"Meningkatkan kos kontigensi dalam implikasi kewangan latihan"},{"$f":"PENYATAAN!P26","v":"1. Penyataan"},{"$f":"PENYATAAN!J26","v":"Tidak Dapat Dijangka"},{"$f":"PENYATAAN!L26","v":1},{"$f":"PENYATAAN!G26","v":"Sederhana"},{"$f":"PENYATAAN!I26","v":3},3,{"$f":"VLOOKUP(P19,DROPLIST!AB:AC,2,FALSE)","v":"Rendah"},{"$f":"PENYATAAN!N26","v":0},"-",{"$f":"PENYATAAN!O26","v":"Kawalan sedia ada adalah berkesan"},"-"]
[{"$f":"PENYATAAN!A27","v":19},{"$f":"'QMS OPRISK'!F7","v":"Perkhidmatan"},{"$f":"'QMS OPRISK'!$F$9","v":"Putra Science Park"},{"$f":"'QMS OPRISK'!$F$11","v":"Shahriman bin Hashim"},{"$f":"'QMS OPRISK'!$F$13","v":2019},{"$f":"PENYATAAN!B27","v":"Peserta Program Innohub menarik diri setelah program berjalan menyebabkan perancangan jadual perbatuan projek tidak dapat dilaksanakan"},{"$f":"PENYATAAN!C27","v":"Dalaman"},{"$f":"PENYATAAN!D27","v":"Penyelidikan & Inovasi"},{"$f":"PENYATAAN!E27","v":"Pelaksanaan projek tergendala dan teknologi tidak dapat dikomersilkan."},{"$f":"PENYATAAN!F27","v":"Pelan penggantian Peserta baharu / projek ditamatkan"},{"$f":"PENYATAAN!P27","v":"1. Penyataan"},{"$f":"PENYATAAN!J27","v":"Jarang Sekali"},{"$f":"PENYATAAN!L27","v":2},{"$f":"PENYATAAN!G27","v":"Kecil"},{"$f":"PENYATAAN!I27","v":2},4,{"$f":"VLOOKUP(P20,DROPLIST!AB:AC,2,FALSE)","v":"Rendah"},{"$f":"PENYATAAN!N27","v":0},"-",{"$f":"PENYATAAN!O27","v":"Pelan sedia ada adalah berkesan"},"-"]
[{"$f":"PENYATAAN!A28","v":20},{"$f":"'QMS OPRISK'!$F$7","v":"Perkhidmatan"},{"$f":"'QMS OPRISK'!$F$9","v":"Putra Science Park"},{"$f":"'QMS OPRISK'!$F$11","v":"Shahriman bin Hashim"},{"$f":"'QMS OPRISK'!$F$13","v":2019},{"$f":"PENYATAAN!B28","v":"Tiada tambahan peruntukkan Dana RU InnoHub yang disalurkan menyebabkan Perkhidmatan Dana Innohub bagi membantu penyelidik mengkomersilkan produk kepada industri tidak dapat ditawarkan lagi"},{"$f":"PENYATAAN!C28","v":"Luaran"},{"$f":"PENYATAAN!D28","v":"Penyelidikan & Inovasi"},{"$f":"PENYATAAN!E28","v":"Program Innohub tidak dapat diteruskan"},{"$f":"PENYATAAN!F28","v":"Memberi latihan pitching kepada peserta  InnoHub untuk mendapatkan geran luar"},{"$f":"PENYATAAN!P28","v":"1. Penyataan"},{"$f":"PENYATAAN!J28","v":"Tidak Dapat Dijangka"},{"$f":"PENYATAAN!L28","v":1},{"$f":"PENYATAAN!G28","v":"Sederhana"},{"$f":"PENYATAAN!I28","v":3},{"$f":"M21*O21","v":3},{"$f":"VLOOKUP(P21,DROPLIST!AB:AC,2,FALSE)","v":"Rendah"},{"$f":"PENYATAAN!N28","v":0},"-",{"$f":"PENYATAAN!O28","v":"Strategi sedia ada adalah berkesan"},"-"]
[{"$f":"PENYATAAN!A29","v":21},{"$f":"'QMS OPRISK'!$F$7","v":"Perkhidmatan"},{"$f":"'QMS OPRISK'!$F$9","v":"Putra Science Park"},{"$f":"'QMS OPRISK'!$F$11","v":"Shahriman bin Hashim"},{"$f":"'QMS OPRISK'!$F$13","v":2019},{"$f":"PENYATAAN!B29","v":"Kesukaran membuang dawai lama dan staf berisiko mengalami kecederaan semasa membuang dawai lama bagi memasang bunting aktiviti promosi pada tiang lampu setiap kali program dijalankan menyebabkan kecederaan kepada staf yang memasang bunting "},{"$f":"PENYATAAN!C29","v":"Dalaman"},{"$f":"PENYATAAN!D29","v":"Penyelidikan & Inovasi"},{"$f":"PENYATAAN!E29","v":"Menjejaskan keselamatan dan kebajikan pekerja"},{"$f":"PENYATAAN!F29","v":"Melaksanakan projek dibawah pemantauan KIK dengan membangunkan inovasi baharu bagi memudahkan kerja pemasangan bunting menggantikan penggunaan tangga di bawah program KIK PSP/TNCPI"},{"$f":"PENYATAAN!P29","v":"1. Penyataan"},{"$f":"PENYATAAN!J29","v":"Dapat Dijangka"},{"$f":"PENYATAAN!L29","v":3},{"$f":"PENYATAAN!G29","v":"Sederhana"},{"$f":"PENYATAAN!I29","v":3},9,{"$f":"VLOOKUP(P22,DROPLIST!AB:AC,2,FALSE)","v":"Sederhana"},{"$f":"PENYATAAN!N29","v":"Tempoh pelaksanaan : 5 September 2019\n\n1 - Menjalankan program dan kempen kesedaran bagi membuang dawai lama/serpihan banting pada tiang lampu di sekitar UPM dengan kerjasama COSCOMM\n2. Membuat kajian terhadap kaedah dan alatan sedia ada di PBT\n3-Membangunkan inovasi bagi membantu memudahkan kerja pembuangan dawai"},"-",{"$f":"PENYATAAN!O29","v":0},"-"]
[{"$f":"PENYATAAN!A30","v":22},{"$f":"'QMS OPRISK'!$F$7","v":"Perkhidmatan"},{"$f":"'QMS OPRISK'!$F$9","v":"Putra Science Park"},{"$f":"'QMS OPRISK'!$F$11","v":"Shahriman bin Hashim"},{"$f":"'QMS OPRISK'!$F$13","v":2019},{"$f":"PENYATAAN!B30","v":0},{"$f":"PENYATAAN!C30","v":"Pilihan Klasifikasi Isu"},{"$f":"PENYATAAN!D30","v":"Pilihan Kategori Isu"},{"$f":"PENYATAAN!E30","v":0},{"$f":"PENYATAAN!F30","v":0},{"$f":"PENYATAAN!P30","v":"1. Penyataan"},{"$f":"PENYATAAN!J30","v":"Pilihan Tahap Kemungkinan"},{"$f":"PENYATAAN!L30","v":0},{"$f":"PENYATAAN!G30","v":"Pilihan Tahap Keterukan"},{"$f":"PENYATAAN!I30","v":0},0,{"$f":"VLOOKUP(P23,DROPLIST!AB:AC,2,FALSE)","v":"-"},{"$f":"PENYATAAN!N30","v":0},"-",{"$f":"PENYATAAN!O30","v":0},"-"]
[{"$f":"PENYATAAN!A31","v":23},{"$f":"'QMS OPRISK'!$F$7","v":"Perkhidmatan"},{"$f":"'QMS OPRISK'!$F$9","v":"Putra Science Park"},{"$f":"'QMS OPRISK'!$F$11","v":"Shahriman bin Hashim"},{"$f":"'QMS OPRISK'!$F$13","v":2019},{"$f":"PENYATAAN!B31","v":0},{"$f":"PENYATAAN!C31","v":"Pilihan Klasifikasi Isu"},{"$f":"PENYATAAN!D31","v":"Pilihan Kategori Isu"},{"$f":"PENYATAAN!E31","v":0},{"$f":"PENYATAAN!F31","v":0},{"$f":"PENYATAAN!P31","v":"1. Penyataan"},{"$f":"PENYATAAN!J31","v":"Pilihan Tahap Kemungkinan"},{"$f":"PENYATAAN!L31","v":0},{"$f":"PENYATAAN!G31","v":"Pilihan Tahap Keterukan"},{"$f":"PENYATAAN!I31","v":0},0,{"$f":"VLOOKUP(P24,DROPLIST!AB:AC,2,FALSE)","v":"-"},{"$f":"PENYATAAN!N31","v":0},"-",{"$f":"PENYATAAN!O31","v":0},"-"]
[{"$f":"PENYATAAN!A32","v":24},{"$f":"'QMS OPRISK'!$F$7","v":"Perkhidmatan"},{"$f":"'QMS OPRISK'!$F$9","v":"Putra Science Park"},{"$f":"'QMS OPRISK'!$F$11","v":"Shahriman bin Hashim"},{"$f":"'QMS OPRISK'!$F$13","v":2019},{"$f":"PENYATAAN!B32","v":0},{"$f":"PENYATAAN!C32","v":"Pilihan Klasifikasi Isu"},{"$f":"PENYATAAN!D32","v":"Pilihan Kategori Isu"},{"$f":"PENYATAAN!E32","v":0},{"$f":"PENYATAAN!F32","v":0},{"$f":"PENYATAAN!P32","v":"1. Penyataan"},{"$f":"PENYATAAN!J32","v":"Pilihan Tahap Kemungkinan"},{"$f":"PENYATAAN!L32","v":0},{"$f":"PENYATAAN!G32","v":"Pilihan Tahap Keterukan"},{"$f":"PENYATAAN!I32","v":0},0,{"$f":"VLOOKUP(P25,DROPLIST!AB:AC,2,FALSE)","v":"-"},{"$f":"PENYATAAN!N32","v":0},"-",{"$f":"PENYATAAN!O32","v":0},"-"]
[{"$f":"PENYATAAN!A33","v":25},{"$f":"'QMS OPRISK'!F7","v":"Perkhidmatan"},{"$f":"'QMS OPRISK'!F9","v":"Putra Science Park"},{"$f":"'QMS OPRISK'!$F$11","v":"Shahriman bin Hashim"},{"$f":"'QMS OPRISK'!F13","v":2019},{"$f":"PENYATAAN!B33","v":0},{"$f":"PENYATAAN!C33","v":"Pilihan Klasifikasi Isu"},{"$f":"PENYATAAN!D33","v":"Pilihan Kategori Isu"},{"$f":"PENYATAAN!E33","v":0},{"$f":"PENYATAAN!F33","v":0},{"$f":"PENYATAAN!P33","v":"1. Penyataan"},{"$f":"PENYATAAN!J33","v":"Pilihan Tahap Kemungkinan"},{"$f":"PENYATAAN!L33","v":0},{"$f":"PENYATAAN!G33","v":"Pilihan Tahap Keterukan"},{"$f":"PENYATAAN!I33","v":0},0,{"$f":"VLOOKUP(P26,DROPLIST!AB:AC,2,FALSE)","v":"-"},{"$f":"PENYATAAN!N33","v":0},"-",{"$f":"PENYATAAN!O33","v":0},"-"]
[{"$f":"PENYATAAN!A9","v":1},{"$f":"'QMS OPRISK'!F7","v":"Perkhidmatan"},{"$f":"'QMS OPRISK'!F9","v":"Putra Science Park"},{"$f":"'QMS OPRISK'!F11","v":"Shahriman bin Hashim"},{"$f":"'QMS OPRISK'!F13","v":2019},{"$f":"PENYATAAN!B9","v":"Pengurangan jumlah permohonan menyebabkan bilangan pemfailan  harta intelek  dalam dan luar negara  terjejas         "},{"$f":"PENYATAAN!C9","v":"Dalaman"},{"$f":"PENYATAAN!D9","v":"Penyelidikan & Inovasi"},{"$f":"PENYATAAN!E9","v":"i. Menjejaskan KPI Penyelidikan dan Inovasi (Pemfailan harta intelek)"},{"$f":"PENYATAAN!F9","v":"Seminar dan Klinik IP  di PTJ / atas permintaan PTJ"},{"$f":"'PENILAIAN (Q2)'!W9","v":"2. Penilaian - Q2"},{"$f":"'PENILAIAN (Q2)'!P9","v":"Jarang Sekali"},{"$f":"'PENILAIAN (Q2)'!R9","v":2},{"$f":"'PENILAIAN (Q2)'!M9","v":"Kecil"},{"$f":"'PENILAIAN (Q2)'!O9","v":2},4,{"$f":"VLOOKUP(P27,DROPLIST!AB:AC,2,FALSE)","v":"Rendah"},{"$f":"PENYATAAN!N9","v":0},{"$f":"'PENILAIAN (Q2)'!T9","v":"Tolak Ansur (Tolerate)"},{"$f":"'PENILAIAN (Q2)'!L9","v":"Pemantauan secara berterusan"},{"$f":"'PENILAIAN (Q2)'!V9","v":"Pemantauan secara berterusan"}]
[{"$f":"PENYATAAN!A10","v":2},{"$f":"'QMS OPRISK'!F7","v":"Perkhidmatan"},{"$f":"'QMS OPRISK'!F9","v":"Putra Science Park"},{"$f":"'QMS OPRISK'!F11","v":"Shahriman bin Hashim"},{"$f":"'QMS OPRISK'!F13","v":2019},{"$f":"PENYATAAN!B10","v":"Kekangan peruntukan bagi perlindungan harta intelek menyebab universiti menanggung kos perlindungan harta intelek luar negara yang tinggi "},{"$f":"PENYATAAN!C10","v":"Dalaman"},{"$f":"PENYATAAN!D10","v":"Penyelidikan & Inovasi"},{"$f":"PENYATAAN!E10","v":"i. Menjejaskan KPI Penyelidikan dan Inovasi (Pemfailan harta intelek)"},{"$f":"PENYATAAN!F10","v":"Menamatkan perlindungan paten luar negara melebihi 5 tahun yang tidak dikomersialkan  "},{"$f":"'PENILAIAN (Q2)'!W10","v":"2. Penilaian - Q2"},{"$f":"'PENILAIAN (Q2)'!P10","v":"Jarang Sekali"},{"$f":"'PENILAIAN (Q2)'!R10","v":2},{"$f":"'PENILAIAN (Q2)'!M10","v":"Kecil"},{"$f":"'PENILAIAN (Q2)'!O10","v":2},4,{"$f":"VLOOKUP(P28,DROPLIST!AB:AC,2,FALSE)","v":"Rendah"},{"$f":"PENYATAAN!N10","v":0},{"$f":"'PENILAIAN (Q2)'!T10","v":"Tolak Ansur (Tolerate)"},{"$f":"'PENILAIAN (Q2)'!L10","v":"1. Pemantauan secara berterusan.\n\n2. Pembangunan garis panduan penamatan harta intelek telah dibentangkan sebanyak 2 kali dalam mesyuarat JKPU pada tahun 2018. Garis panduan ini akan dibawa untuk kelulusan mesyuarat Jwatankuasa Pengurusan Universiti."},{"$f":"'PENILAIAN (Q2)'!V10","v":"Pemantauan secara berterusan"}]
[{"$f":"PENYATAAN!A11","v":3},{"$f":"'QMS OPRISK'!F7","v":"Perkhidmatan"},{"$f":"'QMS OPRISK'!F9","v":"Putra Science Park"},{"$f":"'QMS OPRISK'!F11","v":"Shahriman bin Hashim"},{"$f":"'QMS OPRISK'!F13","v":2019},{"$f":"PENYATAAN!B11","v":"Pengiktirafan UPM sebagai organisasi pengurusan harta intelek terbaik negara meningkatkan peluang perniagaan baharu Putra Dynamic kerana menjadi pakar rujuk "},{"$f":"PENYATAAN!C11","v":"Dalaman"},{"$f":"PENYATAAN!D11","v":"Penyelidikan & Inovasi"},{"$f":"PENYATAAN!E11","v":"Meningkatkan bilangan peserta luar yang menyertai latihan "},{"$f":"PENYATAAN!F11","v":"Mengekalkan penyertaan Anugerah Harta Intelek Negara (AHIN)"},{"$f":"'PENILAIAN (Q2)'!W11","v":"2. Penilaian - Q2"},{"$f":"'PENILAIAN (Q2)'!P11","v":"Jarang Sekali"},{"$f":"'PENILAIAN (Q2)'!R11","v":2},{"$f":"'PENILAIAN (Q2)'!M11","v":"Kecil"},{"$f":"'PENILAIAN (Q2)'!O11","v":2},4,{"$f":"VLOOKUP(P29,DROPLIST!AB:AC,2,FALSE)","v":"Rendah"},{"$f":"PENYATAAN!N11","v":0},{"$f":"'PENILAIAN (Q2)'!T11","v":"Tolak Ansur (Tolerate)"},{"$f":"'PENILAIAN (Q2)'!L11","v":"Pemantauan secara berterusan"},{"$f":"'PENILAIAN (Q2)'!V11","v":"Pemantauan secara berterusan"}]
[{"$f":"PENYATAAN!A12","v":4},{"$f":"'QMS OPRISK'!F7","v":"Perkhidmatan"},{"$f":"'QMS OPRISK'!F9","v":"Putra Science Park"},{"$f":"'QMS OPRISK'!F11","v":"Shahriman bin Hashim"},{"$f":"'QMS OPRISK'!F13","v":2019},{"$f":"PENYATAAN!B12","v":"Pembayaran balik dana Mikrokredit tidak dilunaskan oleh peserta menyebabkan kurang dana untuk ditawarkan kepada peserta yang baharu"},{"$f":"PENYATAAN!C12","v":"Dalaman"},{"$f":"PENYATAAN!D12","v":"Penyelidikan & Inovasi"},{"$f":"PENYATAAN!E12","v":"Usahawan pelajar baharu tidak dapat dilahirkan "},{"$f":"PENYATAAN!F12","v":"`-notis bayaran secara bertulis dan telefon/ whatsapp\n- transkrip dan sijil bergraduat UPM tidak akan diberikan kepada pelajar"},{"$f":"'PENILAIAN (Q2)'!W12","v":"2. Penilaian - Q2"},{"$f":"'PENILAIAN (Q2)'!P12","v":"Tidak Dapat Dijangka"},{"$f":"'PENILAIAN (Q2)'!R12","v":1},{"$f":"'PENILAIAN (Q2)'!M12","v":"Kecil"},{"$f":"'PENILAIAN (Q2)'!O12","v":2},2,{"$f":"VLOOKUP(P30,DROPLIST!AB:AC,2,FALSE)","v":"Rendah"},{"$f":"PENYATAAN!N12","v":0},{"$f":"'PENILAIAN (Q2)'!T12","v":"Tolak Ansur (Tolerate)"},{"$f":"'PENILAIAN (Q2)'!L12","v":"Pemantauan secara berterusan"},{"$f":"'PENILAIAN (Q2)'!V12","v":"Pemantauan secara berterusan"}]
[{"$f":"PENYATAAN!A13","v":5},{"$f":"'QMS OPRISK'!F7","v":"Perkhidmatan"},{"$f":"'QMS OPRISK'!F9","v":"Putra Science Park"},{"$f":"'QMS OPRISK'!F11","v":"Shahriman bin Hashim"},{"$f":"'QMS OPRISK'!F13","v":2019},{"$f":"PENYATAAN!B13","v":"Kurang penyertaan permohonan dana program Mikrokredit menyebabkan dana tidak dapat dimanfaatkan"},{"$f":"PENYATAAN!C13","v":"Dalaman"},{"$f":"PENYATAAN!D13","v":"Penyelidikan & Inovasi"},{"$f":"PENYATAAN!E13","v":"Usahawan pelajar baharu tidak dapat dilahirkan "},{"$f":"PENYATAAN!F13","v":"Sebarkan hebahan program melalui laman Web, CEM, Wazan dan Billboard UPM, facebook, Whatsapp Group"},{"$f":"'PENILAIAN (Q2)'!W13","v":"2. Penilaian - Q2"},{"$f":"'PENILAIAN (Q2)'!P13","v":"Tidak Dapat Dijangka"},{"$f":"'PENILAIAN (Q2)'!R13","v":1},{"$f":"'PENILAIAN (Q2)'!M13","v":"Tidak Ketara"},{"$f":"'PENILAIAN (Q2)'!O13","v":1},1,{"$f":"VLOOKUP(P31,DROPLIST!AB:AC,2,FALSE)","v":"Rendah"},{"$f":"PENYATAAN!N13","v":0},{"$f":"'PENILAIAN (Q2)'!T13","v":"Tolak Ansur (Tolerate)"},{"$f":"'PENILAIAN (Q2)'!L13","v":"Risiko telah dikawal"},{"$f":"'PENILAIAN (Q2)'!V13","v":"Risiko telah dikawal"}]
[{"$f":"PENYATAAN!A14","v":6},{"$f":"'QMS OPRISK'!F7","v":"Perkhidmatan"},{"$f":"'QMS OPRISK'!F9","v":"Putra Science Park"},{"$f":"'QMS OPRISK'!F11","v":"Shahriman bin Hashim"},{"$f":"'QMS OPRISK'!F13","v":2019},{"$f":"PENYATAAN!B14","v":"Peruntukan bagi aktiviti promosi dan pemasaran inovasi yang berkurangan setiap tahun -Pemotongan peruntukan daripada kerajaan  (-30% bagi tahun 2017) menyebabkan aktiviti promosi berkurangan bagi mendapatkan industri yang berpotensi menjalankan kerjasama dengan UPM "},{"$f":"PENYATAAN!C14","v":"Luaran"},{"$f":"PENYATAAN!D14","v":"Penyelidikan & Inovasi"},{"$f":"PENYATAAN!E14","v":"i. Menjejaskan KPI Promosi dan Pemasaran Inovasi PSP - Bilangan industri"},{"$f":"PENYATAAN!F14","v":"Memohon peruntukan tambahan seperti Dana RU bagi menampung kos promosi (pameran) yang wajib disertai dan melibatkan kos tinggi"},{"$f":"'PENILAIAN (Q2)'!W14","v":"2. Penilaian - Q2"},{"$f":"'PENILAIAN (Q2)'!P14","v":"Tidak Dapat Dijangka"},{"$f":"'PENILAIAN (Q2)'!R14","v":1},{"$f":"'PENILAIAN (Q2)'!M14","v":"Tidak Ketara"},{"$f":"'PENILAIAN (Q2)'!O14","v":1},1,{"$f":"VLOOKUP(P32,DROPLIST!AB:AC,2,FALSE)","v":"Rendah"},{"$f":"PENYATAAN!N14","v":0},{"$f":"'PENILAIAN (Q2)'!T14","v":"Tolak Ansur (Tolerate)"},{"$f":"'PENILAIAN (Q2)'!L14","v":"Pemantauan secara berterusan"},{"$f":"'PENILAIAN (Q2)'!V14","v":0}]
[{"$f":"PENYATAAN!A15","v":7},{"$f":"'QMS OPRISK'!F7","v":"Perkhidmatan"},{"$f":"'QMS OPRISK'!F9","v":"Putra Science Park"},{"$f":"'QMS OPRISK'!F11","v":"Shahriman bin Hashim"},{"$f":"'QMS OPRISK'!F13","v":2019},{"$f":"PENYATAAN!B15","v":"Kesukaran memasang bunting promosi dan staf berisiko mengalami kecederaan semasa memasang bunting aktiviti promosi pada tiang lampu setiap kali program dijalankan menyebabkan kecederaan kepada staf yang memasang bunting "},{"$f":"PENYATAAN!C15","v":"Dalaman"},{"$f":"PENYATAAN!D15","v":"Penyelidikan & Inovasi"},{"$f":"PENYATAAN!E15","v":"Menjejaskan keselamatan dan kebajikan pekerja"},{"$f":"PENYATAAN!F15","v":"Membangunkan inovasi baharu bagi memudahkan kerja pemasangan bunting menggantikan penggunaan tangga di bawah program KIK PSP/TNCPI"},{"$f":"'PENILAIAN (Q2)'!W15","v":"2. Penilaian - Q2"},{"$f":"'PENILAIAN (Q2)'!P15","v":"Tidak Dapat Dijangka"},{"$f":"'PENILAIAN (Q2)'!R15","v":1},{"$f":"'PENILAIAN (Q2)'!M15","v":"Tidak Ketara"},{"$f":"'PENILAIAN (Q2)'!O15","v":1},1,{"$f":"VLOOKUP(P33,DROPLIST!AB:AC,2,FALSE)","v":"Rendah"},{"$f":"PENYATAAN!N15","v":0},{"$f":"'PENILAIAN (Q2)'!T15","v":"Tolak Ansur (Tolerate)"},{"$f":"'PENILAIAN (Q2)'!L15","v":"Tempoh pelaksanaan : Jun 2018"},{"$f":"'PENILAIAN (Q2)'!V15","v":"Risiko telah dikawal"}]
[{"$f":"PENYATAAN!A16","v":8},{"$f":"'QMS OPRISK'!F7","v":"Perkhidmatan"},{"$f":"'QMS OPRISK'!F9","v":"Putra Science Park"},{"$f":"'QMS OPRISK'!F11","v":"Shahriman bin Hashim"},{"$f":"'QMS OPRISK'!F13","v":2019},{"$f":"PENYATAAN!B16","v":"Kesalahan penterjemahan kenyataan media bagi hebahan promosi hasil penyelidikan oleh wartawan\n - Wartawan salah faham/kurang faham penjelasan teknikal daripada penyelidik semasa sidang media "},{"$f":"PENYATAAN!C16","v":"Luaran"},{"$f":"PENYATAAN!D16","v":"Penyelidikan & Inovasi"},{"$f":"PENYATAAN!E16","v":"Menjejaskan reputasi dan memberi maklumat yang salah kepada orang awam /pembaca"},{"$f":"PENYATAAN!F16","v":"1- Menyediakan kenyataan media dalam bentuk yang dapat difahami oleh orang biasa di dalam dwi bahasa.\n2- Maklumat penyelidikan disediakan di dalam bentuk soalan-jawapan\n3- Slide pembentangan teknologi turut diberi kepada wartawan selain kenyataan media dan soalan-jawapan."},{"$f":"'PENILAIAN (Q2)'!W16","v":"2. Penilaian - Q2"},{"$f":"'PENILAIAN (Q2)'!P16","v":"Tidak Dapat Dijangka"},{"$f":"'PENILAIAN (Q2)'!R16","v":1},{"$f":"'PENILAIAN (Q2)'!M16","v":"Tidak Ketara"},{"$f":"'PENILAIAN (Q2)'!O16","v":1},1,{"$f":"VLOOKUP(P34,DROPLIST!AB:AC,2,FALSE)","v":"Rendah"},{"$f":"PENYATAAN!N16","v":0},{"$f":"'PENILAIAN (Q2)'!T16","v":"Tolak Ansur (Tolerate)"},{"$f":"'PENILAIAN (Q2)'!L16","v":"Kawalan sedia ada adalah berkesan"},{"$f":"'PENILAIAN (Q2)'!V16","v":0}]
[{"$f":"PENYATAAN!A17","v":9},{"$f":"'QMS OPRISK'!F7","v":"Perkhidmatan"},{"$f":"'QMS OPRISK'!F9","v":"Putra Science Park"},{"$f":"'QMS OPRISK'!F11","v":"Shahriman bin Hashim"},{"$f":"'QMS OPRISK'!F13","v":2019},{"$f":"PENYATAAN!B17","v":"Permohonan Suai Padan Teknologi (SPT) yang sukar mendapat maklumbalas PTJ/lain, tidak dibuat susulan selanjutnya selepas promosi tamat menyebabkan peluang kerjasama dengan industri tidak dapat diteruskan"},{"$f":"PENYATAAN!C17","v":"Dalaman"},{"$f":"PENYATAAN!D17","v":"Penyelidikan & Inovasi"},{"$f":"PENYATAAN!E17","v":"Menjejaskan KPI Penyelidikan dan inovasi  (TKHL)"},{"$f":"PENYATAAN!F17","v":"Pemantauan secara menggunakan database Industry Relation Management (IRM)"},{"$f":"'PENILAIAN (Q2)'!W17","v":"2. Penilaian - Q2"},{"$f":"'PENILAIAN (Q2)'!P17","v":"Dapat Dijangka"},{"$f":"'PENILAIAN (Q2)'!R17","v":3},{"$f":"'PENILAIAN (Q2)'!M17","v":"Kecil"},{"$f":"'PENILAIAN (Q2)'!O17","v":2},6,{"$f":"VLOOKUP(P35,DROPLIST!AB:AC,2,FALSE)","v":"Sederhana"},{"$f":"PENYATAAN!N17","v":"1- Pemantauan secara manual melalui Jadual Pemantauan Kerja SPT di papan putih Pejabat\n2- Memberi maklumbalas penerimaan permohonan industri selepas aktiviti promosi tamat sebelum dipantau melalui Jadual Pemantauan Kerja"},{"$f":"'PENILAIAN (Q2)'!T17","v":"Tolak Ansur (Tolerate)"},{"$f":"'PENILAIAN (Q2)'!L17","v":"Tempoh pelaksanaan : Mac 2019\n\nPemantauan menggunakan colour-coding database mengikut tempoh maklumbalas tertentu, bagi setiap industri yang akan ditetapkan semula - akan digunakan bagi menggantikan kaedah manual yang masih  belum berkesan."},{"$f":"'PENILAIAN (Q2)'!V17","v":"Tempoh pelaksanaan : 30 Julai 2019 \nMenambahbaik lagi database IRM di dalam file excell dengan menggunakan :\n1- setting dateline bagi setiap kes secara automatik"}]
[{"$f":"PENYATAAN!A18","v":10},{"$f":"'QMS OPRISK'!F7","v":"Perkhidmatan"},{"$f":"'QMS OPRISK'!F9","v":"Putra Science Park"},{"$f":"'QMS OPRISK'!F11","v":"Shahriman bin Hashim"},{"$f":"'QMS OPRISK'!F13","v":2019},{"$f":"PENYATAAN!B18","v":"Kurang penyertaan permohonan dana promosi produk daripada penyelidik  menyebabkan kurang bilangan projek diluluskan"},{"$f":"PENYATAAN!C18","v":"Dalaman"},{"$f":"PENYATAAN!D18","v":"Penyelidikan & Inovasi"},{"$f":"PENYATAAN!E18","v":"Tidak mencapai sasaran KPI Dana Promosi yang ditetapkan"},{"$f":"PENYATAAN!F18","v":"Membuat hebahan melalui buletin, laman web"},{"$f":"'PENILAIAN (Q2)'!W18","v":"2. Penilaian - Q2"},{"$f":"'PENILAIAN (Q2)'!P18","v":"Tidak Dapat Dijangka"},{"$f":"'PENILAIAN (Q2)'!R18","v":1},{"$f":"'PENILAIAN (Q2)'!M18","v":"Tidak Ketara"},{"$f":"'PENILAIAN (Q2)'!O18","v":1},1,{"$f":"VLOOKUP(P36,DROPLIST!AB:AC,2,FALSE)","v":"Rendah"},{"$f":"PENYATAAN!N18","v":0},{"$f":"'PENILAIAN (Q2)'!T18","v":"Tolak Ansur (Tolerate)"},{"$f":"'PENILAIAN (Q2)'!L18","v":"Tempoh pelaksanaan : Oktober 2018\n\nDana Promosi telah dihentikan penawaran dan perkhidmatannya kepada penyelidik UPM di sebabkan kekurangan Dana RU. "},{"$f":"'PENILAIAN (Q2)'!V18","v":"Dana Promosi telah dihentikan penawaran dan perkhidmatannya kepada penyelidik UPM di sebabkan kekurangan Dana RU. "}]
[{"$f":"PENYATAAN!A19","v":11},{"$f":"'QMS OPRISK'!F7","v":"Perkhidmatan"},{"$f":"'QMS OPRISK'!F9","v":"Putra Science Park"},{"$f":"'QMS OPRISK'!F11","v":"Shahriman bin Hashim"},{"$f":"'QMS OPRISK'!F13","v":2019},{"$f":"PENYATAAN!B19","v":"Kekurangan Staf Edu-Park bagi mengendalikan aktiviti yang disertai pelawat diseluruh lokasi Edupark UPM menyebabkan kerja tidak dilaksanakan dengan lancar"},{"$f":"PENYATAAN!C19","v":"Dalaman"},{"$f":"PENYATAAN!D19","v":"Penyelidikan & Inovasi"},{"$f":"PENYATAAN!E19","v":"Menjejaskan KPI penjanaan dana Edupark"},{"$f":"PENYATAAN!F19","v":"menggunakan khidmat pelajar"},{"$f":"'PENILAIAN (Q2)'!W19","v":"2. Penilaian - Q2"},{"$f":"'PENILAIAN (Q2)'!P19","v":"Tidak Dapat Dijangka"},{"$f":"'PENILAIAN (Q2)'!R19","v":1},{"$f":"'PENILAIAN (Q2)'!M19","v":"Tidak Ketara"},{"$f":"'PENILAIAN (Q2)'!O19","v":1},1,{"$f":"VLOOKUP(P37,DROPLIST!AB:AC,2,FALSE)","v":"Rendah"},{"$f":"PENYATAAN!N19","v":0},{"$f":"'PENILAIAN (Q2)'!T19","v":"Tolak Ansur (Tolerate)"},{"$f":"'PENILAIAN (Q2)'!L19","v":"Pelaksanaan berterusan. Menggunakan khidmat pelajar Putra Bakti dan pelajar latihan industri untuk menampung tenaga sumber manusia. "},{"$f":"'PENILAIAN (Q2)'!V19","v":"Risiko berjaya dikawal"}]
[{"$f":"PENYATAAN!A20","v":12},{"$f":"'QMS OPRISK'!F7","v":"Perkhidmatan"},{"$f":"'QMS OPRISK'!F9","v":"Putra Science Park"},{"$f":"'QMS OPRISK'!F11","v":"Shahriman bin Hashim"},{"$f":"'QMS OPRISK'!F13","v":2019},{"$f":"PENYATAAN!B20","v":"Kekurangan Peruntukan Kewangan bagi pengurusan Edu-Park menyebabkan penyelenggaraan /penggantian peralatan tidak dapat dijalankan dan pembelian bahan pameran dan modul tidak dapat dilakukan"},{"$f":"PENYATAAN!C20","v":"Dalaman"},{"$f":"PENYATAAN!D20","v":"Penyelidikan & Inovasi"},{"$f":"PENYATAAN!E20","v":"Menjejaskan KPI penjanaan dana Edupark"},{"$f":"PENYATAAN!F20","v":"1)lokasi lawatan ditutup buat sementara waktu 2)menyediakan modul gantian sekiranya modul tersebut tidak dapat dijalankan"},{"$f":"'PENILAIAN (Q2)'!W20","v":"2. Penilaian - Q2"},{"$f":"'PENILAIAN (Q2)'!P20","v":"Tidak Dapat Dijangka"},{"$f":"'PENILAIAN (Q2)'!R20","v":1},{"$f":"'PENILAIAN (Q2)'!M20","v":"Tidak Ketara"},{"$f":"'PENILAIAN (Q2)'!O20","v":1},1,{"$f":"VLOOKUP(P38,DROPLIST!AB:AC,2,FALSE)","v":"Rendah"},{"$f":"PENYATAAN!N20","v":0},{"$f":"'PENILAIAN (Q2)'!T20","v":"Tolak Ansur (Tolerate)"},{"$f":"'PENILAIAN (Q2)'!L20","v":"Naiktaraf /Selenggara menggunakan peruntukan sedia ada dan sederhana "},{"$f":"'PENILAIAN (Q2)'!V20","v":"Risiko dikawal dengan pemantauan bajet"}]
[{"$f":"PENYATAAN!A21","v":13},{"$f":"'QMS OPRISK'!F7","v":"Perkhidmatan"},{"$f":"'QMS OPRISK'!F9","v":"Putra Science Park"},{"$f":"'QMS OPRISK'!F11","v":"Shahriman bin Hashim"},{"$f":"'QMS OPRISK'!F13","v":2019},{"$f":"PENYATAAN!B21","v":"Tahap keselamatan pelawat Edu-Park berisiko mengalami kecederaan semasa lawatan pelawat Edupark "},{"$f":"PENYATAAN!C21","v":"Dalaman"},{"$f":"PENYATAAN!D21","v":"Penyelidikan & Inovasi"},{"$f":"PENYATAAN!E21","v":"Menjejaskan reputasi Universiti"},{"$f":"PENYATAAN!F21","v":"1. Pekerja Edu Park sebagai pemantau dan pengiring keselamatan sepanjang lawatan\n2. Membawa peti kecemasan dan kenderaan jabatan sebagai persediaan"},{"$f":"'PENILAIAN (Q2)'!W21","v":"2. Penilaian - Q2"},{"$f":"'PENILAIAN (Q2)'!P21","v":"Tidak Dapat Dijangka"},{"$f":"'PENILAIAN (Q2)'!R21","v":1},{"$f":"'PENILAIAN (Q2)'!M21","v":"Tidak Ketara"},{"$f":"'PENILAIAN (Q2)'!O21","v":1},1,{"$f":"VLOOKUP(P39,DROPLIST!AB:AC,2,FALSE)","v":"Rendah"},{"$f":"PENYATAAN!N21","v":0},{"$f":"'PENILAIAN (Q2)'!T21","v":"Tolak Ansur (Tolerate)"},{"$f":"'PENILAIAN (Q2)'!L21","v":"Pelaksanaan berterusan. Kenderaan rasmi jabatan juga digunakan sebagai kenderaan 'standby' jika berlaku kemalangan."},{"$f":"'PENILAIAN (Q2)'!V21","v":"Pengurusan risiko dijalankan setiap aktiviti"}]
[{"$f":"PENYATAAN!A22","v":14},{"$f":"'QMS OPRISK'!F7","v":"Perkhidmatan"},{"$f":"'QMS OPRISK'!F9","v":"Putra Science Park"},{"$f":"'QMS OPRISK'!F11","v":"Shahriman bin Hashim"},{"$f":"'QMS OPRISK'!F13","v":2019},{"$f":"PENYATAAN!B22","v":"kehadiran pelawat tidak mengikut ketetapan waktu yang telah dibuat oleh Edu-Park"},{"$f":"PENYATAAN!C22","v":"Luaran"},{"$f":"PENYATAAN!D22","v":"Penyelidikan & Inovasi"},{"$f":"PENYATAAN!E22","v":"Mengganggu perjalanan waktu lawatan "},{"$f":"PENYATAAN!F22","v":"memberi peringatan kepada pelawat 3 hari sebelum lawatan untuk tiba pada masa yang telah ditetapkan."},{"$f":"'PENILAIAN (Q2)'!W22","v":"2. Penilaian - Q2"},{"$f":"'PENILAIAN (Q2)'!P22","v":"Tidak Dapat Dijangka"},{"$f":"'PENILAIAN (Q2)'!R22","v":1},{"$f":"'PENILAIAN (Q2)'!M22","v":"Tidak Ketara"},{"$f":"'PENILAIAN (Q2)'!O22","v":1},1,{"$f":"VLOOKUP(P40,DROPLIST!AB:AC,2,FALSE)","v":"Rendah"},{"$f":"PENYATAAN!N22","v":0},{"$f":"'PENILAIAN (Q2)'!T22","v":"Tolak Ansur (Tolerate)"},{"$f":"'PENILAIAN (Q2)'!L22","v":"Pelaksanaan berterusan. Tiada masalah besar dalam menyusun atur semula masa lawatan"},{"$f":"'PENILAIAN (Q2)'!V22","v":"Pelaksanaan berterusan"}]
[{"$f":"PENYATAAN!A23","v":15},{"$f":"'QMS OPRISK'!F7","v":"Perkhidmatan"},{"$f":"'QMS OPRISK'!F9","v":"Putra Science Park"},{"$f":"'QMS OPRISK'!F11","v":"Shahriman bin Hashim"},{"$f":"'QMS OPRISK'!F13","v":2019},{"$f":"PENYATAAN!B23","v":"Sesi perundingan perniagaan (business negotiation) melibatkan pemindahan  teknologi yang dapat dilaksanakan dengan pihak industri adalah terhad kerana kekurangan perunding perniagaan(business negotiator) yang bertauliah dalam bidang pemindahan teknologi yang diiktiraf oleh universiti"},{"$f":"PENYATAAN!C23","v":"Dalaman"},{"$f":"PENYATAAN!D23","v":"Penyelidikan & Inovasi"},{"$f":"PENYATAAN!E23","v":"i. Menjejaskan KPI Penyelidikan dan Inovasi (TKHL )"},{"$f":"PENYATAAN!F23","v":"Perundingan perniagaan(business negotiation) hanya dilaksanakan  oleh Pengarah PSP sedia ada yang telah dilatih didalam bidang perundingan pernigaan yang melibatkan pemindahan teknologi daripada universiti kepada industri."},{"$f":"'PENILAIAN (Q2)'!W23","v":"2. Penilaian - Q2"},{"$f":"'PENILAIAN (Q2)'!P23","v":"Dapat Dijangka"},{"$f":"'PENILAIAN (Q2)'!R23","v":3},{"$f":"'PENILAIAN (Q2)'!M23","v":"Kecil"},{"$f":"'PENILAIAN (Q2)'!O23","v":2},6,{"$f":"VLOOKUP(P41,DROPLIST!AB:AC,2,FALSE)","v":"Sederhana"},{"$f":"PENYATAAN!N23","v":"1. Pembangunan kapasti(capacity building) kakitangan UPM yang terlibat dengan aktiviti pemindahan teknologi melalui  penyertaan program-program pentauliahan yang berkenaan dengan pemindahan teknologi seperti kursus Registered Technology Transfer Profesional(RTTP) dengan Association of University Technology Managers(AUTM) , Licensing Academy dengan U.C. Davis dan sebagainya.  \n\n2. Pengiktirafan oleh pihak Berkuasa Universiti kepada kakitangan UPM yang telah dilatih seperti di atas untuk kakitangan terbabit melaksanakan perundingan perniagaan (business negotiation) bagi pihak UPM bagi tujuan pemindahan teknologi. \n"},{"$f":"'PENILAIAN (Q2)'!T23","v":"Rawat \n(Treat)"},{"$f":"'PENILAIAN (Q2)'!L23","v":" Strategi tidak dapat dilaksanakan kerana kekangan kewangan Universiti untuk menghantar kakitangan UPM menghadiri kursus-kursus bertauliah.Permohonan peruntukan akan dibuat bagi tahun 2019."},{"$f":"'PENILAIAN (Q2)'!V23","v":"Isu:\nTiada mandat sebagai perunding perniagaan (business negotiator) kepada kakitangan UPM yang telah mengikuti program-program pentauliahan yang berkenaan dengan pemindahan teknologi seperti kursus Registered Technology Transfer Profesional(RTTP) dengan Association of University Technology Managers(AUTM) , Licensing Academy dengan U.C. Davis dan sebagainya.\n\nStrategi Tindakan:\nLantikan oleh pihak Berkuasa Universiti kepada kakitangan UPM yang telah dilatih seperti di atas untuk kakitangan terbabit melaksanakan perundingan perniagaan(business negotiation) bagi pihak UPM bagi tujuan pemindahan teknologi. "}]
[{"$f":"PENYATAAN!A24","v":16},{"$f":"'QMS OPRISK'!F7","v":"Perkhidmatan"},{"$f":"'QMS OPRISK'!F9","v":"Putra Science Park"},{"$f":"'QMS OPRISK'!F11","v":"Shahriman bin Hashim"},{"$f":"'QMS OPRISK'!F13","v":2019},{"$f":"PENYATAAN!B24","v":"Kekurangan peruntukan kewangan pengurusan dan promosi Putra Dynamics menyebabkan Promosi Putra Dynamics tidak dapat dilakukan secara agresif  "},{"$f":"PENYATAAN!C24","v":"Dalaman"},{"$f":"PENYATAAN!D24","v":"Penyelidikan & Inovasi"},{"$f":"PENYATAAN!E24","v":"Menjejaskan KPI bilangan peserta yang menyertai latihan "},{"$f":"PENYATAAN!F24","v":"Menggunakan jaringan sedia ada"},{"$f":"'PENILAIAN (Q2)'!W24","v":"2. Penilaian - Q2"},{"$f":"'PENILAIAN (Q2)'!P24","v":"Tidak Dapat Dijangka"},{"$f":"'PENILAIAN (Q2)'!R24","v":1},{"$f":"'PENILAIAN (Q2)'!M24","v":"Sederhana"},{"$f":"'PENILAIAN (Q2)'!O24","v":3},3,{"$f":"VLOOKUP(P42,DROPLIST!AB:AC,2,FALSE)","v":"Rendah"},{"$f":"PENYATAAN!N24","v":0},{"$f":"'PENILAIAN (Q2)'!T24","v":"Rawat \n(Treat)"},{"$f":"'PENILAIAN (Q2)'!L24","v":"Strategi sedia ada adalah berkesan"},{"$f":"'PENILAIAN (Q2)'!V24","v":"Menjalinkan jaringan bersama pelawat-pelawat yang datang ke PSP  "}]
[{"$f":"PENYATAAN!A25","v":17},{"$f":"'QMS OPRISK'!F7","v":"Perkhidmatan"},{"$f":"'QMS OPRISK'!F9","v":"Putra Science Park"},{"$f":"'QMS OPRISK'!F11","v":"Shahriman bin Hashim"},{"$f":"'QMS OPRISK'!F13","v":2019},{"$f":"PENYATAAN!B25","v":"Kesukaran untuk mendapatkan pelanggan untuk menyertai latihan yang ditawarkan Putra Dynamics menyebabkan kurang penjanaan pendapatan"},{"$f":"PENYATAAN!C25","v":"Dalaman"},{"$f":"PENYATAAN!D25","v":"Penyelidikan & Inovasi"},{"$f":"PENYATAAN!E25","v":"Menjejaskan KPI bilangan peserta yang menyertai latihan "},{"$f":"PENYATAAN!F25","v":" Menggunakan jaringan daripada pengurusan PSP untuk mendapatkan pelanggan yang sesuai"},{"$f":"'PENILAIAN (Q2)'!W25","v":"2. Penilaian - Q2"},{"$f":"'PENILAIAN (Q2)'!P25","v":"Tidak Dapat Dijangka"},{"$f":"'PENILAIAN (Q2)'!R25","v":1},{"$f":"'PENILAIAN (Q2)'!M25","v":"Sederhana"},{"$f":"'PENILAIAN (Q2)'!O25","v":3},3,{"$f":"VLOOKUP(P43,DROPLIST!AB:AC,2,FALSE)","v":"Rendah"},{"$f":"PENYATAAN!N25","v":0},{"$f":"'PENILAIAN (Q2)'!T25","v":"Rawat \n(Treat)"},{"$f":"'PENILAIAN (Q2)'!L25","v":"Strategi sedia ada adalah berkesan"},{"$f":"'PENILAIAN (Q2)'!V25","v":"Promosi melalui roadshow telah diadakan dibeberapa buah universiti dan agensi. Menghadiri program / sesi jaringan "}]
[{"$f":"PENYATAAN!A26","v":18},{"$f":"'QMS OPRISK'!F7","v":"Perkhidmatan"},{"$f":"'QMS OPRISK'!F9","v":"Putra Science Park"},{"$f":"'QMS OPRISK'!F11","v":"Shahriman bin Hashim"},{"$f":"'QMS OPRISK'!F13","v":2019},{"$f":"PENYATAAN!B26","v":"Nilai matawang negara (RM) berubah menyebabkan kos latihan  Putra Dynamic meningkatkan"},{"$f":"PENYATAAN!C26","v":"Luaran"},{"$f":"PENYATAAN!D26","v":"Penyelidikan & Inovasi"},{"$f":"PENYATAAN!E26","v":"Menjejaskan KPI bilangan peserta yang menyertai latihan "},{"$f":"PENYATAAN!F26","v":"Meningkatkan kos kontigensi dalam implikasi kewangan latihan"},{"$f":"'PENILAIAN (Q2)'!W26","v":"2. Penilaian - Q2"},{"$f":"'PENILAIAN (Q2)'!P26","v":"Tidak Dapat Dijangka"},{"$f":"'PENILAIAN (Q2)'!R26","v":1},{"$f":"'PENILAIAN (Q2)'!M26","v":"Sederhana"},{"$f":"'PENILAIAN (Q2)'!O26","v":3},3,{"$f":"VLOOKUP(P44,DROPLIST!AB:AC,2,FALSE)","v":"Rendah"},{"$f":"PENYATAAN!N26","v":0},{"$f":"'PENILAIAN (Q2)'!T26","v":"Rawat \n(Treat)"},{"$f":"'PENILAIAN (Q2)'!L26","v":"Kawalan sedia ada adalah berkesan"},{"$f":"'PENILAIAN (Q2)'!V26","v":"Meningkatkan kos perbelanjaan di dalam bajet pakej latihan inovasi "}]
[{"$f":"PENYATAAN!A27","v":19},{"$f":"'QMS OPRISK'!F7","v":"Perkhidmatan"},{"$f":"'QMS OPRISK'!F9","v":"Putra Science Park"},{"$f":"'QMS OPRISK'!F11","v":"Shahriman bin Hashim"},{"$f":"'QMS OPRISK'!F13","v":2019},{"$f":"PENYATAAN!B27","v":"Peserta Program Innohub menarik diri setelah program berjalan menyebabkan perancangan jadual perbatuan projek tidak dapat dilaksanakan"},{"$f":"PENYATAAN!C27","v":"Dalaman"},{"$f":"PENYATAAN!D27","v":"Penyelidikan & Inovasi"},{"$f":"PENYATAAN!E27","v":"Pelaksanaan projek tergendala dan teknologi tidak dapat dikomersilkan."},{"$f":"PENYATAAN!F27","v":"Pelan penggantian Peserta baharu / projek ditamatkan"},{"$f":"'PENILAIAN (Q2)'!W27","v":"2. Penilaian - Q2"},{"$f":"'PENILAIAN (Q2)'!P27","v":"Jarang Sekali"},{"$f":"'PENILAIAN (Q2)'!R27","v":2},{"$f":"'PENILAIAN (Q2)'!M27","v":"Kecil"},{"$f":"'PENILAIAN (Q2)'!O27","v":2},4,{"$f":"VLOOKUP(P45,DROPLIST!AB:AC,2,FALSE)","v":"Rendah"},{"$f":"PENYATAAN!N27","v":0},{"$f":"'PENILAIAN (Q2)'!T27","v":"Tolak Ansur (Tolerate)"},{"$f":"'PENILAIAN (Q2)'!L27","v":"Pelan sedia ada adalah berkesan"},{"$f":"'PENILAIAN (Q2)'!V27","v":"Pelan penggantian Peserta baharu / projek ditamatkan"}]
[{"$f":"PENYATAAN!A28","v":20},{"$f":"'QMS OPRISK'!$F$7","v":"Perkhidmatan"},{"$f":"'QMS OPRISK'!$F$9","v":"Putra Science Park"},{"$f":"'QMS OPRISK'!$F$11","v":"Shahriman bin Hashim"},{"$f":"'QMS OPRISK'!$F$13","v":2019},{"$f":"PENYATAAN!B28","v":"Tiada tambahan peruntukkan Dana RU InnoHub yang disalurkan menyebabkan Perkhidmatan Dana Innohub bagi membantu penyelidik mengkomersilkan produk kepada industri tidak dapat ditawarkan lagi"},{"$f":"PENYATAAN!C28","v":"Luaran"},{"$f":"PENYATAAN!D28","v":"Penyelidikan & Inovasi"},{"$f":"PENYATAAN!E28","v":"Program Innohub tidak dapat diteruskan"},{"$f":"PENYATAAN!F28","v":"Memberi latihan pitching kepada peserta  InnoHub untuk mendapatkan geran luar"},{"$f":"'PENILAIAN (Q2)'!W28","v":"2. Penilaian - Q2"},{"$f":"'PENILAIAN (Q2)'!P28","v":"Tidak Dapat Dijangka"},{"$f":"'PENILAIAN (Q2)'!R28","v":1},{"$f":"'PENILAIAN (Q2)'!M28","v":"Kecil"},{"$f":"'PENILAIAN (Q2)'!O28","v":2},{"$f":"M46*O46","v":2},{"$f":"VLOOKUP(P46,DROPLIST!AB:AC,2,FALSE)","v":"Rendah"},{"$f":"PENYATAAN!N28","v":0},{"$f":"'PENILAIAN (Q2)'!T28","v":"Tolak Ansur (Tolerate)"},{"$f":"'PENILAIAN (Q2)'!L28","v":"Strategi sedia ada adalah berkesan"},{"$f":"'PENILAIAN (Q2)'!V28","v":"Memberi latihan pitching kepada peserta  InnoHub untuk mendapatkan geran luar"}]
[{"$f":"PENYATAAN!A29","v":21},{"$f":"'QMS OPRISK'!$F$7","v":"Perkhidmatan"},{"$f":"'QMS OPRISK'!$F$9","v":"Putra Science Park"},{"$f":"'QMS OPRISK'!$F$11","v":"Shahriman bin Hashim"},{"$f":"'QMS OPRISK'!$F$13","v":2019},{"$f":"PENYATAAN!B29","v":"Kesukaran membuang dawai lama dan staf berisiko mengalami kecederaan semasa membuang dawai lama bagi memasang bunting aktiviti promosi pada tiang lampu setiap kali program dijalankan menyebabkan kecederaan kepada staf yang memasang bunting "},{"$f":"PENYATAAN!C29","v":"Dalaman"},{"$f":"PENYATAAN!D29","v":"Penyelidikan & Inovasi"},{"$f":"PENYATAAN!E29","v":"Menjejaskan keselamatan dan kebajikan pekerja"},{"$f":"PENYATAAN!F29","v":"Melaksanakan projek dibawah pemantauan KIK dengan membangunkan inovasi baharu bagi memudahkan kerja pemasangan bunting menggantikan penggunaan tangga di bawah program KIK PSP/TNCPI"},{"$f":"'PENILAIAN (Q2)'!W29","v":"2. Penilaian - Q2"},{"$f":"'PENILAIAN (Q2)'!P29","v":"Dapat Dijangka"},{"$f":"'PENILAIAN (Q2)'!R29","v":3},{"$f":"'PENILAIAN (Q2)'!M29","v":"Sederhana"},{"$f":"'PENILAIAN (Q2)'!O29","v":3},9,{"$f":"VLOOKUP(P47,DROPLIST!AB:AC,2,FALSE)","v":"Sederhana"},{"$f":"PENYATAAN!N29","v":"Tempoh pelaksanaan : 5 September 2019\n\n1 - Menjalankan program dan kempen kesedaran bagi membuang dawai lama/serpihan banting pada tiang lampu di sekitar UPM dengan kerjasama COSCOMM\n2. Membuat kajian terhadap kaedah dan alatan sedia ada di PBT\n3-Membangunkan inovasi bagi membantu memudahkan kerja pembuangan dawai"},{"$f":"'PENILAIAN (Q2)'!T29","v":"Tolak Ansur (Tolerate)"},{"$f":"'PENILAIAN (Q2)'!L29","v":0},{"$f":"'PENILAIAN (Q2)'!V29","v":"Tempoh pelaksanaan : 5 September 2019"}]
[{"$f":"PENYATAAN!A30","v":22},{"$f":"'QMS OPRISK'!$F$7","v":"Perkhidmatan"},{"$f":"'QMS OPRISK'!$F$9","v":"Putra Science Park"},{"$f":"'QMS OPRISK'!$F$11","v":"Shahriman bin Hashim"},{"$f":"'QMS OPRISK'!$F$13","v":2019},{"$f":"PENYATAAN!B30","v":0},{"$f":"PENYATAAN!C30","v":"Pilihan Klasifikasi Isu"},{"$f":"PENYATAAN!D30","v":"Pilihan Kategori Isu"},{"$f":"PENYATAAN!E30","v":0},{"$f":"PENYATAAN!F30","v":0},{"$f":"'PENILAIAN (Q2)'!W30","v":"2. Penilaian - Q2"},{"$f":"'PENILAIAN (Q2)'!P30","v":"Pilihan Tahap Kemungkinan"},{"$f":"'PENILAIAN (Q2)'!R30","v":0},{"$f":"'PENILAIAN (Q2)'!M30","v":"Pilihan Tahap Keterukan"},{"$f":"'PENILAIAN (Q2)'!O30","v":0},0,{"$f":"VLOOKUP(P48,DROPLIST!AB:AC,2,FALSE)","v":"-"},{"$f":"PENYATAAN!N30","v":0},{"$f":"'PENILAIAN (Q2)'!T30","v":"Pilihan Kawalan"},{"$f":"'PENILAIAN (Q2)'!L30","v":0},{"$f":"'PENILAIAN (Q2)'!V30","v":0}]
[{"$f":"PENYATAAN!A31","v":23},{"$f":"'QMS OPRISK'!$F$7","v":"Perkhidmatan"},{"$f":"'QMS OPRISK'!$F$9","v":"Putra Science Park"},{"$f":"'QMS OPRISK'!$F$11","v":"Shahriman bin Hashim"},{"$f":"'QMS OPRISK'!$F$13","v":2019},{"$f":"PENYATAAN!B31","v":0},{"$f":"PENYATAAN!C31","v":"Pilihan Klasifikasi Isu"},{"$f":"PENYATAAN!D31","v":"Pilihan Kategori Isu"},{"$f":"PENYATAAN!E31","v":0},{"$f":"PENYATAAN!F31","v":0},{"$f":"'PENILAIAN (Q2)'!W31","v":"2. Penilaian - Q2"},{"$f":"'PENILAIAN (Q2)'!P31","v":"Pilihan Tahap Kemungkinan"},{"$f":"'PENILAIAN (Q2)'!R31","v":0},{"$f":"'PENILAIAN (Q2)'!M31","v":"Pilihan Tahap Keterukan"},{"$f":"'PENILAIAN (Q2)'!O31","v":0},0,{"$f":"VLOOKUP(P49,DROPLIST!AB:AC,2,FALSE)","v":"-"},{"$f":"PENYATAAN!N31","v":0},{"$f":"'PENILAIAN (Q2)'!T31","v":"Pilihan Kawalan"},{"$f":"'PENILAIAN (Q2)'!L31","v":0},{"$f":"'PENILAIAN (Q2)'!V31","v":0}]
[{"$f":"PENYATAAN!A32","v":24},{"$f":"'QMS OPRISK'!$F$7","v":"Perkhidmatan"},{"$f":"'QMS OPRISK'!$F$9","v":"Putra Science Park"},{"$f":"'QMS OPRISK'!$F$11","v":"Shahriman bin Hashim"},{"$f":"'QMS OPRISK'!$F$13","v":2019},{"$f":"PENYATAAN!B32","v":0},{"$f":"PENYATAAN!C32","v":"Pilihan Klasifikasi Isu"},{"$f":"PENYATAAN!D32","v":"Pilihan Kategori Isu"},{"$f":"PENYATAAN!E32","v":0},{"$f":"PENYATAAN!F32","v":0},{"$f":"'PENILAIAN (Q2)'!W32","v":"2. Penilaian - Q2"},{"$f":"'PENILAIAN (Q2)'!P32","v":"Pilihan Tahap Kemungkinan"},{"$f":"'PENILAIAN (Q2)'!R32","v":0},{"$f":"'PENILAIAN (Q2)'!M32","v":"Pilihan Tahap Keterukan"},{"$f":"'PENILAIAN (Q2)'!O32","v":0},0,{"$f":"VLOOKUP(P50,DROPLIST!AB:AC,2,FALSE)","v":"-"},{"$f":"PENYATAAN!N32","v":0},{"$f":"'PENILAIAN (Q2)'!T32","v":"Pilihan Kawalan"},{"$f":"'PENILAIAN (Q2)'!L32","v":0},{"$f":"'PENILAIAN (Q2)'!V32","v":0}]
[{"$f":"PENYATAAN!A33","v":25},{"$f":"'QMS OPRISK'!F7","v":"Perkhidmatan"},{"$f":"'QMS OPRISK'!F9","v":"Putra Science Park"},{"$f":"'QMS OPRISK'!F11","v":"Shahriman bin Hashim"},{"$f":"'QMS OPRISK'!F13","v":2019},{"$f":"PENYATAAN!B33","v":0},{"$f":"PENYATAAN!C33","v":"Pilihan Klasifikasi Isu"},{"$f":"PENYATAAN!D33","v":"Pilihan Kategori Isu"},{"$f":"PENYATAAN!E33","v":0},{"$f":"PENYATAAN!F33","v":0},{"$f":"'PENILAIAN (Q2)'!W33","v":"2. Penilaian - Q2"},{"$f":"'PENILAIAN (Q2)'!P33","v":"Pilihan Tahap Kemungkinan"},{"$f":"'PENILAIAN (Q2)'!R33","v":0},{"$f":"'PENILAIAN (Q2)'!M33","v":"Pilihan Tahap Keterukan"},{"$f":"'PENILAIAN (Q2)'!O33","v":0},0,{"$f":"VLOOKUP(P51,DROPLIST!AB:AC,2,FALSE)","v":"-"},{"$f":"PENYATAAN!N33","v":0},{"$f":"'PENILAIAN (Q2)'!T33","v":"Pilihan Kawalan"},{"$f":"'PENILAIAN (Q2)'!L33","v":0},{"$f":"'PENILAIAN (Q2)'!V33","v":0}]
[{"$f":"PENYATAAN!A9","v":1},{"$f":"'QMS OPRISK'!F7","v":"Perkhidmatan"},{"$f":"'QMS OPRISK'!F9","v":"Putra Science Park"},{"$f":"'QMS OPRISK'!F11","v":"Shahriman bin Hashim"},{"$f":"'QMS OPRISK'!F13","v":2019},{"$f":"PENYATAAN!B9","v":"Pengurangan jumlah permohonan menyebabkan bilangan pemfailan  harta intelek  dalam dan luar negara  terjejas         "},{"$f":"PENYATAAN!C9","v":"Dalaman"},{"$f":"PENYATAAN!D9","v":"Penyelidikan & Inovasi"},{"$f":"PENYATAAN!E9","v":"i. Menjejaskan KPI Penyelidikan dan Inovasi (Pemfailan harta intelek)"},{"$f":"PENYATAAN!F9","v":"Seminar dan Klinik IP  di PTJ / atas permintaan PTJ"},{"$f":"'PENILAIAN (Q4)'!R9","v":"3. Penilaian - Q4"},{"$f":"'PENILAIAN (Q4)'!K9","v":"Pilihan Tahap Kemungkinan"},{"$f":"'PENILAIAN (Q4)'!M9","v":0},{"$f":"'PENILAIAN (Q4)'!H9","v":"Pilihan Tahap Keterukan"},{"$f":"'PENILAIAN (Q4)'!J9","v":0},0,{"$f":"VLOOKUP(P52,DROPLIST!AB:AC,2,FALSE)","v":"-"},{"$f":"PENYATAAN!N9","v":0},{"$f":"'PENILAIAN (Q4)'!O9","v":"Pilihan Kawalan"},"-",{"$f":"'PENILAIAN (Q4)'!Q9","v":0}]
[{"$f":"PENYATAAN!A10","v":2},{"$f":"'QMS OPRISK'!F7","v":"Perkhidmatan"},{"$f":"'QMS OPRISK'!F9","v":"Putra Science Park"},{"$f":"'QMS OPRISK'!F11","v":"Shahriman bin Hashim"},{"$f":"'QMS OPRISK'!F13","v":2019},{"$f":"PENYATAAN!B10","v":"Kekangan peruntukan bagi perlindungan harta intelek menyebab universiti menanggung kos perlindungan harta intelek luar negara yang tinggi "},{"$f":"PENYATAAN!C10","v":"Dalaman"},{"$f":"PENYATAAN!D10","v":"Penyelidikan & Inovasi"},{"$f":"PENYATAAN!E10","v":"i. Menjejaskan KPI Penyelidikan dan Inovasi (Pemfailan harta intelek)"},{"$f":"PENYATAAN!F10","v":"Menamatkan perlindungan paten luar negara melebihi 5 tahun yang tidak dikomersialkan  "},{"$f":"'PENILAIAN (Q4)'!R10","v":"3. Penilaian - Q4"},{"$f":"'PENILAIAN (Q4)'!K10","v":"Pilihan Tahap Kemungkinan"},{"$f":"'PENILAIAN (Q4)'!M10","v":0},{"$f":"'PENILAIAN (Q4)'!H10","v":"Pilihan Tahap Keterukan"},{"$f":"'PENILAIAN (Q4)'!J10","v":0},0,{"$f":"VLOOKUP(P53,DROPLIST!AB:AC,2,FALSE)","v":"-"},{"$f":"PENYATAAN!N10","v":0},{"$f":"'PENILAIAN (Q4)'!O10","v":"Pilihan Kawalan"},"-",{"$f":"'PENILAIAN (Q4)'!Q10","v":0}]
[{"$f":"PENYATAAN!A11","v":3},{"$f":"'QMS OPRISK'!F7","v":"Perkhidmatan"},{"$f":"'QMS OPRISK'!F9","v":"Putra Science Park"},{"$f":"'QMS OPRISK'!F11","v":"Shahriman bin Hashim"},{"$f":"'QMS OPRISK'!F13","v":2019},{"$f":"PENYATAAN!B11","v":"Pengiktirafan UPM sebagai organisasi pengurusan harta intelek terbaik negara meningkatkan peluang perniagaan baharu Putra Dynamic kerana menjadi pakar rujuk "},{"$f":"PENYATAAN!C11","v":"Dalaman"},{"$f":"PENYATAAN!D11","v":"Penyelidikan & Inovasi"},{"$f":"PENYATAAN!E11","v":"Meningkatkan bilangan peserta luar yang menyertai latihan "},{"$f":"PENYATAAN!F11","v":"Mengekalkan penyertaan Anugerah Harta Intelek Negara (AHIN)"},{"$f":"'PENILAIAN (Q4)'!R11","v":"3. Penilaian - Q4"},{"$f":"'PENILAIAN (Q4)'!K11","v":"Pilihan Tahap Kemungkinan"},{"$f":"'PENILAIAN (Q4)'!M11","v":0},{"$f":"'PENILAIAN (Q4)'!H11","v":"Pilihan Tahap Keterukan"},{"$f":"'PENILAIAN (Q4)'!J11","v":0},0,{"$f":"VLOOKUP(P54,DROPLIST!AB:AC,2,FALSE)","v":"-"},{"$f":"PENYATAAN!N11","v":0},{"$f":"'PENILAIAN (Q4)'!O11","v":"Pilihan Kawalan"},"-",{"$f":"'PENILAIAN (Q4)'!Q11","v":0}]
[{"$f":"PENYATAAN!A12","v":4},{"$f":"'QMS OPRISK'!F7","v":"Perkhidmatan"},{"$f":"'QMS OPRISK'!F9","v":"Putra Science Park"},{"$f":"'QMS OPRISK'!F11","v":"Shahriman bin Hashim"},{"$f":"'QMS OPRISK'!F13","v":2019},{"$f":"PENYATAAN!B12","v":"Pembayaran balik dana Mikrokredit tidak dilunaskan oleh peserta menyebabkan kurang dana untuk ditawarkan kepada peserta yang baharu"},{"$f":"PENYATAAN!C12","v":"Dalaman"},{"$f":"PENYATAAN!D12","v":"Penyelidikan & Inovasi"},{"$f":"PENYATAAN!E12","v":"Usahawan pelajar baharu tidak dapat dilahirkan "},{"$f":"PENYATAAN!F12","v":"`-notis bayaran secara bertulis dan telefon/ whatsapp\n- transkrip dan sijil bergraduat UPM tidak akan diberikan kepada pelajar"},{"$f":"'PENILAIAN (Q4)'!R12","v":"3. Penilaian - Q4"},{"$f":"'PENILAIAN (Q4)'!K12","v":"Pilihan Tahap Kemungkinan"},{"$f":"'PENILAIAN (Q4)'!M12","v":0},{"$f":"'PENILAIAN (Q4)'!H12","v":"Pilihan Tahap Keterukan"},{"$f":"'PENILAIAN (Q4)'!J12","v":0},0,{"$f":"VLOOKUP(P55,DROPLIST!AB:AC,2,FALSE)","v":"-"},{"$f":"PENYATAAN!N12","v":0},{"$f":"'PENILAIAN (Q4)'!O12","v":"Pilihan Kawalan"},"-",{"$f":"'PENILAIAN (Q4)'!Q12","v":0}]
[{"$f":"PENYATAAN!A13","v":5},{"$f":"'QMS OPRISK'!F7","v":"Perkhidmatan"},{"$f":"'QMS OPRISK'!F9","v":"Putra Science Park"},{"$f":"'QMS OPRISK'!F11","v":"Shahriman bin Hashim"},{"$f":"'QMS OPRISK'!F13","v":2019},{"$f":"PENYATAAN!B13","v":"Kurang penyertaan permohonan dana program Mikrokredit menyebabkan dana tidak dapat dimanfaatkan"},{"$f":"PENYATAAN!C13","v":"Dalaman"},{"$f":"PENYATAAN!D13","v":"Penyelidikan & Inovasi"},{"$f":"PENYATAAN!E13","v":"Usahawan pelajar baharu tidak dapat dilahirkan "},{"$f":"PENYATAAN!F13","v":"Sebarkan hebahan program melalui laman Web, CEM, Wazan dan Billboard UPM, facebook, Whatsapp Group"},{"$f":"'PENILAIAN (Q4)'!R13","v":"3. Penilaian - Q4"},{"$f":"'PENILAIAN (Q4)'!K13","v":"Pilihan Tahap Kemungkinan"},{"$f":"'PENILAIAN (Q4)'!M13","v":0},{"$f":"'PENILAIAN (Q4)'!H13","v":"Pilihan Tahap Keterukan"},{"$f":"'PENILAIAN (Q4)'!J13","v":0},0,{"$f":"VLOOKUP(P56,DROPLIST!AB:AC,2,FALSE)","v":"-"},{"$f":"PENYATAAN!N13","v":0},{"$f":"'PENILAIAN (Q4)'!O13","v":"Pilihan Kawalan"},"-",{"$f":"'PENILAIAN (Q4)'!Q13","v":0}]
[{"$f":"PENYATAAN!A14","v":6},{"$f":"'QMS OPRISK'!F7","v":"Perkhidmatan"},{"$f":"'QMS OPRISK'!F9","v":"Putra Science Park"},{"$f":"'QMS OPRISK'!F11","v":"Shahriman bin Hashim"},{"$f":"'QMS OPRISK'!F13","v":2019},{"$f":"PENYATAAN!B14","v":"Peruntukan bagi aktiviti promosi dan pemasaran inovasi yang berkurangan setiap tahun -Pemotongan peruntukan daripada kerajaan  (-30% bagi tahun 2017) menyebabkan aktiviti promosi berkurangan bagi mendapatkan industri yang berpotensi menjalankan kerjasama dengan UPM "},{"$f":"PENYATAAN!C14","v":"Luaran"},{"$f":"PENYATAAN!D14","v":"Penyelidikan & Inovasi"},{"$f":"PENYATAAN!E14","v":"i. Menjejaskan KPI Promosi dan Pemasaran Inovasi PSP - Bilangan industri"},{"$f":"PENYATAAN!F14","v":"Memohon peruntukan tambahan seperti Dana RU bagi menampung kos promosi (pameran) yang wajib disertai dan melibatkan kos tinggi"},{"$f":"'PENILAIAN (Q4)'!R14","v":"3. Penilaian - Q4"},{"$f":"'PENILAIAN (Q4)'!K14","v":"Pilihan Tahap Kemungkinan"},{"$f":"'PENILAIAN (Q4)'!M14","v":0},{"$f":"'PENILAIAN (Q4)'!H14","v":"Pilihan Tahap Keterukan"},{"$f":"'PENILAIAN (Q4)'!J14","v":0},0,{"$f":"VLOOKUP(P57,DROPLIST!AB:AC,2,FALSE)","v":"-"},{"$f":"PENYATAAN!N14","v":0},{"$f":"'PENILAIAN (Q4)'!O14","v":"Pilihan Kawalan"},"-",{"$f":"'PENILAIAN (Q4)'!Q14","v":0}]
[{"$f":"PENYATAAN!A15","v":7},{"$f":"'QMS OPRISK'!F7","v":"Perkhidmatan"},{"$f":"'QMS OPRISK'!F9","v":"Putra Science Park"},{"$f":"'QMS OPRISK'!F11","v":"Shahriman bin Hashim"},{"$f":"'QMS OPRISK'!F13","v":2019},{"$f":"PENYATAAN!B15","v":"Kesukaran memasang bunting promosi dan staf berisiko mengalami kecederaan semasa memasang bunting aktiviti promosi pada tiang lampu setiap kali program dijalankan menyebabkan kecederaan kepada staf yang memasang bunting "},{"$f":"PENYATAAN!C15","v":"Dalaman"},{"$f":"PENYATAAN!D15","v":"Penyelidikan & Inovasi"},{"$f":"PENYATAAN!E15","v":"Menjejaskan keselamatan dan kebajikan pekerja"},{"$f":"PENYATAAN!F15","v":"Membangunkan inovasi baharu bagi memudahkan kerja pemasangan bunting menggantikan penggunaan tangga di bawah program KIK PSP/TNCPI"},{"$f":"'PENILAIAN (Q4)'!R15","v":"3. Penilaian - Q4"},{"$f":"'PENILAIAN (Q4)'!K15","v":"Pilihan Tahap Kemungkinan"},{"$f":"'PENILAIAN (Q4)'!M15","v":0},{"$f":"'PENILAIAN (Q4)'!H15","v":"Pilihan Tahap Keterukan"},{"$f":"'PENILAIAN (Q4)'!J15","v":0},0,{"$f":"VLOOKUP(P58,DROPLIST!AB:AC,2,FALSE)","v":"-"},{"$f":"PENYATAAN!N15","v":0},{"$f":"'PENILAIAN (Q4)'!O15","v":"Pilihan Kawalan"},"-",{"$f":"'PENILAIAN (Q4)'!Q15","v":0}]
[{"$f":"PENYATAAN!A16","v":8},{"$f":"'QMS OPRISK'!F7","v":"Perkhidmatan"},{"$f":"'QMS OPRISK'!F9","v":"Putra Science Park"},{"$f":"'QMS OPRISK'!F11","v":"Shahriman bin Hashim"},{"$f":"'QMS OPRISK'!F13","v":2019},{"$f":"PENYATAAN!B16","v":"Kesalahan penterjemahan kenyataan media bagi hebahan promosi hasil penyelidikan oleh wartawan\n - Wartawan salah faham/kurang faham penjelasan teknikal daripada penyelidik semasa sidang media "},{"$f":"PENYATAAN!C16","v":"Luaran"},{"$f":"PENYATAAN!D16","v":"Penyelidikan & Inovasi"},{"$f":"PENYATAAN!E16","v":"Menjejaskan reputasi dan memberi maklumat yang salah kepada orang awam /pembaca"},{"$f":"PENYATAAN!F16","v":"1- Menyediakan kenyataan media dalam bentuk yang dapat difahami oleh orang biasa di dalam dwi bahasa.\n2- Maklumat penyelidikan disediakan di dalam bentuk soalan-jawapan\n3- Slide pembentangan teknologi turut diberi kepada wartawan selain kenyataan media dan soalan-jawapan."},{"$f":"'PENILAIAN (Q4)'!R16","v":"3. Penilaian - Q4"},{"$f":"'PENILAIAN (Q4)'!K16","v":"Pilihan Tahap Kemungkinan"},{"$f":"'PENILAIAN (Q4)'!M16","v":0},{"$f":"'PENILAIAN (Q4)'!H16","v":"Pilihan Tahap Keterukan"},{"$f":"'PENILAIAN (Q4)'!J16","v":0},0,{"$f":"VLOOKUP(P59,DROPLIST!AB:AC,2,FALSE)","v":"-"},{"$f":"PENYATAAN!N16","v":0},{"$f":"'PENILAIAN (Q4)'!O16","v":"Pilihan Kawalan"},"-",{"$f":"'PENILAIAN (Q4)'!Q16","v":0}]
[{"$f":"PENYATAAN!A17","v":9},{"$f":"'QMS OPRISK'!F7","v":"Perkhidmatan"},{"$f":"'QMS OPRISK'!F9","v":"Putra Science Park"},{"$f":"'QMS OPRISK'!F11","v":"Shahriman bin Hashim"},{"$f":"'QMS OPRISK'!F13","v":2019},{"$f":"PENYATAAN!B17","v":"Permohonan Suai Padan Teknologi (SPT) yang sukar mendapat maklumbalas PTJ/lain, tidak dibuat susulan selanjutnya selepas promosi tamat menyebabkan peluang kerjasama dengan industri tidak dapat diteruskan"},{"$f":"PENYATAAN!C17","v":"Dalaman"},{"$f":"PENYATAAN!D17","v":"Penyelidikan & Inovasi"},{"$f":"PENYATAAN!E17","v":"Menjejaskan KPI Penyelidikan dan inovasi  (TKHL)"},{"$f":"PENYATAAN!F17","v":"Pemantauan secara menggunakan database Industry Relation Management (IRM)"},{"$f":"'PENILAIAN (Q4)'!R17","v":"3. Penilaian - Q4"},{"$f":"'PENILAIAN (Q4)'!K17","v":"Pilihan Tahap Kemungkinan"},{"$f":"'PENILAIAN (Q4)'!M17","v":0},{"$f":"'PENILAIAN (Q4)'!H17","v":"Pilihan Tahap Keterukan"},{"$f":"'PENILAIAN (Q4)'!J17","v":0},0,{"$f":"VLOOKUP(P60,DROPLIST!AB:AC,2,FALSE)","v":"-"},{"$f":"PENYATAAN!N17","v":"1- Pemantauan secara manual melalui Jadual Pemantauan Kerja SPT di papan putih Pejabat\n2- Memberi maklumbalas penerimaan permohonan industri selepas aktiviti promosi tamat sebelum dipantau melalui Jadual Pemantauan Kerja"},{"$f":"'PENILAIAN (Q4)'!O17","v":"Pilihan Kawalan"},"-",{"$f":"'PENILAIAN (Q4)'!Q17","v":0}]
[{"$f":"PENYATAAN!A18","v":10},{"$f":"'QMS OPRISK'!F7","v":"Perkhidmatan"},{"$f":"'QMS OPRISK'!F9","v":"Putra Science Park"},{"$f":"'QMS OPRISK'!F11","v":"Shahriman bin Hashim"},{"$f":"'QMS OPRISK'!F13","v":2019},{"$f":"PENYATAAN!B18","v":"Kurang penyertaan permohonan dana promosi produk daripada penyelidik  menyebabkan kurang bilangan projek diluluskan"},{"$f":"PENYATAAN!C18","v":"Dalaman"},{"$f":"PENYATAAN!D18","v":"Penyelidikan & Inovasi"},{"$f":"PENYATAAN!E18","v":"Tidak mencapai sasaran KPI Dana Promosi yang ditetapkan"},{"$f":"PENYATAAN!F18","v":"Membuat hebahan melalui buletin, laman web"},{"$f":"'PENILAIAN (Q4)'!R18","v":"3. Penilaian - Q4"},{"$f":"'PENILAIAN (Q4)'!K18","v":"Pilihan Tahap Kemungkinan"},{"$f":"'PENILAIAN (Q4)'!M18","v":0},{"$f":"'PENILAIAN (Q4)'!H18","v":"Pilihan Tahap Keterukan"},{"$f":"'PENILAIAN (Q4)'!J18","v":0},0,{"$f":"VLOOKUP(P61,DROPLIST!AB:AC,2,FALSE)","v":"-"},{"$f":"PENYATAAN!N18","v":0},{"$f":"'PENILAIAN (Q4)'!O18","v":"Pilihan Kawalan"},"-",{"$f":"'PENILAIAN (Q4)'!Q18","v":0}]
[{"$f":"PENYATAAN!A19","v":11},{"$f":"'QMS OPRISK'!F7","v":"Perkhidmatan"},{"$f":"'QMS OPRISK'!F9","v":"Putra Science Park"},{"$f":"'QMS OPRISK'!F11","v":"Shahriman bin Hashim"},{"$f":"'QMS OPRISK'!F13","v":2019},{"$f":"PENYATAAN!B19","v":"Kekurangan Staf Edu-Park bagi mengendalikan aktiviti yang disertai pelawat diseluruh lokasi Edupark UPM menyebabkan kerja tidak dilaksanakan dengan lancar"},{"$f":"PENYATAAN!C19","v":"Dalaman"},{"$f":"PENYATAAN!D19","v":"Penyelidikan & Inovasi"},{"$f":"PENYATAAN!E19","v":"Menjejaskan KPI penjanaan dana Edupark"},{"$f":"PENYATAAN!F19","v":"menggunakan khidmat pelajar"},{"$f":"'PENILAIAN (Q4)'!R19","v":"3. Penilaian - Q4"},{"$f":"'PENILAIAN (Q4)'!K19","v":"Pilihan Tahap Kemungkinan"},{"$f":"'PENILAIAN (Q4)'!M19","v":0},{"$f":"'PENILAIAN (Q4)'!H19","v":"Pilihan Tahap Keterukan"},{"$f":"'PENILAIAN (Q4)'!J19","v":0},0,{"$f":"VLOOKUP(P62,DROPLIST!AB:AC,2,FALSE)","v":"-"},{"$f":"PENYATAAN!N19","v":0},{"$f":"'PENILAIAN (Q4)'!O19","v":"Pilihan Kawalan"},"-",{"$f":"'PENILAIAN (Q4)'!Q19","v":0}]
[{"$f":"PENYATAAN!A20","v":12},{"$f":"'QMS OPRISK'!F7","v":"Perkhidmatan"},{"$f":"'QMS OPRISK'!F9","v":"Putra Science Park"},{"$f":"'QMS OPRISK'!F11","v":"Shahriman bin Hashim"},{"$f":"'QMS OPRISK'!F13","v":2019},{"$f":"PENYATAAN!B20","v":"Kekurangan Peruntukan Kewangan bagi pengurusan Edu-Park menyebabkan penyelenggaraan /penggantian peralatan tidak dapat dijalankan dan pembelian bahan pameran dan modul tidak dapat dilakukan"},{"$f":"PENYATAAN!C20","v":"Dalaman"},{"$f":"PENYATAAN!D20","v":"Penyelidikan & Inovasi"},{"$f":"PENYATAAN!E20","v":"Menjejaskan KPI penjanaan dana Edupark"},{"$f":"PENYATAAN!F20","v":"1)lokasi lawatan ditutup buat sementara waktu 2)menyediakan modul gantian sekiranya modul tersebut tidak dapat dijalankan"},{"$f":"'PENILAIAN (Q4)'!R20","v":"3. Penilaian - Q4"},{"$f":"'PENILAIAN (Q4)'!K20","v":"Pilihan Tahap Kemungkinan"},{"$f":"'PENILAIAN (Q4)'!M20","v":0},{"$f":"'PENILAIAN (Q4)'!H20","v":"Pilihan Tahap Keterukan"},{"$f":"'PENILAIAN (Q4)'!J20","v":0},0,{"$f":"VLOOKUP(P63,DROPLIST!AB:AC,2,FALSE)","v":"-"},{"$f":"PENYATAAN!N20","v":0},{"$f":"'PENILAIAN (Q4)'!O20","v":"Pilihan Kawalan"},"-",{"$f":"'PENILAIAN (Q4)'!Q20","v":0}]
[{"$f":"PENYATAAN!A21","v":13},{"$f":"'QMS OPRISK'!F7","v":"Perkhidmatan"},{"$f":"'QMS OPRISK'!F9","v":"Putra Science Park"},{"$f":"'QMS OPRISK'!F11","v":"Shahriman bin Hashim"},{"$f":"'QMS OPRISK'!F13","v":2019},{"$f":"PENYATAAN!B21","v":"Tahap keselamatan pelawat Edu-Park berisiko mengalami kecederaan semasa lawatan pelawat Edupark "},{"$f":"PENYATAAN!C21","v":"Dalaman"},{"$f":"PENYATAAN!D21","v":"Penyelidikan & Inovasi"},{"$f":"PENYATAAN!E21","v":"Menjejaskan reputasi Universiti"},{"$f":"PENYATAAN!F21","v":"1. Pekerja Edu Park sebagai pemantau dan pengiring keselamatan sepanjang lawatan\n2. Membawa peti kecemasan dan kenderaan jabatan sebagai persediaan"},{"$f":"'PENILAIAN (Q4)'!R21","v":"3. Penilaian - Q4"},{"$f":"'PENILAIAN (Q4)'!K21","v":"Pilihan Tahap Kemungkinan"},{"$f":"'PENILAIAN (Q4)'!M21","v":0},{"$f":"'PENILAIAN (Q4)'!H21","v":"Pilihan Tahap Keterukan"},{"$f":"'PENILAIAN (Q4)'!J21","v":0},0,{"$f":"VLOOKUP(P64,DROPLIST!AB:AC,2,FALSE)","v":"-"},{"$f":"PENYATAAN!N21","v":0},{"$f":"'PENILAIAN (Q4)'!O21","v":"Pilihan Kawalan"},"-",{"$f":"'PENILAIAN (Q4)'!Q21","v":0}]
[{"$f":"PENYATAAN!A22","v":14},{"$f":"'QMS OPRISK'!F7","v":"Perkhidmatan"},{"$f":"'QMS OPRISK'!F9","v":"Putra Science Park"},{"$f":"'QMS OPRISK'!F11","v":"Shahriman bin Hashim"},{"$f":"'QMS OPRISK'!F13","v":2019},{"$f":"PENYATAAN!B22","v":"kehadiran pelawat tidak mengikut ketetapan waktu yang telah dibuat oleh Edu-Park"},{"$f":"PENYATAAN!C22","v":"Luaran"},{"$f":"PENYATAAN!D22","v":"Penyelidikan & Inovasi"},{"$f":"PENYATAAN!E22","v":"Mengganggu perjalanan waktu lawatan "},{"$f":"PENYATAAN!F22","v":"memberi peringatan kepada pelawat 3 hari sebelum lawatan untuk tiba pada masa yang telah ditetapkan."},{"$f":"'PENILAIAN (Q4)'!R22","v":"3. Penilaian - Q4"},{"$f":"'PENILAIAN (Q4)'!K22","v":"Pilihan Tahap Kemungkinan"},{"$f":"'PENILAIAN (Q4)'!M22","v":0},{"$f":"'PENILAIAN (Q4)'!H22","v":"Pilihan Tahap Keterukan"},{"$f":"'PENILAIAN (Q4)'!J22","v":0},0,{"$f":"VLOOKUP(P65,DROPLIST!AB:AC,2,FALSE)","v":"-"},{"$f":"PENYATAAN!N22","v":0},{"$f":"'PENILAIAN (Q4)'!O22","v":"Pilihan Kawalan"},"-",{"$f":"'PENILAIAN (Q4)'!Q22","v":0}]
[{"$f":"PENYATAAN!A23","v":15},{"$f":"'QMS OPRISK'!F7","v":"Perkhidmatan"},{"$f":"'QMS OPRISK'!F9","v":"Putra Science Park"},{"$f":"'QMS OPRISK'!F11","v":"Shahriman bin Hashim"},{"$f":"'QMS OPRISK'!F13","v":2019},{"$f":"PENYATAAN!B23","v":"Sesi perundingan perniagaan (business negotiation) melibatkan pemindahan  teknologi yang dapat dilaksanakan dengan pihak industri adalah terhad kerana kekurangan perunding perniagaan(business negotiator) yang bertauliah dalam bidang pemindahan teknologi yang diiktiraf oleh universiti"},{"$f":"PENYATAAN!C23","v":"Dalaman"},{"$f":"PENYATAAN!D23","v":"Penyelidikan & Inovasi"},{"$f":"PENYATAAN!E23","v":"i. Menjejaskan KPI Penyelidikan dan Inovasi (TKHL )"},{"$f":"PENYATAAN!F23","v":"Perundingan perniagaan(business negotiation) hanya dilaksanakan  oleh Pengarah PSP sedia ada yang telah dilatih didalam bidang perundingan pernigaan yang melibatkan pemindahan teknologi daripada universiti kepada industri."},{"$f":"'PENILAIAN (Q4)'!R23","v":"3. Penilaian - Q4"},{"$f":"'PENILAIAN (Q4)'!K23","v":"Pilihan Tahap Kemungkinan"},{"$f":"'PENILAIAN (Q4)'!M23","v":0},{"$f":"'PENILAIAN (Q4)'!H23","v":"Pilihan Tahap Keterukan"},{"$f":"'PENILAIAN (Q4)'!J23","v":0},0,{"$f":"VLOOKUP(P66,DROPLIST!AB:AC,2,FALSE)","v":"-"},{"$f":"PENYATAAN!N23","v":"1. Pembangunan kapasti(capacity building) kakitangan UPM yang terlibat dengan aktiviti pemindahan teknologi melalui  penyertaan program-program pentauliahan yang berkenaan dengan pemindahan teknologi seperti kursus Registered Technology Transfer Profesional(RTTP) dengan Association of University Technology Managers(AUTM) , Licensing Academy dengan U.C. Davis dan sebagainya.  \n\n2. Pengiktirafan oleh pihak Berkuasa Universiti kepada kakitangan UPM yang telah dilatih seperti di atas untuk kakitangan terbabit melaksanakan perundingan perniagaan (business negotiation) bagi pihak UPM bagi tujuan pemindahan teknologi. \n"},{"$f":"'PENILAIAN (Q4)'!O23","v":"Pilihan Kawalan"},"-",{"$f":"'PENILAIAN (Q4)'!Q23","v":0}]
[{"$f":"PENYATAAN!A24","v":16},{"$f":"'QMS OPRISK'!F7","v":"Perkhidmatan"},{"$f":"'QMS OPRISK'!F9","v":"Putra Science Park"},{"$f":"'QMS OPRISK'!F11","v":"Shahriman bin Hashim"},{"$f":"'QMS OPRISK'!F13","v":2019},{"$f":"PENYATAAN!B24","v":"Kekurangan peruntukan kewangan pengurusan dan promosi Putra Dynamics menyebabkan Promosi Putra Dynamics tidak dapat dilakukan secara agresif  "},{"$f":"PENYATAAN!C24","v":"Dalaman"},{"$f":"PENYATAAN!D24","v":"Penyelidikan & Inovasi"},{"$f":"PENYATAAN!E24","v":"Menjejaskan KPI bilangan peserta yang menyertai latihan "},{"$f":"PENYATAAN!F24","v":"Menggunakan jaringan sedia ada"},{"$f":"'PENILAIAN (Q4)'!R24","v":"3. Penilaian - Q4"},{"$f":"'PENILAIAN (Q4)'!K24","v":"Pilihan Tahap Kemungkinan"},{"$f":"'PENILAIAN (Q4)'!M24","v":0},{"$f":"'PENILAIAN (Q4)'!H24","v":"Pilihan Tahap Keterukan"},{"$f":"'PENILAIAN (Q4)'!J24","v":0},0,{"$f":"VLOOKUP(P67,DROPLIST!AB:AC,2,FALSE)","v":"-"},{"$f":"PENYATAAN!N24","v":0},{"$f":"'PENILAIAN (Q4)'!O24","v":"Pilihan Kawalan"},"-",{"$f":"'PENILAIAN (Q4)'!Q24","v":0}]
[{"$f":"PENYATAAN!A25","v":17},{"$f":"'QMS OPRISK'!F7","v":"Perkhidmatan"},{"$f":"'QMS OPRISK'!F9","v":"Putra Science Park"},{"$f":"'QMS OPRISK'!F11","v":"Shahriman bin Hashim"},{"$f":"'QMS OPRISK'!F13","v":2019},{"$f":"PENYATAAN!B25","v":"Kesukaran untuk mendapatkan pelanggan untuk menyertai latihan yang ditawarkan Putra Dynamics menyebabkan kurang penjanaan pendapatan"},{"$f":"PENYATAAN!C25","v":"Dalaman"},{"$f":"PENYATAAN!D25","v":"Penyelidikan & Inovasi"},{"$f":"PENYATAAN!E25","v":"Menjejaskan KPI bilangan peserta yang menyertai latihan "},{"$f":"PENYATAAN!F25","v":" Menggunakan jaringan daripada pengurusan PSP untuk mendapatkan pelanggan yang sesuai"},{"$f":"'PENILAIAN (Q4)'!R25","v":"3. Penilaian - Q4"},{"$f":"'PENILAIAN (Q4)'!K25","v":"Pilihan Tahap Kemungkinan"},{"$f":"'PENILAIAN (Q4)'!M25","v":0},{"$f":"'PENILAIAN (Q4)'!H25","v":"Pilihan Tahap Keterukan"},{"$f":"'PENILAIAN (Q4)'!J25","v":0},0,{"$f":"VLOOKUP(P68,DROPLIST!AB:AC,2,FALSE)","v":"-"},{"$f":"PENYATAAN!N25","v":0},{"$f":"'PENILAIAN (Q4)'!O25","v":"Pilihan Kawalan"},"-",{"$f":"'PENILAIAN (Q4)'!Q25","v":0}]
[{"$f":"PENYATAAN!A26","v":18},{"$f":"'QMS OPRISK'!F7","v":"Perkhidmatan"},{"$f":"'QMS OPRISK'!F9","v":"Putra Science Park"},{"$f":"'QMS OPRISK'!F11","v":"Shahriman bin Hashim"},{"$f":"'QMS OPRISK'!F13","v":2019},{"$f":"PENYATAAN!B26","v":"Nilai matawang negara (RM) berubah menyebabkan kos latihan  Putra Dynamic meningkatkan"},{"$f":"PENYATAAN!C26","v":"Luaran"},{"$f":"PENYATAAN!D26","v":"Penyelidikan & Inovasi"},{"$f":"PENYATAAN!E26","v":"Menjejaskan KPI bilangan peserta yang menyertai latihan "},{"$f":"PENYATAAN!F26","v":"Meningkatkan kos kontigensi dalam implikasi kewangan latihan"},{"$f":"'PENILAIAN (Q4)'!R26","v":"3. Penilaian - Q4"},{"$f":"'PENILAIAN (Q4)'!K26","v":"Pilihan Tahap Kemungkinan"},{"$f":"'PENILAIAN (Q4)'!M26","v":0},{"$f":"'PENILAIAN (Q4)'!H26","v":"Pilihan Tahap Keterukan"},{"$f":"'PENILAIAN (Q4)'!J26","v":0},0,{"$f":"VLOOKUP(P69,DROPLIST!AB:AC,2,FALSE)","v":"-"},{"$f":"PENYATAAN!N26","v":0},{"$f":"'PENILAIAN (Q4)'!O26","v":"Pilihan Kawalan"},"-",{"$f":"'PENILAIAN (Q4)'!Q26","v":0}]
[{"$f":"PENYATAAN!A27","v":19},{"$f":"'QMS OPRISK'!F7","v":"Perkhidmatan"},{"$f":"'QMS OPRISK'!F9","v":"Putra Science Park"},{"$f":"'QMS OPRISK'!F11","v":"Shahriman bin Hashim"},{"$f":"'QMS OPRISK'!F13","v":2019},{"$f":"PENYATAAN!B27","v":"Peserta Program Innohub menarik diri setelah program berjalan menyebabkan perancangan jadual perbatuan projek tidak dapat dilaksanakan"},{"$f":"PENYATAAN!C27","v":"Dalaman"},{"$f":"PENYATAAN!D27","v":"Penyelidikan & Inovasi"},{"$f":"PENYATAAN!E27","v":"Pelaksanaan projek tergendala dan teknologi tidak dapat dikomersilkan."},{"$f":"PENYATAAN!F27","v":"Pelan penggantian Peserta baharu / projek ditamatkan"},{"$f":"'PENILAIAN (Q4)'!R27","v":"3. Penilaian - Q4"},{"$f":"'PENILAIAN (Q4)'!K27","v":"Pilihan Tahap Kemungkinan"},{"$f":"'PENILAIAN (Q4)'!M27","v":0},{"$f":"'PENILAIAN (Q4)'!H27","v":"Pilihan Tahap Keterukan"},{"$f":"'PENILAIAN (Q4)'!J27","v":0},0,{"$f":"VLOOKUP(P70,DROPLIST!AB:AC,2,FALSE)","v":"-"},{"$f":"PENYATAAN!N27","v":0},{"$f":"'PENILAIAN (Q4)'!O27","v":"Pilihan Kawalan"},"-",{"$f":"'PENILAIAN (Q4)'!Q27","v":0}]
[{"$f":"PENYATAAN!A28","v":20},{"$f":"'QMS OPRISK'!$F$7","v":"Perkhidmatan"},{"$f":"'QMS OPRISK'!$F$9","v":"Putra Science Park"},{"$f":"'QMS OPRISK'!$F$11","v":"Shahriman bin Hashim"},{"$f":"'QMS OPRISK'!$F$13","v":2019},{"$f":"PENYATAAN!B28","v":"Tiada tambahan peruntukkan Dana RU InnoHub yang disalurkan menyebabkan Perkhidmatan Dana Innohub bagi membantu penyelidik mengkomersilkan produk kepada industri tidak dapat ditawarkan lagi"},{"$f":"PENYATAAN!C28","v":"Luaran"},{"$f":"PENYATAAN!D28","v":"Penyelidikan & Inovasi"},{"$f":"PENYATAAN!E28","v":"Program Innohub tidak dapat diteruskan"},{"$f":"PENYATAAN!F28","v":"Memberi latihan pitching kepada peserta  InnoHub untuk mendapatkan geran luar"},{"$f":"'PENILAIAN (Q4)'!R28","v":"3. Penilaian - Q4"},{"$f":"'PENILAIAN (Q4)'!K28","v":"Pilihan Tahap Kemungkinan"},{"$f":"'PENILAIAN (Q4)'!M28","v":0},{"$f":"'PENILAIAN (Q4)'!H28","v":"Pilihan Tahap Keterukan"},{"$f":"'PENILAIAN (Q4)'!J28","v":0},{"$f":"M71*O71","v":0},{"$f":"VLOOKUP(P71,DROPLIST!AB:AC,2,FALSE)","v":"-"},{"$f":"PENYATAAN!N28","v":0},{"$f":"'PENILAIAN (Q4)'!O28","v":"Pilihan Kawalan"},"-",{"$f":"'PENILAIAN (Q4)'!Q28","v":0}]
[{"$f":"PENYATAAN!A29","v":21},{"$f":"'QMS OPRISK'!$F$7","v":"Perkhidmatan"},{"$f":"'QMS OPRISK'!$F$9","v":"Putra Science Park"},{"$f":"'QMS OPRISK'!$F$11","v":"Shahriman bin Hashim"},{"$f":"'QMS OPRISK'!$F$13","v":2019},{"$f":"PENYATAAN!B29","v":"Kesukaran membuang dawai lama dan staf berisiko mengalami kecederaan semasa membuang dawai lama bagi memasang bunting aktiviti promosi pada tiang lampu setiap kali program dijalankan menyebabkan kecederaan kepada staf yang memasang bunting "},{"$f":"PENYATAAN!C29","v":"Dalaman"},{"$f":"PENYATAAN!D29","v":"Penyelidikan & Inovasi"},{"$f":"PENYATAAN!E29","v":"Menjejaskan keselamatan dan kebajikan pekerja"},{"$f":"PENYATAAN!F29","v":"Melaksanakan projek dibawah pemantauan KIK dengan membangunkan inovasi baharu bagi memudahkan kerja pemasangan bunting menggantikan penggunaan tangga di bawah program KIK PSP/TNCPI"},{"$f":"'PENILAIAN (Q4)'!R29","v":"3. Penilaian - Q4"},{"$f":"'PENILAIAN (Q4)'!K29","v":"Pilihan Tahap Kemungkinan"},{"$f":"'PENILAIAN (Q4)'!M29","v":0},{"$f":"'PENILAIAN (Q4)'!H29","v":"Pilihan Tahap Keterukan"},{"$f":"'PENILAIAN (Q4)'!J29","v":0},0,{"$f":"VLOOKUP(P72,DROPLIST!AB:AC,2,FALSE)","v":"-"},{"$f":"PENYATAAN!N29","v":"Tempoh pelaksanaan : 5 September 2019\n\n1 - Menjalankan program dan kempen kesedaran bagi membuang dawai lama/serpihan banting pada tiang lampu di sekitar UPM dengan kerjasama COSCOMM\n2. Membuat kajian terhadap kaedah dan alatan sedia ada di PBT\n3-Membangunkan inovasi bagi membantu memudahkan kerja pembuangan dawai"},{"$f":"'PENILAIAN (Q4)'!O29","v":"Pilihan Kawalan"},"-",{"$f":"'PENILAIAN (Q4)'!Q29","v":0}]
[{"$f":"PENYATAAN!A30","v":22},{"$f":"'QMS OPRISK'!$F$7","v":"Perkhidmatan"},{"$f":"'QMS OPRISK'!$F$9","v":"Putra Science Park"},{"$f":"'QMS OPRISK'!$F$11","v":"Shahriman bin Hashim"},{"$f":"'QMS OPRISK'!$F$13","v":2019},{"$f":"PENYATAAN!B30","v":0},{"$f":"PENYATAAN!C30","v":"Pilihan Klasifikasi Isu"},{"$f":"PENYATAAN!D30","v":"Pilihan Kategori Isu"},{"$f":"PENYATAAN!E30","v":0},{"$f":"PENYATAAN!F30","v":0},{"$f":"'PENILAIAN (Q4)'!R30","v":"3. Penilaian - Q4"},{"$f":"'PENILAIAN (Q4)'!K30","v":"Pilihan Tahap Kemungkinan"},{"$f":"'PENILAIAN (Q4)'!M30","v":0},{"$f":"'PENILAIAN (Q4)'!H30","v":"Pilihan Tahap Keterukan"},{"$f":"'PENILAIAN (Q4)'!J30","v":0},0,{"$f":"VLOOKUP(P73,DROPLIST!AB:AC,2,FALSE)","v":"-"},{"$f":"PENYATAAN!N30","v":0},{"$f":"'PENILAIAN (Q4)'!O30","v":"Pilihan Kawalan"},"-",{"$f":"'PENILAIAN (Q4)'!Q30","v":0}]
[{"$f":"PENYATAAN!A31","v":23},{"$f":"'QMS OPRISK'!$F$7","v":"Perkhidmatan"},{"$f":"'QMS OPRISK'!$F$9","v":"Putra Science Park"},{"$f":"'QMS OPRISK'!$F$11","v":"Shahriman bin Hashim"},{"$f":"'QMS OPRISK'!$F$13","v":2019},{"$f":"PENYATAAN!B31","v":0},{"$f":"PENYATAAN!C31","v":"Pilihan Klasifikasi Isu"},{"$f":"PENYATAAN!D31","v":"Pilihan Kategori Isu"},{"$f":"PENYATAAN!E31","v":0},{"$f":"PENYATAAN!F31","v":0},{"$f":"'PENILAIAN (Q4)'!R31","v":"3. Penilaian - Q4"},{"$f":"'PENILAIAN (Q4)'!K31","v":"Pilihan Tahap Kemungkinan"},{"$f":"'PENILAIAN (Q4)'!M31","v":0},{"$f":"'PENILAIAN (Q4)'!H31","v":"Pilihan Tahap Keterukan"},{"$f":"'PENILAIAN (Q4)'!J31","v":0},0,{"$f":"VLOOKUP(P74,DROPLIST!AB:AC,2,FALSE)","v":"-"},{"$f":"PENYATAAN!N31","v":0},{"$f":"'PENILAIAN (Q4)'!O31","v":"Pilihan Kawalan"},"-",{"$f":"'PENILAIAN (Q4)'!Q31","v":0}]
[{"$f":"PENYATAAN!A32","v":24},{"$f":"'QMS OPRISK'!$F$7","v":"Perkhidmatan"},{"$f":"'QMS OPRISK'!$F$9","v":"Putra Science Park"},{"$f":"'QMS OPRISK'!$F$11","v":"Shahriman bin Hashim"},{"$f":"'QMS OPRISK'!$F$13","v":2019},{"$f":"PENYATAAN!B32","v":0},{"$f":"PENYATAAN!C32","v":"Pilihan Klasifikasi Isu"},{"$f":"PENYATAAN!D32","v":"Pilihan Kategori Isu"},{"$f":"PENYATAAN!E32","v":0},{"$f":"PENYATAAN!F32","v":0},{"$f":"'PENILAIAN (Q4)'!R32","v":"3. Penilaian - Q4"},{"$f":"'PENILAIAN (Q4)'!K32","v":"Pilihan Tahap Kemungkinan"},{"$f":"'PENILAIAN (Q4)'!M32","v":0},{"$f":"'PENILAIAN (Q4)'!H32","v":"Pilihan Tahap Keterukan"},{"$f":"'PENILAIAN (Q4)'!J32","v":0},0,{"$f":"VLOOKUP(P75,DROPLIST!AB:AC,2,FALSE)","v":"-"},{"$f":"PENYATAAN!N32","v":0},{"$f":"'PENILAIAN (Q4)'!O32","v":"Pilihan Kawalan"},"-",{"$f":"'PENILAIAN (Q4)'!Q32","v":0}]
[{"$f":"PENYATAAN!A33","v":25},{"$f":"'QMS OPRISK'!F7","v":"Perkhidmatan"},{"$f":"'QMS OPRISK'!F9","v":"Putra Science Park"},{"$f":"'QMS OPRISK'!F11","v":"Shahriman bin Hashim"},{"$f":"'QMS OPRISK'!F13","v":2019},{"$f":"PENYATAAN!B33","v":0},{"$f":"PENYATAAN!C33","v":"Pilihan Klasifikasi Isu"},{"$f":"PENYATAAN!D33","v":"Pilihan Kategori Isu"},{"$f":"PENYATAAN!E33","v":0},{"$f":"PENYATAAN!F33","v":0},{"$f":"'PENILAIAN (Q4)'!R33","v":"3. Penilaian - Q4"},{"$f":"'PENILAIAN (Q4)'!K33","v":"Pilihan Tahap Kemungkinan"},{"$f":"'PENILAIAN (Q4)'!M33","v":0},{"$f":"'PENILAIAN (Q4)'!H33","v":"Pilihan Tahap Keterukan"},{"$f":"'PENILAIAN (Q4)'!J33","v":0},0,{"$f":"VLOOKUP(P76,DROPLIST!AB:AC,2,FALSE)","v":"-"},{"$f":"PENYATAAN!N33","v":0},{"$f":"'PENILAIAN (Q4)'!O33","v":"Pilihan Kawalan"},"-",{"$f":"'PENILAIAN (Q4)'!Q33","v":0}]

{"sheet":"GRAF","index":7,"n_rows":53,"n_cols":12,"rows_kept":53,"cut":false,"hidden":false,"merged":[]}
[]
[{"$f":"DATA!G1","v":"Klasifikasi Isu"},"Penyataan",null,"Isu Dalaman","Isu Luaran"]
["Dalaman",{"$f":"COUNTIF(DATA!G2:G26,\"Dalaman\")","v":16},null,{"$f":"B3","v":16},{"$f":"B4","v":5}]
["Luaran",{"$f":"COUNTIF(DATA!G2:G26,\"Luaran\")","v":5}]
["Jumlah Isu",{"$f":"SUM(B3:B4)","v":21}]
[]
["Kategori Isu","Penyataan"]
["Akademik & Antarabangsa",{"$f":"COUNTIF(DATA!H2:H26,\"Akademik & Antarabangsa\")","v":0}]
["Hal Ehwal Pelajar",{"$f":"COUNTIF(DATA!H2:H26,\"Hal Ehwal Pelajar\")","v":0}]
["Penyelidikan & Inovasi",{"$f":"COUNTIF(DATA!H2:H26,\"Penyelidikan & Inovasi\")","v":21}]
["Perkhidmatan Perpustakaan & ICT",{"$f":"COUNTIF(DATA!H2:H26,\"Perkhidmatan Perpustakaan & ICT\")","v":0}]
["Jaringan Industri & Masyarakat",{"$f":"COUNTIF(DATA!H2:H26,\"Jaringan Industri & Masyarakat\")","v":0}]
["Pengurusan Kewangan & Aset",{"$f":"COUNTIF(DATA!H2:H26,\"Pengurusan Kewangan & Aset\")","v":0}]
["Pertanian",{"$f":"COUNTIF(DATA!H2:H26,\"Pertanian\")","v":0}]
["Sumber Manusia",{"$f":"COUNTIF(DATA!H2:H26,\"Sumber Manusia\")","v":0}]
["Jumlah Isu",{"$f":"SUM(B8:B15)","v":21}]
[]
["Isu dan Risiko","Rendah","Sederhana","Tinggi","Jumlah"]
["Penyataan",{"$f":"COUNTIF(DATA!Q2:Q26,\"Rendah\")","v":18},{"$f":"COUNTIF(DATA!Q2:Q26,\"Sederhana\")","v":2},{"$f":"COUNTIF(DATA!Q2:Q26,\"Tinggi\")","v":1},{"$f":"SUM(B19:D19)","v":21}]
["Penilaian Q2",{"$f":"COUNTIF(DATA!Q27:Q51,\"Rendah\")","v":18},{"$f":"COUNTIF(DATA!Q27:Q51,\"Sederhana\")","v":3},{"$f":"COUNTIF(DATA!Q27:Q51,\"Tinggi\")","v":0},{"$f":"SUM(B20:D20)","v":21}]
["Penilaian Q4",{"$f":"COUNTIF(DATA!Q52:Q76,\"Rendah\")","v":0},{"$f":"COUNTIF(DATA!Q52:Q76,\"Sederhana\")","v":0},{"$f":"COUNTIF(DATA!Q52:Q76,\"Tinggi\")","v":0},0]
[]
["Isu dan Risiko","Penyataan","Pen. Q2","Pen. Q4"]
["Rendah",{"$f":"COUNTIF(DATA!Q2:Q26,\"Rendah\")","v":18},{"$f":"COUNTIF(DATA!Q27:Q51,\"Rendah\")","v":18},{"$f":"COUNTIF(DATA!Q52:Q76,\"Rendah\")","v":0}]
["Sederhana",{"$f":"COUNTIF(DATA!Q2:Q26,\"Sederhana\")","v":2},{"$f":"COUNTIF(DATA!Q27:Q51,\"Sederhana\")","v":3},{"$f":"COUNTIF(DATA!Q52:Q76,\"Sederhana\")","v":0}]
["Tinggi",{"$f":"COUNTIF(DATA!Q2:Q26,\"Tinggi\")","v":1},{"$f":"COUNTIF(DATA!Q27:Q51,\"Tinggi\")","v":0},{"$f":"COUNTIF(DATA!Q52:Q76,\"Tinggi\")","v":0}]
["Jumlah Isu",{"$f":"SUM(B24:B26)","v":21},{"$f":"SUM(C24:C26)","v":21},0]
[]
[]
["Perkara","Bil. Isu","Rendah","Sederhana","Tinggi "]
["Sumber Manusia",{"$f":"B15","v":0}]
["Pertanian",{"$f":"B14","v":0}]
["Pengurusan Kewangan & Aset",{"$f":"B13","v":0},null,null,null,null,null,null,"Bil","Penyataan Isu","Penyataan Risiko","Kategori Isu"]
["Jaringan Industri & Masyarakat",{"$f":"B12","v":0},null,null,null,null,null,null,1,{"$f":"PENYATAAN!B9","v":"Pengurangan jumlah permohonan menyebabkan bilangan pemfailan  harta intelek  dalam dan luar negara  terjejas         "},{"$f":"PENYATAAN!E9","v":"i. Menjejaskan KPI Penyelidikan dan Inovasi (Pemfailan harta intelek)"},{"$f":"DATA!H2","v":"Penyelidikan & Inovasi"}]
["Perkhidmatan Perpustakaan & ICT",{"$f":"B11","v":0},null,null,null,null,null,null,2,{"$f":"PENYATAAN!B10","v":"Kekangan peruntukan bagi perlindungan harta intelek menyebab universiti menanggung kos perlindungan harta intelek luar negara yang tinggi "},{"$f":"PENYATAAN!E10","v":"i. Menjejaskan KPI Penyelidikan dan Inovasi (Pemfailan harta intelek)"},{"$f":"DATA!H3","v":"Penyelidikan & Inovasi"}]
["Penyelidikan & Inovasi",{"$f":"B10","v":21},null,null,null,null,null,null,3,{"$f":"PENYATAAN!B11","v":"Pengiktirafan UPM sebagai organisasi pengurusan harta intelek terbaik negara meningkatkan peluang perniagaan baharu Putra Dynamic kerana menjadi pakar rujuk "},{"$f":"PENYATAAN!E11","v":"Meningkatkan bilangan peserta luar yang menyertai latihan "},{"$f":"DATA!H4","v":"Penyelidikan & Inovasi"}]
["Hal Ehwal Pelajar",{"$f":"B9","v":0},null,null,null,null,null,null,4,{"$f":"PENYATAAN!B12","v":"Pembayaran balik dana Mikrokredit tidak dilunaskan oleh peserta menyebabkan kurang dana untuk ditawarkan kepada peserta yang baharu"},{"$f":"PENYATAAN!E12","v":"Usahawan pelajar baharu tidak dapat dilahirkan "},{"$f":"DATA!H5","v":"Penyelidikan & Inovasi"}]
["Akademik & Antarabangsa",{"$f":"B8","v":0},null,null,null,null,null,null,5,{"$f":"PENYATAAN!B13","v":"Kurang penyertaan permohonan dana program Mikrokredit menyebabkan dana tidak dapat dimanfaatkan"},{"$f":"PENYATAAN!E13","v":"Usahawan pelajar baharu tidak dapat dilahirkan "},{"$f":"DATA!H6","v":"Penyelidikan & Inovasi"}]
[null,null,null,null,null,null,null,null,6,{"$f":"PENYATAAN!B14","v":"Peruntukan bagi aktiviti promosi dan pemasaran inovasi yang berkurangan setiap tahun -Pemotongan peruntukan daripada kerajaan  (-30% bagi tahun 2017) menyebabkan aktiviti promosi berkurangan bagi mendapatkan industri yang berpotensi menjalankan kerjasama dengan UPM "},{"$f":"PENYATAAN!E14","v":"i. Menjejaskan KPI Promosi dan Pemasaran Inovasi PSP - Bilangan industri"},{"$f":"DATA!H7","v":"Penyelidikan & Inovasi"}]
[null,null,null,null,null,null,null,null,7,{"$f":"PENYATAAN!B15","v":"Kesukaran memasang bunting promosi dan staf berisiko mengalami kecederaan semasa memasang bunting aktiviti promosi pada tiang lampu setiap kali program dijalankan menyebabkan kecederaan kepada staf yang memasang bunting "},{"$f":"PENYATAAN!E15","v":"Menjejaskan keselamatan dan kebajikan pekerja"},{"$f":"DATA!H8","v":"Penyelidikan & Inovasi"}]
[null,null,null,null,null,null,null,null,8,{"$f":"PENYATAAN!B16","v":"Kesalahan penterjemahan kenyataan media bagi hebahan promosi hasil penyelidikan oleh wartawan\n - Wartawan salah faham/kurang faham penjelasan teknikal daripada penyelidik semasa sidang media "},{"$f":"PENYATAAN!E16","v":"Menjejaskan reputasi dan memberi maklumat yang salah kepada orang awam /pembaca"},{"$f":"DATA!H9","v":"Penyelidikan & Inovasi"}]
[null,null,null,null,null,null,null,null,9,{"$f":"PENYATAAN!B17","v":"Permohonan Suai Padan Teknologi (SPT) yang sukar mendapat maklumbalas PTJ/lain, tidak dibuat susulan selanjutnya selepas promosi tamat menyebabkan peluang kerjasama dengan industri tidak dapat diteruskan"},{"$f":"PENYATAAN!E17","v":"Menjejaskan KPI Penyelidikan dan inovasi  (TKHL)"},{"$f":"DATA!H10","v":"Penyelidikan & Inovasi"}]
[null,null,null,null,null,null,null,null,10,{"$f":"PENYATAAN!B18","v":"Kurang penyertaan permohonan dana promosi produk daripada penyelidik  menyebabkan kurang bilangan projek diluluskan"},{"$f":"PENYATAAN!E18","v":"Tidak mencapai sasaran KPI Dana Promosi yang ditetapkan"},{"$f":"DATA!H11","v":"Penyelidikan & Inovasi"}]
[null,null,null,null,null,null,null,null,11,{"$f":"PENYATAAN!B19","v":"Kekurangan Staf Edu-Park bagi mengendalikan aktiviti yang disertai pelawat diseluruh lokasi Edupark UPM menyebabkan kerja tidak dilaksanakan dengan lancar"},{"$f":"PENYATAAN!E19","v":"Menjejaskan KPI penjanaan dana Edupark"},{"$f":"DATA!H12","v":"Penyelidikan & Inovasi"}]
[null,null,null,null,null,null,null,null,12,{"$f":"PENYATAAN!B20","v":"Kekurangan Peruntukan Kewangan bagi pengurusan Edu-Park menyebabkan penyelenggaraan /penggantian peralatan tidak dapat dijalankan dan pembelian bahan pameran dan modul tidak dapat dilakukan"},{"$f":"PENYATAAN!E20","v":"Menjejaskan KPI penjanaan dana Edupark"},{"$f":"DATA!H13","v":"Penyelidikan & Inovasi"}]
[null,null,null,null,null,null,null,null,13,{"$f":"PENYATAAN!B21","v":"Tahap keselamatan pelawat Edu-Park berisiko mengalami kecederaan semasa lawatan pelawat Edupark "},{"$f":"PENYATAAN!E21","v":"Menjejaskan reputasi Universiti"},{"$f":"DATA!H14","v":"Penyelidikan & Inovasi"}]
[null,null,null,null,null,null,null,null,14,{"$f":"PENYATAAN!B22","v":"kehadiran pelawat tidak mengikut ketetapan waktu yang telah dibuat oleh Edu-Park"},{"$f":"PENYATAAN!E22","v":"Mengganggu perjalanan waktu lawatan "},{"$f":"DATA!H15","v":"Penyelidikan & Inovasi"}]
[null,null,null,null,null,null,null,null,15,{"$f":"PENYATAAN!B23","v":"Sesi perundingan perniagaan (business negotiation) melibatkan pemindahan  teknologi yang dapat dilaksanakan dengan pihak industri adalah terhad kerana kekurangan perunding perniagaan(business negotiator) yang bertauliah dalam bidang pemindahan teknologi yang diiktiraf oleh universiti"},{"$f":"PENYATAAN!E23","v":"i. Menjejaskan KPI Penyelidikan dan Inovasi (TKHL )"},{"$f":"DATA!H16","v":"Penyelidikan & Inovasi"}]
[null,null,null,null,null,null,null,null,16,{"$f":"PENYATAAN!B24","v":"Kekurangan peruntukan kewangan pengurusan dan promosi Putra Dynamics menyebabkan Promosi Putra Dynamics tidak dapat dilakukan secara agresif  "},{"$f":"PENYATAAN!E24","v":"Menjejaskan KPI bilangan peserta yang menyertai latihan "},{"$f":"DATA!H17","v":"Penyelidikan & Inovasi"}]
[null,null,null,null,null,null,null,null,17,{"$f":"PENYATAAN!B25","v":"Kesukaran untuk mendapatkan pelanggan untuk menyertai latihan yang ditawarkan Putra Dynamics menyebabkan kurang penjanaan pendapatan"},{"$f":"PENYATAAN!E25","v":"Menjejaskan KPI bilangan peserta yang menyertai latihan "},{"$f":"DATA!H18","v":"Penyelidikan & Inovasi"}]
[null,null,null,null,null,null,null,null,18,{"$f":"PENYATAAN!B26","v":"Nilai matawang negara (RM) berubah menyebabkan kos latihan  Putra Dynamic meningkatkan"},{"$f":"PENYATAAN!E26","v":"Menjejaskan KPI bilangan peserta yang menyertai latihan "},{"$f":"DATA!H19","v":"Penyelidikan & Inovasi"}]
[null,null,null,null,null,null,null,null,19,{"$f":"PENYATAAN!B27","v":"Peserta Program Innohub menarik diri setelah program berjalan menyebabkan perancangan jadual perbatuan projek tidak dapat dilaksanakan"},{"$f":"PENYATAAN!E27","v":"Pelaksanaan projek tergendala dan teknologi tidak dapat dikomersilkan."},{"$f":"DATA!H20","v":"Penyelidikan & Inovasi"}]
[null,null,null,null,null,null,null,null,20,{"$f":"PENYATAAN!B33","v":0},{"$f":"PENYATAAN!E33","v":0},{"$f":"DATA!H26","v":"Pilihan Kategori Isu"}]

{"sheet":"PIVOT","index":8,"n_rows":52,"n_cols":13,"rows_kept":52,"cut":false,"hidden":false,"merged":[]}
[]
[]
["Row Labels","Count of Penyataan Isu"]
["Dalaman",16]
["Luaran",5]
["Pilihan Klasifikasi Isu",4]
["Grand Total",25]
[]
[]
["Row Labels","Count of Penyataan Isu"]
["Rendah",18]
["Sederhana",3]
["-",4]
["Grand Total",25]
[]
[]
["Row Labels","Count of Penyataan Isu","Sum of XS","Sum of YS","XS","YS","RUXS","RUYS","RU XSYS"]
["2. Penilaian - Q2",25,31,37,{"$f":"(C18/F19)","v":1.4761904761904763},{"$f":"(D18/F19)","v":1.7619047619047619},{"$f":"ROUNDUP(E18,0)","v":2},{"$f":"ROUNDUP(F18,0)","v":2},{"$f":"G18*H18","v":4},{"$f":"IF(I18<=4.9,\"Rendah\",IF(I18<=14.9,\"Sederhana\",IF(FI18<=25,\"Tinggi\")))","v":"Rendah"},null,null,{"$f":"I18","v":4}]
["Grand Total",25,31,37,{"$f":"COUNTIF(DATA!F2:F26,0)","v":4},{"$f":"B18-E19","v":21}]
[null,null,null,null,"Tahap Risiko :"]
[null,null,null,null,{"$f":"E20&\" \"&A18","v":"Tahap Risiko : 2. Penilaian - Q2"},null,null,null,null,null,null,null,{"$f":"J18","v":"Rendah"}]
[]
["Count of Penyataan Isu","Column Labels"]
["Row Labels","Rendah","Sederhana","-","Grand Total"]
["Penyelidikan & Inovasi",18,3,null,21]
["Pilihan Kategori Isu",null,null,4,4]
["Grand Total",18,3,4,25]
[]
[]
[]
[]
[]
[]
["Kategori Isu","(All)"]
[]
["Row Labels","Sum of XSYS"]
["Kesukaran membuang dawai lama dan staf berisiko mengalami kecederaan semasa membuang dawai lama bagi memasang bunting aktiviti promosi pada tiang lampu setiap kali program dijalankan menyebabkan kecederaan kepada staf yang memasang bunting ",9,null,{"$f":"A18","v":"2. Penilaian - Q2"}]
["Sesi perundingan perniagaan (business negotiation) melibatkan pemindahan  teknologi yang dapat dilaksanakan dengan pihak industri adalah terhad kerana kekurangan perunding perniagaan(business negotiator) yang bertauliah dalam bidang pemindahan teknologi yang diiktiraf oleh universiti",6,null,{"$f":"D37","v":"2. Penilaian - Q2"}]
["Permohonan Suai Padan Teknologi (SPT) yang sukar mendapat maklumbalas PTJ/lain, tidak dibuat susulan selanjutnya selepas promosi tamat menyebabkan peluang kerjasama dengan industri tidak dapat diteruskan",6,null,{"$f":"D38","v":"2. Penilaian - Q2"}]
["Pengiktirafan UPM sebagai organisasi pengurusan harta intelek terbaik negara meningkatkan peluang perniagaan baharu Putra Dynamic kerana menjadi pakar rujuk ",4,null,{"$f":"D39","v":"2. Penilaian - Q2"}]
["Peserta Program Innohub menarik diri setelah program berjalan menyebabkan perancangan jadual perbatuan projek tidak dapat dilaksanakan",4,null,{"$f":"D40","v":"2. Penilaian - Q2"}]
["Pengurangan jumlah permohonan menyebabkan bilangan pemfailan  harta intelek  dalam dan luar negara  terjejas         ",4]
["Kekangan peruntukan bagi perlindungan harta intelek menyebab universiti menanggung kos perlindungan harta intelek luar negara yang tinggi ",4]
["Grand Total",37]
[]
[]
[null,null,null,null,null,null,null,"Bil","Penyataan Isu","Penyataan Risiko","Kategori Isu","Skor Risiko"]
[null,null,null,null,null,null,null,1,{"$f":"A37","v":"Kesukaran membuang dawai lama dan staf berisiko mengalami kecederaan semasa membuang dawai lama bagi memasang bunting aktiviti promosi pada tiang lampu setiap kali program dijalankan menyebabkan kecederaan kepada staf yang memasang bunting "},{"$f":"VLOOKUP(I48,GRAF!J:K,2,FALSE)","v":{"$error":"#N/A"}},{"$f":"VLOOKUP(I48,GRAF!J:L,3,FALSE)","v":{"$error":"#N/A"}},{"$f":"B37","v":9}]
[null,null,null,null,null,null,null,2,{"$f":"A38","v":"Sesi perundingan perniagaan (business negotiation) melibatkan pemindahan  teknologi yang dapat dilaksanakan dengan pihak industri adalah terhad kerana kekurangan perunding perniagaan(business negotiator) yang bertauliah dalam bidang pemindahan teknologi yang diiktiraf oleh universiti"},{"$f":"VLOOKUP(I49,GRAF!J:K,2,FALSE)","v":{"$error":"#VALUE!"}},{"$f":"VLOOKUP(I49,GRAF!J:L,3,FALSE)","v":{"$error":"#VALUE!"}},{"$f":"B38","v":6}]
[null,null,null,null,null,null,null,3,{"$f":"A39","v":"Permohonan Suai Padan Teknologi (SPT) yang sukar mendapat maklumbalas PTJ/lain, tidak dibuat susulan selanjutnya selepas promosi tamat menyebabkan peluang kerjasama dengan industri tidak dapat diteruskan"},{"$f":"VLOOKUP(I50,GRAF!J:K,2,FALSE)","v":"Menjejaskan KPI Penyelidikan dan inovasi  (TKHL)"},{"$f":"VLOOKUP(I50,GRAF!J:L,3,FALSE)","v":"Penyelidikan & Inovasi"},6]
[null,null,null,null,null,null,null,4,{"$f":"A40","v":"Pengiktirafan UPM sebagai organisasi pengurusan harta intelek terbaik negara meningkatkan peluang perniagaan baharu Putra Dynamic kerana menjadi pakar rujuk "},{"$f":"VLOOKUP(I51,GRAF!J:K,2,FALSE)","v":"Meningkatkan bilangan peserta luar yang menyertai latihan "},{"$f":"VLOOKUP(I51,GRAF!J:L,3,FALSE)","v":"Penyelidikan & Inovasi"},4]
[null,null,null,null,null,null,null,5,{"$f":"A41","v":"Peserta Program Innohub menarik diri setelah program berjalan menyebabkan perancangan jadual perbatuan projek tidak dapat dilaksanakan"},{"$f":"VLOOKUP(I52,GRAF!J:K,2,FALSE)","v":"Pelaksanaan projek tergendala dan teknologi tidak dapat dikomersilkan."},{"$f":"VLOOKUP(I52,GRAF!J:L,3,FALSE)","v":"Penyelidikan & Inovasi"},4]

{"sheet":"Sheet4","index":9,"n_rows":66,"n_cols":16,"rows_kept":66,"cut":false,"hidden":false,"merged":[]}
[]
[]
["Row Labels","Count of Penyataan Isu",null,null,{"$f":"A4","v":"Dalaman"},{"$f":"A5","v":"Luaran"}]
["Dalaman",42,{"$f":"GETPIVOTDATA(\"Penyataan Isu\",$A$3,\"Klasifikasi Isu\",\"Dalaman\")","v":42},null,{"$f":"C4","v":42},{"$f":"C5","v":18}]
["Luaran",18,{"$f":"GETPIVOTDATA(\"Penyataan Isu\",$A$3,\"Klasifikasi Isu\",\"Luaran\")","v":18}]
["Grand Total",60]
[null,null,{"$f":"SUM(C4:C6)","v":60}]
[]
[]
[]
[]
[]
["Sum of XSYS"]
[477,null,{"$f":"B14","v":0},{"$f":"C7","v":60},{"$f":"D14*25","v":1500},{"$f":"(C14/E14)*25","v":0},{"$f":"IF(F14<=4.9,\"Rendah\",IF(F14<=14.9,\"Sederhana\",IF(F14<=25,\"Tinggi\")))","v":"Rendah"}]
[]
[null,null,null,null,null,null,null,null,null,null,null,null,null,"Label"]
[null,null,null,null,null,null,null,"Penarafan",null,null,null,null,null,"Rendah",1,{"$f":"PIVOT!I18","v":4}]
[null,null,null,null,null,null,null,"Rendah",1,null,null,2,null,"Rendah",1,1]
[null,null,null,null,null,null,null,"Sederhana",1,null,null,0.1,null,"Rendah",1,{"$f":"SUM(O17:O42)-P17-P18","v":45}]
[null,null,null,null,null,null,null,"Sederhana",1,null,null,{"$f":"SUM(I18:I22)-L18-L19","v":5.9},null,"Rendah",1]
[null,null,null,null,null,null,null,"Tinggi",1,null,null,null,null,"Rendah",1]
[null,null,null,null,null,null,null,null,{"$f":"SUM(I17:I21)","v":4},null,null,null,null,"Sederhana",1]
[null,null,null,null,null,null,null,null,null,null,null,null,null,"Sederhana",1]
[null,null,null,null,null,null,null,null,null,0,null,null,null,"Sederhana",1]
[null,null,null,null,null,null,null,null,null,null,null,null,null,"Sederhana",1]
[null,null,null,null,null,null,null,null,null,null,null,null,null,"Sederhana",1]
["Row Labels","Count of XSYS",null,null,null,null,null,"Perkara","Bil. Isu","Rendah","Sederhana","Tinggi ",null,"Sederhana",1]
["Akademik & Antarabangsa",9,{"$f":"B28","v":9},null,null,null,null,"Akademik & Antarabangsa",{"$f":"COUNTIF(PENYATAAN!D9:D33,\"Akademik & Antarabangsa\")","v":0},{"$f":"VLOOKUP(H28,H58:I65,2,FALSE)","v":4},{"$f":"VLOOKUP(H28,H58:J65,3,FALSE)","v":1},{"$f":"VLOOKUP(H28,H58:K65,4,FALSE)","v":9},null,"Sederhana",1]
["Hal Ehwal Pelajar",6,{"$f":"B29","v":6},null,null,null,null,"Hal Ehwal Pelajar",{"$f":"COUNTIF(PENYATAAN!D9:D33,\"Hal Ehwal Pelajar\")","v":0},4,1,6,null,"Sederhana",1]
["Penyelidikan & Inovasi",9,9,null,null,null,null,"Jaringan Industri & Masyarakat",{"$f":"COUNTIF(PENYATAAN!D9:D33,\"Jaringan Industri & Masyarakat\")","v":0},2,0,3,null,"Sederhana",1]
["Sumber Manusia",3,3,null,null,null,null,"Pengurusan Kewangan",{"$f":"COUNTIF(PENYATAAN!D9:D33,\"Pengurusan Kewangan\")","v":0},{"$error":"#N/A"},{"$error":"#N/A"},{"$error":"#N/A"},null,"Tinggi",1]
["Perkhidmatan Perpustakaan & ICT",9,9,null,null,null,null,"Penyelidikan & Inovasi",{"$f":"COUNTIF(PENYATAAN!D9:D33,\"Penyelidikan & Inovasi\")","v":21},{"$error":"#N/A"},{"$error":"#N/A"},{"$error":"#N/A"},null,"Tinggi",1]
["Jaringan Industri & Masyarakat",3,3,null,null,null,null,"Perkhidmatan Perpustakaan & ICT",{"$f":"COUNTIF(PENYATAAN!D9:D33,\"Perkhidmatan Perpustakaan & ICT\")","v":0},{"$error":"#N/A"},{"$error":"#N/A"},{"$error":"#N/A"},null,"Tinggi",1]
["Pengurusan Kewangan & Aset",18,18,null,null,null,null,"Sumber Manusia",{"$f":"COUNTIF(PENYATAAN!D9:D33,\"Sumber Manusia\")","v":0},{"$error":"#N/A"},{"$error":"#N/A"},{"$error":"#N/A"},null,"Tinggi",1]
["Pertanian",3,3,null,null,null,null,"Pertanian",{"$f":"COUNTIF(PENYATAAN!D9:D33,\"Pilihan Kategori Isu\")","v":4},{"$f":"VLOOKUP(H35,H65:I72,2,FALSE)","v":1},{"$f":"VLOOKUP(H35,H65:J72,3,FALSE)","v":1},{"$f":"VLOOKUP(H35,H65:K72,4,FALSE)","v":3},null,"Tinggi",1]
["Grand Total",60,null,null,null,null,null,null,null,null,null,null,null,"Tinggi",1]
[null,null,null,null,null,null,null,null,null,null,null,null,null,"Tinggi",1]
[null,null,null,null,null,null,null,"Perkara","Bil. Isu","Rendah","Sederhana","Tinggi ",null,"Tinggi",1]
[null,null,null,null,null,null,null,"Akademik & Antarabangsa",{"$f":"I28","v":0},4,1,9,null,"Tinggi",1]
[null,null,null,null,null,null,null,"Hal Ehwal Pelajar",0,4,1,6,null,"Tinggi",1]
[null,null,null,null,null,null,null,"Jaringan Industri & Masyarakat",{"$f":"I30","v":0},{"$f":"IF(I41=0,0)","v":0},{"$f":"IF(I41=0,0)","v":0},{"$f":"IF(I41=0,0)","v":0},null,"Tinggi",1]
[null,null,null,null,null,null,null,"Pengurusan Kewangan & Aset",{"$f":"I31","v":0},{"$f":"IF(I42=0,0)","v":0},{"$f":"IF(I42=0,0)","v":0},{"$f":"IF(I42=0,0)","v":0},null,null,25]
[null,null,null,null,null,null,null,"Penyelidikan & Inovasi",{"$f":"I32","v":21},false,false,false]
["Row Labels","Count of Penyataan Isu",null,null,null,null,null,"Perkhidmatan Perpustakaan & ICT",{"$f":"I33","v":0},0,0,0]
["Rendah",25,null,null,null,null,null,"Sumber Manusia",{"$f":"I34","v":0},0,0,0]
["Sederhana",21,null,null,{"$f":"A46","v":"Sederhana"},{"$f":"B46","v":21},null,"Pertanian",0,{"$f":"IF(I46=0,0)","v":0},{"$f":"IF(I46=0,0)","v":0},{"$f":"IF(I46=0,0)","v":0}]
["Tinggi",14,null,null,{"$f":"A47","v":"Tinggi"},{"$f":"B47","v":14}]
["Grand Total",60,null,null,"Grand Total",60]
[null,null,null,null,0,0,null,"Rendah",{"$f":"VLOOKUP(H49,E46:F49,2,FALSE)","v":{"$error":"#N/A"}},"Rendah",{"$f":"SUMIF(I49,\">0\")","v":0}]
[null,null,null,null,null,null,null,"Sederhana",{"$f":"VLOOKUP(H50,E46:F49,2,FALSE)","v":21},"Sederhana",{"$f":"SUMIF(I50,\">0\")","v":21}]
[null,null,null,null,null,null,null,"Tinggi",{"$f":"VLOOKUP(H51,E46:F49,2,FALSE)","v":14},"Tinggi",14]
[]
[]
[null,null,null,null,null,null,null,null,null,{"$error":"#N/A"}]
[]
["Count of Penyataan Isu","Column Labels"]
["Row Labels","Rendah","Sederhana","Tinggi","Grand Total",null,null,null,"R","S","T"]
["Akademik & Antarabangsa",4,4,1,9,null,null,{"$f":"A58","v":"Akademik & Antarabangsa"},{"$f":"C58","v":4},{"$f":"D58","v":1},{"$f":"E58","v":9}]
["Hal Ehwal Pelajar",1,4,1,6,null,null,{"$f":"A59","v":"Hal Ehwal Pelajar"},{"$f":"C59","v":4},{"$f":"D59","v":1},{"$f":"E59","v":6}]
["Jaringan Industri & Masyarakat",1,2,null,3,null,null,"Jaringan Industri & Masyarakat",2,0,3]
["Penyelidikan & Inovasi",3,1,5,9,null,null,"Penyelidikan & Inovasi",1,5,9]
["Perkhidmatan Perpustakaan & ICT",6,3,null,9,null,null,"Perkhidmatan Perpustakaan & ICT",3,0,9]
["Sumber Manusia",1,1,1,3,null,null,"Sumber Manusia",1,1,3]
["Pengurusan Kewangan & Aset",8,5,5,18,null,null,"Pengurusan Kewangan & Aset",5,5,18]
["Pertanian",1,1,1,3,null,null,"Pertanian",1,1,3]
["Grand Total",25,21,14,60]

{"sheet":"DROPLIST","index":10,"n_rows":83,"n_cols":29,"rows_kept":83,"cut":false,"hidden":false,"merged":[]}
["Kategori PTJ",null,"Kategori","Nama PTJ",null,"Fakulti ","Sekolah","Akademi","Institut","Pusat","Pejabat","Bahagian","Kolej","Perkhidmatan",null,"Keterukan","Penerangan Keterukan","Skor",null,"Kemungkinan","Penerangan Keterukan","Skor",null,"Kaedah Kawalan","Penerangan",null,null,1,"Rendah"]
["Pilihan Kategori PTJ",null,"Sila Pilih","Pilihan PTJ",null,"Fakulti Bahasa Moden dan Komunikasi","Sekolah Pengajian Siswazah (SPS)","Akademi Sukan","Institut Biosains","Pusat Alumni","Pejabat Bursar","Bahagian Hal Ehwal Pelajar","Kolej Mohamad Rashid","Penerbit UPM",null,"Pilihan Tahap Keterukan","-",0,null,"Pilihan Tahap Kemungkinan","-",0,null,"Pilihan Kawalan","-",null,null,2,"Rendah"]
["Fakulti",null,"Fakulti ","Fakulti Bahasa Moden dan Komunikasi",null,"Fakulti Bioteknologi dan Sains Biomolekul",null,null,"Institut Kajian perladangan","Pusat Antarabangsa","Pejabat Pembangunan dan Pengurusan Aset","Bahagian Kaunseling ","Kolej Kedua","Perpustakaan Sultan Abdul Samad",null,"Tidak Ketara","Impak yang boleh diabaikan",1,null,"Tidak Dapat Dijangka","Boleh dikatakan mustahil dan tidak pernah berlaku",1,null,"Tolak Ansur (Tolerate)","Risiko yang boleh diterima oleh Pusat Tanggungjawab (PTJ) tanpa sebarang kerugian. Risiko ini boleh dikawal secara efisien menggunakan sistem kawalan sedia ada",null,null,3,"Rendah"]
["Sekolah",null,"Fakulti ","Fakulti Bioteknologi dan Sains Biomolekul",null,"Fakulti Ekologi Manusia",null,null,"Institut Kajian Dasar Pertanian dan Makanan","Pusat Asasi Sains Pertanian","Pejabat Penasihat Undang-undang","Bahagian Kemasukan & Tadbir Urus Akademik ","Kolej Ketiga","Putra Science Park",null,"Kecil","Impak yang boleh dikendalikan di peringkat Bahagian/Jabatan/Unit di PTJ",2,null,"Jarang Sekali","Belum diketahui berlaku selepas beberapa tahun",2,null,"Rawat \n(Treat)","Risiko yang boleh dirawat oleh PTJ dengan menggunakan sumber sedia ada. Kombinasi hierarki kawalan adalah sesuai diamalkan bagi memastikan kadar risiko adalah sentiasa terkawal",null,null,4,"Rendah"]
["Akademi",null,"Fakulti ","Fakulti Ekologi Manusia",null,"Fakulti Ekonomi dan Pengurusan",null,null,"Institut Pengajian Sains Sosial","Pusat Hubungan dan Jaringan Industri CIRNET","Pejabat Pendaftar","Bahagian Keselamatan Universiti","Kolej Canselor","Taman Pertanian Universiti",null,"Sederhana","Impak yang boleh dikendalikan secara normal oleh Pengurusan PTJ",3,null,"Dapat Dijangka","Mungkin berlaku pada masa akan datang",3,null,"Pindah (Transfer)","Risiko yang boleh ditanggung oleh pihak lain selain PTJ sendiri atau risiko yang dikongsi PTJ bersama PTJ lain yang berkaitan. Pilihan ini adalah baik bagi mengawal risiko berkaitan sumber (antaranya: kewangan, aset, infrastruktur, ICT dan manusia)",null,null,5,"Sederhana"]
["Institut",null,"Fakulti ","Fakulti Ekonomi dan Pengurusan",null,"Fakulti Kejuruteraan",null,null,"Institut Penyelidikan Matematik","Pusat Islam","Bahagian Pentadbiran Pejabat Naib Canselor","Bahagian Audit Dalam","Kolej Kelima",null,null,"Tinggi","Impak yang menyebabkan Petunjuk Prestasi Utama (KPI)  UPM terjejas  teruk",4,null,"Mungkin","Mungkin boleh berlaku dan bukannya luar biasa",4,null,"Hapus (Terminate)","Risiko yang tidak boleh lagi ditanggung oleh PTJ secara berterusan hendaklah dihapuskan.  PTJ telah pun cuba menangani isu risiko ini dengan kaedah kawalan yang lain tetapi masih tidak berjaya",null,null,6,"Sederhana"]
["Pusat",null,"Fakulti ","Fakulti Kejuruteraan",null,"Fakulti Pengajian Alam Sekitar",null,null,"Institut Penyelidikan Penuaan Malaysia","Pusat Kebudayaan dan Kesenian SSAAS","Pejabat Pengurusan Keselamatan dan Kesihatan Pekerjaan",null,"Kolej Keenam",null,null,"Melampau","Impak yang menyebabkan Petunjuk Prestasi Utama (KPI)  UPM terjejas sangat teruk",5,null,"Paling Mungkin","Hazard/insiden yang paling mungkin berlaku",5,null,"Belum Nilai","-",null,null,7,"Sederhana"]
["Pejabat",null,"Fakulti ","Fakulti Pengajian Alam Sekitar",null,"Fakulti Pengajian Pendidikan",null,null,"Institut Penyelidikan Produk Halal","Pusat Kesihatan Universiti","Pejabat Strategi Korporat dan Komunikasi",null,"Kolej KOSASS",null,null,null,null,null,null,null,null,null,null,null,null,null,null,8,"Sederhana"]
["Bahagian",null,"Fakulti ","Fakulti Pengajian Pendidikan",null,"Fakulti Perhutanan",null,null,"Institut Perhutanan Tropika dan Produk Hutan","Pusat Kokurikulum dan Pembangunan Pelajar",null,null,"Kolej Tun Perak",null,null,null,null,null,null,null,null,null,null,null,null,null,null,9,"Sederhana"]
["Kolej",null,"Fakulti ","Fakulti Perhutanan",null,"Fakulti Pertanian",null,null,"Institut Pertanian Tropika dan Sekuriti Makanan","Pusat Pemajuan Kompetensi Bahasa",null,null,"Kolej Pendeta Za'ba",null,null,null,null,null,null,null,null,null,null,null,null,null,null,10,"Sederhana"]
["Perkhidmatan",null,"Fakulti ","Fakulti Pertanian",null,"Fakulti Perubatan dan Sains Kesihatan",null,null,"Institut Teknologi Maju","Pusat Pembangunan Akademik",null,null,"Kolej Sepuluh",null,null,null,null,null,null,null,null,null,null,null,null,null,null,11,"Sederhana"]
[null,null,"Fakulti ","Fakulti Perubatan dan Sains Kesihatan",null,"Fakulti Perubatan Veterinar (dan UVH)",null,null,"Institut Antarabangsa  Akuakultur  dan Sains Akuatik (i-Aquas)","Pusat Pembangunan Keusahawanan dan Kebolehpasaran Graduan",null,null,"Kolej Sebelas",null,null,null,null,null,null,null,null,null,null,null,null,null,null,12,"Sederhana"]
[null,null,"Fakulti ","Fakulti Perubatan Veterinar (dan UVH)",null,"Fakulti Rekabentuk dan  Senibina",null,null,null,"Pusat Pembangunan Maklumat dan Komunikasi (iDEC)",null,null,"Kolej Dua Belas",null,null,null,null,null,null,null,null,null,null,null,null,null,null,13,"Sederhana"]
["Klasifikasi Isu",null,"Fakulti ","Fakulti Rekabentuk dan  Senibina",null,"Fakulti Sains",null,null,null,"Pusat Pengimejan Diagnostik Nuklear (OUT)",null,null,"Kolej Tiga Belas",null,null,null,null,null,null,null,null,null,null,null,null,null,null,14,"Sederhana"]
["Pilihan Klasifikasi Isu",null,"Fakulti ","Fakulti Sains",null,"Fakulti Sains dan Teknologi Makanan",null,null,null,"Pusat Pengurusan Penyelidikan (RMC)",null,null,"Kolej Empat Belas",null,null,null,null,null,null,null,null,null,null,null,null,null,null,15,"Tinggi"]
["Dalaman",null,"Fakulti ","Fakulti Sains dan Teknologi Makanan",null,"Fakulti Sains Komputer dan Teknologi Maklumat",null,null,null,"Pusat Pengurusan Wakaf, Zakat dan Endowmen (WAZAN)",null,null,"Kolej Lima Belas",null,null,null,null,null,null,null,null,null,null,null,null,null,null,16,"Tinggi"]
["Luaran",null,"Fakulti ","Fakulti Sains Komputer dan Teknologi Maklumat",null,"Fakulti Sains Pertanian  dan Makanan, UPMKB",null,null,null,"Pusat Jaminan Kualiti (CQA)",null,null,"Kolej Enam Belas",null,null,null,null,null,null,null,null,null,null,null,null,null,null,17,"Tinggi"]
[null,null,"Fakulti ","Fakulti Sains Pertanian  dan Makanan, UPMKB",null,null,null,null,null,"Pusat Sukan",null,null,"Kolej Tujuh Belas",null,null,null,null,null,null,null,null,null,null,null,null,null,null,18,"Tinggi"]
["Kategori Isu",null,"Institut","Institut Biosains",null,null,null,null,null,"Pusat Sumber dan Pendidikan kanser (CARE)",null,null,null,null,null,null,null,null,null,null,null,null,null,null,null,null,null,19,"Tinggi"]
["Pilihan Kategori Isu",null,"Institut","Institut Kajian perladangan",null,null,null,null,null,"Pusat Transformasi Komuniti Universiti (UCTC)",null,null,null,null,null,null,null,null,null,null,null,null,null,null,null,null,null,20,"Tinggi"]
["Akademik & Antarabangsa",null,"Institut","Institut Kajian Dasar Pertanian dan Makanan",null,null,null,null,null,null,null,null,null,null,null,null,null,null,null,null,null,null,null,null,null,null,null,21,"Tinggi"]
["Hal Ehwal Pelajar",null,"Institut","Institut Pengajian Sains Sosial",null,null,null,null,null,null,null,null,null,null,null,null,null,null,null,null,null,null,null,null,null,null,null,22,"Tinggi"]
["Jaringan Industri & Masyarakat",null,"Institut","Institut Penyelidikan Matematik",null,null,null,null,null,null,null,null,null,null,null,null,null,null,null,null,null,null,null,null,null,null,null,23,"Tinggi"]
["Pengurusan Kewangan & Aset",null,"Institut","Institut Penyelidikan Penuaan Malaysia",null,null,null,null,null,null,null,null,null,null,null,null,null,null,null,null,null,null,null,null,null,null,null,24,"Tinggi"]
["Penyelidikan & Inovasi",null,"Institut","Institut Penyelidikan Produk Halal",null,null,null,null,null,null,null,null,null,null,null,null,null,null,null,null,null,null,null,null,null,null,null,25,"Tinggi"]
["Perkhidmatan Perpustakaan & ICT",null,"Institut","Institut Perhutanan Tropika dan Produk Hutan",null,null,null,null,null,null,null,null,null,null,null,null,null,null,null,null,null,null,null,null,null,null,null,0,"-"]
["Pertanian",null,"Institut","Institut Pertanian Tropika dan Sekuriti Makanan"]
["Sumber Manusia",null,"Institut","Institut Teknologi Maju"]
[null,null,"Institut","Institut Antarabangsa  Akuakultur  dan Sains Akuatik (i-Aquas)"]
[null,null,"Pejabat","Pejabat Bursar"]
[null,null,"Pejabat","Pejabat Pembangunan dan Pengurusan Aset"]
[null,null,"Pejabat","Pejabat Penasihat Undang-undang"]
[null,null,"Pejabat","Pejabat Pendaftar"]
[null,null,"Pejabat","Bahagian Pentadbiran Pejabat Naib Canselor"]
[null,null,"Pejabat","Pejabat Pengurusan Keselamatan dan Kesihatan Pekerjaan"]
[null,null,"Pejabat","Pejabat Strategi Korporat dan Komunikasi"]
[null,null,"Pusat","Pusat Alumni"]
[null,null,"Pusat","Pusat Antarabangsa"]
[null,null,"Pusat","Pusat Asasi Sains Pertanian"]
[null,null,"Pusat","Pusat Hubungan dan Jaringan Industri CIRNET"]
[null,null,"Pusat","Pusat Islam"]
[null,null,"Pusat","Pusat Kebudayaan dan Kesenian SSAAS"]
[null,null,"Pusat","Pusat Kesihatan Universiti"]
[null,null,"Pusat","Pusat Kokurikulum dan Pembangunan Pelajar"]
[null,null,"Pusat","Pusat Pemajuan Kompetensi Bahasa"]
[null,null,"Pusat","Pusat Pembangunan Akademik"]
[null,null,"Pusat","Pusat Pembangunan Keusahawanan dan Kebolehpasaran Graduan"]
[null,null,"Pusat","Pusat Pembangunan Maklumat dan Komunikasi (iDEC)"]
[null,null,"Pusat","Pusat Pengimejan Diagnostik Nuklear (OUT)"]
[null,null,"Pusat","Pusat Pengurusan Penyelidikan (RMC)"]
[null,null,"Pusat","Pusat Pengurusan Wakaf, Zakat dan Endowmen (WAZAN)"]
[null,null,"Pusat","Pusat Jaminan Kualiti (CQA)"]
[null,null,"Pusat","Pusat Sukan"]
[null,null,"Pusat","Pusat Sumber dan Pendidikan kanser (CARE)"]
[null,null,"Pusat","Pusat Transformasi Komuniti Universiti (UCTC)"]
[null,null,"Bahagian","Bahagian Hal Ehwal Pelajar"]
[null,null,"Bahagian","Bahagian Kaunseling "]
[null,null,"Bahagian","Bahagian Kemasukan & Tadbir Urus Akademik "]
[null,null,"Bahagian","Bahagian Keselamatan Universiti"]
[null,null,"Bahagian","Bahagian Audit Dalam"]
[null,null,"Sekolah","Sekolah Pengajian Siswazah (SPS)"]
[null,null,"Akademi","Akademi Sukan"]
[null,null,"Kolej","Kolej Mohamad Rashid"]
[null,null,"Kolej","Kolej Kedua"]
[null,null,"Kolej","Kolej Ketiga"]
[null,null,"Kolej","Kolej Canselor"]
[null,null,"Kolej","Kolej Kelima"]
[null,null,"Kolej","Kolej Keenam"]
[null,null,"Kolej","Kolej KOSASS"]
[null,null,"Kolej","Kolej Tun Perak"]
[null,null,"Kolej","Kolej Pendeta Za'ba"]
[null,null,"Kolej","Kolej Sepuluh"]
[null,null,"Kolej","Kolej Sebelas"]
[null,null,"Kolej","Kolej Dua Belas"]
[null,null,"Kolej","Kolej Tiga Belas"]
[null,null,"Kolej","Kolej Empat Belas"]
[null,null,"Kolej","Kolej Lima Belas"]
[null,null,"Kolej","Kolej Enam Belas"]
[null,null,"Kolej","Kolej Tujuh Belas"]
[null,null,"Perkhidmatan","Penerbit UPM"]
[null,null,"Perkhidmatan","Perpustakaan Sultan Abdul Samad"]
[null,null,"Perkhidmatan","Putra Science Park"]
[null,null,"Perkhidmatan","Taman Pertanian Universiti"]

{"sheet":"MATRIK","index":11,"n_rows":19,"n_cols":36,"rows_kept":19,"cut":false,"hidden":false,"merged":[[14,1,18,1],[12,1,13,2],[12,3,12,7],[4,1,8,1],[2,1,3,2],[2,3,2,7],[11,1,11,7]]}
[null,null,null,{"$f":"GRAF!B5","v":21},{"$f":"D1","v":21},{"$f":"E1","v":21},21,21]
[null,null,null,null,null,null,null,null,null,null,"1x1","2x1","3x1","4x1","5x1","1x2","2x2","3x2","4x2","5x2","1x3","1x4","1x5","2x3","2x4","2x5","3x3","3x4","3x5","4x3","4x4","4x5","5x3","5x4","5x5"]
[null,"Risiko",null,"Kemungkinan**",null,null,null,null,null,"1. Penyataan",{"$f":"COUNTIFS(DATA!M2:M26,1,DATA!O2:O26,1)","v":4},{"$f":"COUNTIFS(DATA!M2:M26,2,DATA!O2:O26,1)","v":2},{"$f":"COUNTIFS(DATA!M2:M26,3,DATA!O2:O26,1)","v":1},{"$f":"COUNTIFS(DATA!M2:M26,4,DATA!O2:O26,1)","v":0},{"$f":"COUNTIFS(DATA!M2:M26,5,DATA!O2:O26,1)","v":0},{"$f":"COUNTIFS(DATA!M2:M26,1,DATA!O2:O26,2)","v":1},{"$f":"COUNTIFS(DATA!M2:M26,2,DATA!O2:O26,2)","v":5},{"$f":"COUNTIFS(DATA!M2:M26,3,DATA!O2:O26,2)","v":1},{"$f":"COUNTIFS(DATA!M2:M26,4,DATA!O2:O26,2)","v":0},{"$f":"COUNTIFS(DATA!M2:M26,5,DATA!O2:O26,2)","v":0},{"$f":"COUNTIFS(DATA!M2:M26,1,DATA!O2:O26,3)","v":4},{"$f":"COUNTIFS(DATA!M2:M26,1,DATA!O2:O26,4)","v":1},{"$f":"COUNTIFS(DATA!M2:M26,1,DATA!O2:O26,5)","v":0},{"$f":"COUNTIFS(DATA!M2:M26,2,DATA!O2:O26,3)","v":0},{"$f":"COUNTIFS(DATA!M2:M26,2,DATA!O2:O26,4)","v":0},{"$f":"COUNTIFS(DATA!M2:M26,2,DATA!O2:O26,5)","v":0},{"$f":"COUNTIFS(DATA!M2:M26,3,DATA!O2:O26,3)","v":1},{"$f":"COUNTIFS(DATA!M2:M26,3,DATA!O2:O26,4)","v":0},{"$f":"COUNTIFS(DATA!M2:M26,3,DATA!O2:O26,5)","v":0},{"$f":"COUNTIFS(DATA!M2:M26,4,DATA!O2:O26,3)","v":0},{"$f":"COUNTIFS(DATA!M2:M26,4,DATA!O2:O26,4)","v":0},{"$f":"COUNTIFS(DATA!M2:M26,4,DATA!O2:O26,5)","v":0},{"$f":"COUNTIFS(DATA!M2:M26,5,DATA!O2:O26,3)","v":1},{"$f":"COUNTIFS(DATA!M2:M26,5,DATA!O2:O26,4)","v":0},{"$f":"COUNTIFS(DATA!M2:M26,5,DATA!O2:O26,5)","v":0},{"$f":"SUM(K3:AI3)","v":21}]
[null,null,null,1,2,3,4,5,null,"2. Penilaian - Q2",{"$f":"COUNTIFS(DATA!M27:M51,1,DATA!O27:O51,1)","v":9},{"$f":"COUNTIFS(DATA!M27:M51,2,DATA!O27:O51,1)","v":0},{"$f":"COUNTIFS(DATA!M27:M51,3,DATA!O27:O51,1)","v":0},{"$f":"COUNTIFS(DATA!M27:M51,4,DATA!O27:O51,1)","v":0},{"$f":"COUNTIFS(DATA!M27:M51,5,DATA!O27:O51,1)","v":0},{"$f":"COUNTIFS(DATA!M27:M51,1,DATA!O27:O51,2)","v":2},{"$f":"COUNTIFS(DATA!M27:M51,2,DATA!O27:O51,2)","v":4},{"$f":"COUNTIFS(DATA!M27:M51,3,DATA!O27:O51,2)","v":2},{"$f":"COUNTIFS(DATA!M27:M51,4,DATA!O27:O51,2)","v":0},{"$f":"COUNTIFS(DATA!M27:M51,5,DATA!O27:O51,2)","v":0},{"$f":"COUNTIFS(DATA!M27:M51,1,DATA!O27:O51,3)","v":3},{"$f":"COUNTIFS(DATA!M27:M51,1,DATA!O27:O51,4)","v":0},{"$f":"COUNTIFS(DATA!M27:M51,1,DATA!O27:O51,5)","v":0},{"$f":"COUNTIFS(DATA!M27:M51,2,DATA!O27:O51,3)","v":0},{"$f":"COUNTIFS(DATA!M27:M51,2,DATA!O27:O51,4)","v":0},{"$f":"COUNTIFS(DATA!M27:M51,2,DATA!O27:O51,5)","v":0},{"$f":"COUNTIFS(DATA!M27:M51,3,DATA!O27:O51,3)","v":1},{"$f":"COUNTIFS(DATA!M27:M51,3,DATA!O27:O51,4)","v":0},{"$f":"COUNTIFS(DATA!M27:M51,3,DATA!O27:O51,5)","v":0},{"$f":"COUNTIFS(DATA!M27:M51,4,DATA!O27:O51,3)","v":0},{"$f":"COUNTIFS(DATA!M27:M51,4,DATA!O27:O51,4)","v":0},{"$f":"COUNTIFS(DATA!M27:M51,4,DATA!O27:O51,5)","v":0},{"$f":"COUNTIFS(DATA!M27:M51,5,DATA!O27:O51,3)","v":0},{"$f":"COUNTIFS(DATA!M27:M51,5,DATA!O27:O51,4)","v":0},{"$f":"COUNTIFS(DATA!M27:M51,5,DATA!O27:O51,5)","v":0},{"$f":"SUM(K4:AI4)","v":21}]
[null,"Keterukan*",1,1,2,3,4,5,null,"3. Penilaian - Q4",{"$f":"COUNTIFS(DATA!M52:M76,1,DATA!O52:O76,1)","v":0},{"$f":"COUNTIFS(DATA!M52:M76,2,DATA!O52:O76,1)","v":0},{"$f":"COUNTIFS(DATA!M52:M76,3,DATA!O52:O76,1)","v":0},{"$f":"COUNTIFS(DATA!M52:M76,4,DATA!O52:O76,1)","v":0},{"$f":"COUNTIFS(DATA!M52:M76,5,DATA!O52:O76,1)","v":0},{"$f":"COUNTIFS(DATA!M52:M76,1,DATA!O52:O76,2)","v":0},{"$f":"COUNTIFS(DATA!M52:M76,2,DATA!O52:O76,2)","v":0},{"$f":"COUNTIFS(DATA!M52:M76,3,DATA!O52:O76,2)","v":0},{"$f":"COUNTIFS(DATA!M52:M76,4,DATA!O52:O76,2)","v":0},{"$f":"COUNTIFS(DATA!M52:M76,5,DATA!O52:O76,2)","v":0},{"$f":"COUNTIFS(DATA!M52:M76,1,DATA!O52:O76,3)","v":0},{"$f":"COUNTIFS(DATA!M52:M76,1,DATA!O52:O76,4)","v":0},{"$f":"COUNTIFS(DATA!M52:M76,1,DATA!O52:O76,5)","v":0},{"$f":"COUNTIFS(DATA!M52:M76,2,DATA!O52:O76,3)","v":0},{"$f":"COUNTIFS(DATA!M52:M76,2,DATA!O52:O76,4)","v":0},{"$f":"COUNTIFS(DATA!M52:M76,2,DATA!O52:O76,5)","v":0},{"$f":"COUNTIFS(DATA!M52:M76,3,DATA!O52:O76,3)","v":0},{"$f":"COUNTIFS(DATA!M52:M76,3,DATA!O52:O76,4)","v":0},{"$f":"COUNTIFS(DATA!M52:M76,3,DATA!O52:O76,5)","v":0},{"$f":"COUNTIFS(DATA!M52:M76,4,DATA!O52:O76,3)","v":0},{"$f":"COUNTIFS(DATA!M52:M76,4,DATA!O52:O76,4)","v":0},{"$f":"COUNTIFS(DATA!M52:M76,4,DATA!O52:O76,5)","v":0},{"$f":"COUNTIFS(DATA!M52:M76,5,DATA!O52:O76,3)","v":0},{"$f":"COUNTIFS(DATA!M52:M76,5,DATA!O52:O76,4)","v":0},{"$f":"COUNTIFS(DATA!M52:M76,5,DATA!O52:O76,5)","v":0},0]
[null,null,2,2,4,6,8,10]
[null,null,3,3,6,9,12,15]
[null,null,4,4,8,12,16,20]
[null,null,5,5,10,15,20,25]
[]
[]
[null,"Matrik : Bil. Isu & Tahap Risiko"]
[null,"Risiko",null,"Kemungkinan",null,null,null,null,null,null,"1x1","2x1","3x1","4x1","5x1","1x2","2x2","3x2","4x2","5x2","1x3","1x4","1x5","2x3","2x4","2x5","3x3","3x4","3x5","4x3","4x4","4x5","5x3","5x4","5x5"]
[null,null,null,1,2,3,4,5,null,{"$f":"PIVOT!A18","v":"2. Penilaian - Q2"},{"$f":"VLOOKUP(J14,J2:K5,2,FALSE)","v":9},{"$f":"VLOOKUP(J14,J2:L5,3,FALSE)","v":0},{"$f":"VLOOKUP(J14,J2:M5,4,FALSE)","v":0},{"$f":"VLOOKUP(J14,J2:N5,5,FALSE)","v":0},{"$f":"VLOOKUP(J14,J2:O5,6,FALSE)","v":0},{"$f":"VLOOKUP(J14,J2:P5,7,FALSE)","v":2},{"$f":"VLOOKUP(J14,J2:Q5,8,FALSE)","v":4},{"$f":"VLOOKUP(J14,J2:R5,9,FALSE)","v":2},{"$f":"VLOOKUP(J14,J2:S5,10,FALSE)","v":0},{"$f":"VLOOKUP(J14,J2:T5,11,FALSE)","v":0},{"$f":"VLOOKUP(J14,J2:U5,12,FALSE)","v":3},{"$f":"VLOOKUP(J14,J2:V5,13,FALSE)","v":0},{"$f":"VLOOKUP(J14,J2:W5,14,FALSE)","v":0},{"$f":"VLOOKUP(J14,J2:X5,15,FALSE)","v":0},{"$f":"VLOOKUP(J14,J2:Y5,16,FALSE)","v":0},{"$f":"VLOOKUP(J14,J2:Z5,17,FALSE)","v":0},{"$f":"VLOOKUP(J14,J2:AA5,18,FALSE)","v":1},{"$f":"VLOOKUP(J14,J2:AB5,19,FALSE)","v":0},{"$f":"VLOOKUP(J14,J2:AC5,20,FALSE)","v":0},{"$f":"VLOOKUP(J14,J2:AD5,21,FALSE)","v":0},{"$f":"VLOOKUP(J14,J2:AE5,22,FALSE)","v":0},{"$f":"VLOOKUP(J14,J2:AF5,23,FALSE)","v":0},{"$f":"VLOOKUP(J14,J2:AG5,24,FALSE)","v":0},{"$f":"VLOOKUP(J14,J2:AH5,25,FALSE)","v":0},{"$f":"VLOOKUP(J14,J2:AI5,26,FALSE)","v":0}]
[null,"Keterukan",1,{"$f":"K14","v":9},{"$f":"L14","v":0},{"$f":"M14","v":0},{"$f":"N14","v":0},{"$f":"O14","v":0},{"$f":"SUM(D15:H15)","v":9}]
[null,null,2,{"$f":"P14","v":2},{"$f":"Q14","v":4},{"$f":"R14","v":2},{"$f":"S14","v":0},{"$f":"T14","v":0},{"$f":"SUM(D16:H16)","v":8}]
[null,null,3,{"$f":"U14","v":3},{"$f":"X14","v":0},{"$f":"AA14","v":1},{"$f":"AD14","v":0},{"$f":"AG14","v":0},4]
[null,null,4,{"$f":"V14","v":0},{"$f":"Y14","v":0},{"$f":"AB14","v":0},{"$f":"AE14","v":0},{"$f":"AH14","v":0},0]
[null,null,5,{"$f":"W14","v":0},{"$f":"Z14","v":0},{"$f":"AC14","v":0},{"$f":"AF14","v":0},{"$f":"AI14","v":0},0]